Workbook

Sheet Hoja1 (hidden)
G2: Departamento
B3: Municipio de Cobertura | E3: Departamento | G3: Amazonas | I3: Automotriz
E4: Antioquia | G4: Antioquia | I4: Fluvial
B5: Armenia | E5: Atlántico | G5: Arauca
B6: Barbosa | E6: Bolívar | G6: Atlántico
B7: Barranquilla | E7: Boyacá | G7: Bolívar
B8: Bello | E8: Caldas | G8: Boyacá
B9: Bogotá D.C | E9: Córdoba | G9: Caldas
B10: Bojacá | E10: Cundinamarca | G10: Caquetá
B11: Bucaramanga | E11: Huila | G11: Casanare
B12: Cajicá | E12: Magdalena | G12: Cauca
B13: Caldas | E13: Meta | G13: Cesar
B14: Cali | E14: Nariño | G14: Chocó
B15: Cartagena | E15: Norte De Santander | G15: Córdoba
B16: Chía | E16: Quindío | G16: Cundinamarca
B17: Cogua | E17: Risaralda | G17: Guainía
B18: Copacabana | E18: Santander | G18: Guaviare
B19: Cota | E19: Sucre | G19: Huila
B20: Cúcuta | E20: Tolima | G20: La Guajira
B21: Dosquebradas | E21: Valle Del Cauca | G21: Magdalena
B22: El Rosal | G22: Meta
B23: Envigado | G23: Nariño
B24: Facatativá | G24: Norte de Santander
B25: Floridablanca | G25: Putumayo
B26: Funza | G26: Quindio
B27: Gachancipá | G27: Risaralda
B28: Galapa | G28: San Andrés y Providencia
B29: Girardota | G29: Santander
B30: Girón | G30: Sucre
B31: Ibagué | G31: Tolima
B32: Itagüí | G32: Valle del Cauca
B33: Jamundí | G33: Vaupés
B34: La Calera | G34: Vichada
B35: La Estrella
B36: La Virginia
B37: Madrid
B38: Malambo
B39: Manizales
B40: Medellín
B41: Montería
B42: Mosquera
B43: Neiva
B44: Nemocón
B45: Palmira
B46: Pasto
B47: Pereira
B48: Piedecuesta
B49: Puerto Colombia
B50: Sabaneta
B51: Santa Marta
B52: Sibaté
B53: Sincelejo
B54: Soacha
B55: Soledad
B56: Sopó
B57: Subachoque
B58: Tabio
B59: Tenjo
B60: Tocancipá
B61: Tunja
B62: Villavicencio
B63: Yumbo
B64: Zipaquirá

Sheet Segmento
C1: ELECCION DE CATEGORIA O SEGMENTO | O1: Categorización | P1: Ruta consolidar | Q1: Rol | AA1: Etapa
O2: CatA | P2: D:\Efra\CCE\2024\Ejecución\Simuladores_Excel\GLPI\1127095 (Combustible_nacional)\catc | Q2: Entidad_compradora | AA2: 1
C3: Acuerdo Marco para el suministro de Combustible Nacional III
A4: Versión: 7 23/05/2024
A5: MENÚ DE NAVEGACIÓN
A8: ENTIDAD COMPRADORA | C8: CATEGORIAS O SEGMENTOS DISPONIBLES
C9: Categoría A | G9: Categoría C | K9: Segmento 3
A10: Elección Categoría/Segmento | C10: Distribuidor Minorista que suministra el combustible en Municipios con Sistema de Control Obligatorio y Libertad Vigilada. | G10: Proveedor de Medios de Pago Alternativos con Sistema de Control Obligatorio. | K10: Distribuidor Mayorista y/o Distribuidor Minorista que transporta el combustible vía terrestre.
A12: Solicitud de Cotización
A14: Resumen Cotización
A16: Ver Hoja Cotización
A18: Consolidar respuestas
A20: PROVEEDOR
A22: Cotización
A24: ADMINISTRACIÓN SIMULADOR
A26: Tabla Maestra de precios

Sheet SolCotizacion
F1: SOLICITUD DE COTIZACIÓN
F3: Acuerdo Marco para el suministro de Combustible Nacional III
A4: =+Segmento!A4 -> Versión: 7 23/05/2024
A5: MENÚ DE NAVEGACIÓN
A8: ENTIDAD COMPRADORA
A10: Elección Categoría/Segmento | F10: Información de la Entidad Compradora
A12: Solicitud de Cotización | F12: Nombre de la Entidad: | T12: NIT:
A14: Resumen Cotización | F14: Dirección de la Entidad: | T14: Municipio / Dirección:
A16: Ver Hoja Cotización | F16: Nombre funcionario Comprador: | T16: Teléfono de contacto:
A18: Consolidar respuestas | F18: Correo de comprador:
A20: PROVEEDOR | F20: Fechas estimadas
A22: Cotización | F22: Fecha creación solicitud cotización: | N22: Fecha generación OC: | U22: Fecha Vencimiento OC:
A24: ADMINISTRACIÓN SIMULADOR | N24: Vigencia estimada OC (Días): | S24: =+IF(AND(Y22<>"",R22<>""),Y22-R22,"") -> 
A26: Tabla Maestra de precios
F27: Paquete de Servicios
B29: pres | F29: Presupuesto
B32: paq | F32: Ítem | G32: Departamento | K32: Ciudad / Municipio | O32: Ciudad referencia | S32: Capital / Cobertura | W32: Margen Mayorista | Z32: Margen Minorista
F33: =+IF(F32="Ítem",1,F32+1) -> 1 | O33: =+IF(Segmento!$O$2="CatA",IFERROR(VLOOKUP(K33,Cat_A_consolidado!$H:$J,2,FALSE),""),IFERROR(VLOOKUP(K33,'Seg3'!$H:$J,2,FALSE),"")) ->  | S33: =IF(Segmento!$O$2="CatA",IFERROR(VLOOKUP(K33,Cat_A_consolidado!$H:$J,3,FALSE),""),IFERROR(VLOOKUP(K33,'Seg3'!$H:$J,3,FALSE),"")) ->  | W33: =IF(Segmento!$O$2="CatA",IFERROR(VLOOKUP(K33,Cat_A_consolidado!$H:$AD,6,FALSE),""),IFERROR(VLOOKUP(K33,'Seg3'!$H:$AF,6,FALSE),"")) ->  | Z33: =IF(Segmento!$O$2="CatA",IFERROR(VLOOKUP(K33,Cat_A_consolidado!$H:$AD,7,FALSE),""),IFERROR(VLOOKUP(K33,'Seg3'!$H:$AF,7,FALSE),"")) -> 
G35: Filas a agregar o eliminar ciudades:
G36: 1
F38: Gravámenes adicionales
B41: grav | F41: No | G41: Descripción | Z41: Porcentaje
F42: =+IF(F41="No",1,F41+1) -> 1
G43: Total porcentaje: | Z43: =SUM(Z42:OFFSET(W43,-1,-1)) -> 0
G44: Filas a agregar o eliminar Gravámenes:
G45: 1
F47: Forma de recaudo
B54: fin_hoja

Sheet ResCotizacion
A4: =+Segmento!A4 -> Versión: 7 23/05/2024
A5: MENÚ DE NAVEGACIÓN
A8: ENTIDAD COMPRADORA
A10: Elección Categoría/Segmento
A12: Solicitud de Cotización
A14: Resumen Cotización
A16: Ver Hoja Cotización
A18: Consolidar respuestas
A20: PROVEEDOR
A22: Cotización
A24: ADMINISTRACIÓN SIMULADOR
A26: Tabla Maestra de precios

Sheet Cotizacion
F1: COTIZACIÓN
F3: Acuerdo Marco para el suministro de Combustible Nacional III
A4: =+Segmento!A4 -> Versión: 7 23/05/2024
A5: MENÚ DE NAVEGACIÓN
A8: ENTIDAD COMPRADORA
A10: Elección Categoría/Segmento | F10: Información de la Entidad Compradora
A12: Solicitud de Cotización | F12: Nombre de la Entidad: | K12: fr | T12: NIT: | Y12: 1015277297
A14: Resumen Cotización | F14: Dirección de la Entidad: | K14: rr | T14: Municipio / Dirección: | Y14: e
A16: Ver Hoja Cotización | F16: Nombre funcionario Comprador: | K16: wfe | T16: Teléfono de contacto: | Y16: 3118130760
A18: Consolidar respuestas | F18: Correo de comprador: | K18: feer@ihedue.com
A20: PROVEEDOR | F20: Fechas estimadas
A22: Cotización | F22: Fecha creación solicitud cotización: | J22: 2024-05-23 | N22: Fecha generación OC: | R22: 2024-05-23 | U22: Fecha Vencimiento OC: | Y22: 2024-05-23
A24: ADMINISTRACIÓN SIMULADOR | N24: Vigencia estimada OC (Días): | S24: 0
A26: Tabla Maestra de precios
F27: Paquete de Servicios
B29: pres | F29: Presupuesto | I29: 100000000 | Q29: Galones estimados | V29: 7898.58
F31: Proveedor | K31: GRUPO EDS AUTOGAS SAS
B32: paq | F32: Ítem | G32: Departamento | K32: Ciudad / Municipio | O32: Ciudad referencia | S32: Capital / Cobertura | W32: Margen Mayorista | Z32: Margen Minorista | AC32: Descuento integral más alto | AF32: Flete más bajo | AI32: Descuento Integral Prov | AL32: Descuento Margen Mayorista | AO32: Descuento Margen Minorista | AR32: Valor Flete | AU32: Descuento Flete (%)
F33: =+IF(F32="Ítem",1,F32+1) -> 1 | G33: Antioquia | K33: La Estrella | O33: Medellín | S33: Cobertura | W33: 519.76 | Z33: 1044.72 | AC33: 0.3943 | AF33: 166106 | AI33: =+ROUND((AL33*W33+AO33*Z33)/SUM(W33:AB33),4) -> 0.328 | AL33: 0.172 | AO33: 0.4056 | AR33: =VLOOKUP($K33,'Seg3'!$H:$CZ,MATCH(Cotizacion!$K$31,'Seg3'!$10:$10,0)+6-7,FALSE)*(1-$AU33) -> 0 | AU33: 1
F34: =+IF(F33="Ítem",1,F33+1) -> 2 | G34: Cundinamarca | K34: La Calera | O34: Bogotá D.C | S34: Cobertura | W34: 519.76 | Z34: 1044.72 | AC34: 0.4339 | AF34: 174848 | AI34: =+ROUND((AL34*W34+AO34*Z34)/SUM(W34:AB34),4) -> 0.41 | AL34: 0.165 | AO34: 0.5319 | AR34: =VLOOKUP($K34,'Seg3'!$H:$CZ,MATCH(Cotizacion!$K$31,'Seg3'!$10:$10,0)+6-7,FALSE)*(1-$AU34) -> 174848
F37: Gravámenes adicionales
B40: grav | F40: No | G40: Descripción | Z40: Porcentaje
F41: 1
G42: Total porcentaje: | Z42: 0
F44: Forma de recaudo
B51: fin_hoja

Sheet Resultados
F1: CONSOLIDACIÓN Y RESULTADOS
F3: Acuerdo Marco para el suministro de Combustible Nacional III
A4: =+Segmento!A4 -> Versión: 7 23/05/2024
A5: MENÚ DE NAVEGACIÓN
A8: ENTIDAD COMPRADORA
A10: Elección Categoría/Segmento | F10: CONSOLIDACIÓN PROPUESTAS
A12: Solicitud de Cotización | G12: MENOR COMISIÓN | J12: CANTIDAD DE ESTACIONES DE SERVICIOS
F13: Ítem | G13: PLUXEE COLOMBIA S.A.S | H13: BIG PASS S.A.S. | I13: DISTRACOM S.A. | J13: PLUXEE COLOMBIA S.A.S | K13: BIG PASS S.A.S. | L13: DISTRACOM S.A. | CA13: PROVEEDOR SELECCIONADO
A14: Resumen Cotización | F14: 1 | G14: 0.02 | H14: 0.03 | I14: 0.01 | J14: 727 | K14: 639 | L14: 230
A16: Ver Hoja Cotización
A18: Consolidar respuestas
A20: PROVEEDOR
A22: Cotización
A24: ADMINISTRACIÓN SIMULADOR
A26: Tabla Maestra de precios

Sheet Resul_Cons_CatA (hidden)
D13: Nombre Archivo | E13: Proveedor | F13: Ítem | G13: Departamento | K13: Ciudad / Municipio | O13: Ciudad referencia | S13: Capital / Cobertura | W13: Margen Mayorista | Z13: Margen Minorista | AC13: Descuento integral mas alto | AF13: Descuento extra mas alto | AI13: Descuento Integral Prov | AL13: Descuento Margen Mayorista | AO13: Descuento Margen Minorista | AR13: Descuento Extra
D14: 1_prueba_simulador_am_combustible_nacional_iii_-_v4_20231104_3_v7_04-03-2024_0.xlsm | E14: GRUPO EDS AUTOGAS SAS | F14: 1 | G14: Cundinamarca | K14: Bogotá D.C | O14: Bogotá D.C | S14: Capital | W14: 519.76 | Z14: 1044.72 | AC14: 0.4245 | AF14: 0.05 | AI14: 0.4234 | AL14: 0.165 | AO14: 0.552 | AR14: 0.05
D15: 1_prueba_simulador_am_combustible_nacional_iii_-_v4_20231104_3_v7_04-03-2024_0.xlsm | E15: GRUPO EDS AUTOGAS SAS | F15: 2 | G15: Bolívar | K15: Cartagena | O15: Cartagena | S15: Capital | W15: 519.76 | Z15: 1044.72 | AC15: 0.3312 | AF15: 0.05 | AI15: 0 | AL15: 0 | AO15: 0 | AR15: 0
D16: 1_prueba_simulador_am_combustible_nacional_iii_-_v4_20231104_3_v7_04-03-2024_0.xlsm | E16: GRUPO EDS AUTOGAS SAS | F16: 3 | G16: Meta | K16: Villavicencio | O16: Villavicencio | S16: Capital | W16: 519.76 | Z16: 1044.72 | AC16: 0.1868 | AF16: 0.04 | AI16: 0 | AL16: 0 | AO16: 0 | AR16: 0
D17: 1_prueba_simulador_am_combustible_nacional_iii_-_v4_20231104_3_v7_04-03-2024_0.xlsm | E17: GRUPO EDS AUTOGAS SAS | F17: 4 | G17: Magdalena | K17: Santa Marta | O17: Santa Marta | S17: Capital | W17: 519.76 | Z17: 1044.72 | AC17: 0.317 | AF17: 0.05 | AI17: 0 | AL17: 0 | AO17: 0 | AR17: 0
D18: 1_prueba_simulador_am_combustible_nacional_iii_-_v4_20231104_3_v7_04-03-2024_0.xlsm | E18: GRUPO EDS AUTOGAS SAS | F18: 5 | G18: Antioquia | K18: La Estrella | O18: Medellín | S18: Cobertura | W18: 519.76 | Z18: 1044.72 | AC18: 0.3253 | AF18: N/A | AI18: 0 | AL18: 0 | AO18: 0 | AR18: N/A
D19: 1_prueba_simulador_am_combustible_nacional_iii_-_v4_20231104_3_v7_04-03-2024_0.xlsm | E19: GRUPO EDS AUTOGAS SAS | F19: 6 | G19: Quindío | K19: Armenia | O19: Armenia | S19: Capital | W19: 519.76 | Z19: 1044.72 | AC19: 0.2102 | AF19: 0.05 | AI19: 0 | AL19: 0 | AO19: 0 | AR19: 0
D20: 1_prueba_simulador_am_combustible_nacional_iii_-_v4_20231104_3_v7_04-03-2024_0.xlsm | E20: GRUPO EDS AUTOGAS SAS | F20: 7 | G20: Valle del Cauca | K20: Palmira | O20: Cali | S20: Cobertura | W20: 519.76 | Z20: 1044.72 | AC20: 0.1991 | AF20: N/A | AI20: 0 | AL20: 0 | AO20: 0 | AR20: N/A
D21: 2globo_prueba_simulador_am_combustible_nacional_iii_-_v4_20231104_3_v7_04-03-2024_0.xlsm | E21: GLOBOLLANTAS S.A.S. | F21: 1 | G21: Cundinamarca | K21: Bogotá D.C | O21: Bogotá D.C | S21: Capital | W21: 519.76 | Z21: 1044.72 | AC21: 0.4245 | AF21: 0.05 | AI21: 0 | AL21: 0 | AO21: 0 | AR21: 0
D22: 2globo_prueba_simulador_am_combustible_nacional_iii_-_v4_20231104_3_v7_04-03-2024_0.xlsm | E22: GLOBOLLANTAS S.A.S. | F22: 2 | G22: Bolívar | K22: Cartagena | O22: Cartagena | S22: Capital | W22: 519.76 | Z22: 1044.72 | AC22: 0.3312 | AF22: 0.05 | AI22: 0 | AL22: 0 | AO22: 0 | AR22: 0
D23: 2globo_prueba_simulador_am_combustible_nacional_iii_-_v4_20231104_3_v7_04-03-2024_0.xlsm | E23: GLOBOLLANTAS S.A.S. | F23: 3 | G23: Meta | K23: Villavicencio | O23: Villavicencio | S23: Capital | W23: 519.76 | Z23: 1044.72 | AC23: 0.1868 | AF23: 0.04 | AI23: 0 | AL23: 0 | AO23: 0 | AR23: 0
D24: 2globo_prueba_simulador_am_combustible_nacional_iii_-_v4_20231104_3_v7_04-03-2024_0.xlsm | E24: GLOBOLLANTAS S.A.S. | F24: 4 | G24: Magdalena | K24: Santa Marta | O24: Santa Marta | S24: Capital | W24: 519.76 | Z24: 1044.72 | AC24: 0.317 | AF24: 0.05 | AI24: 0 | AL24: 0 | AO24: 0 | AR24: 0
D25: 2globo_prueba_simulador_am_combustible_nacional_iii_-_v4_20231104_3_v7_04-03-2024_0.xlsm | E25: GLOBOLLANTAS S.A.S. | F25: 5 | G25: Antioquia | K25: La Estrella | O25: Medellín | S25: Cobertura | W25: 519.76 | Z25: 1044.72 | AC25: 0.3253 | AF25: N/A | AI25: 0 | AL25: 0 | AO25: 0 | AR25: N/A
D26: 2globo_prueba_simulador_am_combustible_nacional_iii_-_v4_20231104_3_v7_04-03-2024_0.xlsm | E26: GLOBOLLANTAS S.A.S. | F26: 6 | G26: Quindío | K26: Armenia | O26: Armenia | S26: Capital | W26: 519.76 | Z26: 1044.72 | AC26: 0.2102 | AF26: 0.05 | AI26: 0 | AL26: 0 | AO26: 0 | AR26: 0
D27: 2globo_prueba_simulador_am_combustible_nacional_iii_-_v4_20231104_3_v7_04-03-2024_0.xlsm | E27: GLOBOLLANTAS S.A.S. | F27: 7 | G27: Valle del Cauca | K27: Palmira | O27: Cali | S27: Cobertura | W27: 519.76 | Z27: 1044.72 | AC27: 0.1991 | AF27: N/A | AI27: 0.0601 | AL27: 0.02 | AO27: 0.08 | AR27: N/A
D28: 3terpel_prueba_simulador_am_combustible_nacional_iii_-_v4_20231104_3_v7_04-03-2024_0.xlsm | E28: ORGANIZACIÓN TERPEL S.A | F28: 1 | G28: Cundinamarca | K28: Bogotá D.C | O28: Bogotá D.C | S28: Capital | W28: 519.76 | Z28: 1044.72 | AC28: 0.4245 | AF28: 0.05 | AI28: 0.1369 | AL28: 0.01 | AO28: 0.2 | AR28: 0.01
D29: 3terpel_prueba_simulador_am_combustible_nacional_iii_-_v4_20231104_3_v7_04-03-2024_0.xlsm | E29: ORGANIZACIÓN TERPEL S.A | F29: 2 | G29: Bolívar | K29: Cartagena | O29: Cartagena | S29: Capital | W29: 519.76 | Z29: 1044.72 | AC29: 0.3312 | AF29: 0.05 | AI29: 0.1369 | AL29: 0.01 | AO29: 0.2 | AR29: 0.01
D30: 3terpel_prueba_simulador_am_combustible_nacional_iii_-_v4_20231104_3_v7_04-03-2024_0.xlsm | E30: ORGANIZACIÓN TERPEL S.A | F30: 3 | G30: Meta | K30: Villavicencio | O30: Villavicencio | S30: Capital | W30: 519.76 | Z30: 1044.72 | AC30: 0.1868 | AF30: 0.04 | AI30: 0.1369 | AL30: 0.01 | AO30: 0.2 | AR30: 0.01
D31: 3terpel_prueba_simulador_am_combustible_nacional_iii_-_v4_20231104_3_v7_04-03-2024_0.xlsm | E31: ORGANIZACIÓN TERPEL S.A | F31: 4 | G31: Magdalena | K31: Santa Marta | O31: Santa Marta | S31: Capital | W31: 519.76 | Z31: 1044.72 | AC31: 0.317 | AF31: 0.05 | AI31: 0.1502 | AL31: 0.05 | AO31: 0.2 | AR31: 0.01
D32: 3terpel_prueba_simulador_am_combustible_nacional_iii_-_v4_20231104_3_v7_04-03-2024_0.xlsm | E32: ORGANIZACIÓN TERPEL S.A | F32: 5 | G32: Antioquia | K32: La Estrella | O32: Medellín | S32: Cobertura | W32: 519.76 | Z32: 1044.72 | AC32: 0.3253 | AF32: N/A | AI32: 0.1369 | AL32: 0.01 | AO32: 0.2 | AR32: N/A
D33: 3terpel_prueba_simulador_am_combustible_nacional_iii_-_v4_20231104_3_v7_04-03-2024_0.xlsm | E33: ORGANIZACIÓN TERPEL S.A | F33: 6 | G33: Quindío | K33: Armenia | O33: Armenia | S33: Capital | W33: 519.76 | Z33: 1044.72 | AC33: 0.2102 | AF33: 0.05 | AI33: 0.1369 | AL33: 0.01 | AO33: 0.2 | AR33: 0.01
D34: 3terpel_prueba_simulador_am_combustible_nacional_iii_-_v4_20231104_3_v7_04-03-2024_0.xlsm | E34: ORGANIZACIÓN TERPEL S.A | F34: 7 | G34: Valle del Cauca | K34: Palmira | O34: Cali | S34: Cobertura | W34: 519.76 | Z34: 1044.72 | AC34: 0.1991 | AF34: N/A | AI34: 0.1369 | AL34: 0.01 | AO34: 0.2 | AR34: N/A
D35: 4distracom_prueba_simulador_am_combustible_nacional_iii_-_v4_20231104_3_v7_04-03-2024_0.xlsm | E35: DISTRACOM S.A. | F35: 1 | G35: Cundinamarca | K35: Bogotá D.C | O35: Bogotá D.C | S35: Capital | W35: 519.76 | Z35: 1044.72 | AC35: 0.4245 | AF35: 0.05 | AI35: 0.4245 | AL35: 0.1205 | AO35: 0.5758 | AR35: 0.04
D36: 4distracom_prueba_simulador_am_combustible_nacional_iii_-_v4_20231104_3_v7_04-03-2024_0.xlsm | E36: DISTRACOM S.A. | F36: 2 | G36: Bolívar | K36: Cartagena | O36: Cartagena | S36: Capital | W36: 519.76 | Z36: 1044.72 | AC36: 0.3312 | AF36: 0.05 | AI36: 0.3312 | AL36: 0.1 | AO36: 0.4462 | AR36: 0.04
D37: 4distracom_prueba_simulador_am_combustible_nacional_iii_-_v4_20231104_3_v7_04-03-2024_0.xlsm | E37: DISTRACOM S.A. | F37: 3 | G37: Meta | K37: Villavicencio | O37: Villavicencio | S37: Capital | W37: 519.76 | Z37: 1044.72 | AC37: 0.1868 | AF37: 0.04 | AI37: 0.1868 | AL37: 0.11 | AO37: 0.225 | AR37: 0.04
D38: 4distracom_prueba_simulador_am_combustible_nacional_iii_-_v4_20231104_3_v7_04-03-2024_0.xlsm | E38: DISTRACOM S.A. | F38: 4 | G38: Magdalena | K38: Santa Marta | O38: Santa Marta | S38: Capital | W38: 519.76 | Z38: 1044.72 | AC38: 0.317 | AF38: 0.05 | AI38: 0.317 | AL38: 0.1 | AO38: 0.425 | AR38: 0.04
D39: 4distracom_prueba_simulador_am_combustible_nacional_iii_-_v4_20231104_3_v7_04-03-2024_0.xlsm | E39: DISTRACOM S.A. | F39: 5 | G39: Antioquia | K39: La Estrella | O39: Medellín | S39: Cobertura | W39: 519.76 | Z39: 1044.72 | AC39: 0.3253 | AF39: N/A | AI39: 0.3253 | AL39: 0.1 | AO39: 0.4374 | AR39: N/A
D40: 4distracom_prueba_simulador_am_combustible_nacional_iii_-_v4_20231104_3_v7_04-03-2024_0.xlsm | E40: DISTRACOM S.A. | F40: 6 | G40: Quindío | K40: Armenia | O40: Armenia | S40: Capital | W40: 519.76 | Z40: 1044.72 | AC40: 0.2102 | AF40: 0.05 | AI40: 0.2102 | AL40: 0.1 | AO40: 0.265 | AR40: 0.04
D41: 4distracom_prueba_simulador_am_combustible_nacional_iii_-_v4_20231104_3_v7_04-03-2024_0.xlsm | E41: DISTRACOM S.A. | F41: 7 | G41: Valle del Cauca | K41: Palmira | O41: Cali | S41: Cobertura | W41: 519.76 | Z41: 1044.72 | AC41: 0.1991 | AF41: N/A | AI41: 0.1991 | AL41: 0.11 | AO41: 0.2435 | AR41: N/A
D42: 5coesco_prueba_simulador_am_combustible_nacional_iii_-_v4_20231104_3_v7_04-03-2024_0.xlsm | E42: COESCO COLOMBIA S.A.S. | F42: 1 | G42: Cundinamarca | K42: Bogotá D.C | O42: Bogotá D.C | S42: Capital | W42: 519.76 | Z42: 1044.72 | AC42: 0.4245 | AF42: 0.05 | AI42: 0.0267 | AL42: 0.02 | AO42: 0.03 | AR42: 0.05
D43: 5coesco_prueba_simulador_am_combustible_nacional_iii_-_v4_20231104_3_v7_04-03-2024_0.xlsm | E43: COESCO COLOMBIA S.A.S. | F43: 2 | G43: Bolívar | K43: Cartagena | O43: Cartagena | S43: Capital | W43: 519.76 | Z43: 1044.72 | AC43: 0.3312 | AF43: 0.05 | AI43: 0.0634 | AL43: 0.05 | AO43: 0.07 | AR43: 0.5
D44: 5coesco_prueba_simulador_am_combustible_nacional_iii_-_v4_20231104_3_v7_04-03-2024_0.xlsm | E44: COESCO COLOMBIA S.A.S. | F44: 3 | G44: Meta | K44: Villavicencio | O44: Villavicencio | S44: Capital | W44: 519.76 | Z44: 1044.72 | AC44: 0.1868 | AF44: 0.04 | AI44: 0 | AL44: 0 | AO44: 0 | AR44: 0
D45: 5coesco_prueba_simulador_am_combustible_nacional_iii_-_v4_20231104_3_v7_04-03-2024_0.xlsm | E45: COESCO COLOMBIA S.A.S. | F45: 4 | G45: Magdalena | K45: Santa Marta | O45: Santa Marta | S45: Capital | W45: 519.76 | Z45: 1044.72 | AC45: 0.317 | AF45: 0.05 | AI45: 0.05 | AL45: 0.05 | AO45: 0.05 | AR45: 0.05
D46: 5coesco_prueba_simulador_am_combustible_nacional_iii_-_v4_20231104_3_v7_04-03-2024_0.xlsm | E46: COESCO COLOMBIA S.A.S. | F46: 5 | G46: Antioquia | K46: La Estrella | O46: Medellín | S46: Cobertura | W46: 519.76 | Z46: 1044.72 | AC46: 0.3253 | AF46: N/A | AI46: 0 | AL46: 0 | AO46: 0 | AR46: N/A
D47: 5coesco_prueba_simulador_am_combustible_nacional_iii_-_v4_20231104_3_v7_04-03-2024_0.xlsm | E47: COESCO COLOMBIA S.A.S. | F47: 6 | G47: Quindío | K47: Armenia | O47: Armenia | S47: Capital | W47: 519.76 | Z47: 1044.72 | AC47: 0.2102 | AF47: 0.05 | AI47: 0.0333 | AL47: 0.04 | AO47: 0.03 | AR47: 0.05
D48: 5coesco_prueba_simulador_am_combustible_nacional_iii_-_v4_20231104_3_v7_04-03-2024_0.xlsm | E48: COESCO COLOMBIA S.A.S. | F48: 7 | G48: Valle del Cauca | K48: Palmira | O48: Cali | S48: Cobertura | W48: 519.76 | Z48: 1044.72 | AC48: 0.1991 | AF48: N/A | AI48: 0 | AL48: 0 | AO48: 0 | AR48: N/A

Sheet Resul_Cons_Seg3 (hidden)
D13: Nombre Archivo | E13: Proveedor | F13: Ítem | G13: Departamento | K13: Ciudad / Municipio | O13: Ciudad referencia | S13: Capital / Cobertura | W13: Margen Mayorista | Z13: Margen Minorista | AC13: Descuento integral mas alto | AF13: Flete mas bajo | AI13: Descuento Integral Prov | AL13: Descuento Margen Mayorista | AO13: Descuento Margen Minorista | AR13: Valor Flete | AU13: Descuento Flete (%)

Sheet Resul_Cons_CatC (hidden)
D13: Nombre Archivo | E13: Proveedor | F13: Ítem | G13: Porcentaje de comisión más baja | K13: Porcentaje máximo de comisión del proveedor
D14: 1_prueba_simulador_am_combustible_nacional_iii_-_v6_20240408.xlsm | E14: PLUXEE COLOMBIA S.A.S | F14: 1 | G14: 0.012 | K14: 0.02
D15: 2_prueba_simulador_am_combustible_nacional_iii_-_v6_20240408.xlsm | E15: BIG PASS S.A.S. | F15: 1 | G15: 0.012 | K15: 0.03
D16: 3_prueba_simulador_am_combustible_nacional_iii_-_v6_20240408.xlsm | E16: DISTRACOM S.A. | F16: 1 | G16: 0.012 | K16: 0.01

Sheet CSV (hidden)
A1: Tipo | B1: Cantidad | C1: Código de unidad de medida | D1: Precio base | E1: Divisa | F1: Descripción | G1: Mercancía
A2: Ítem | B2: "1" | C2: Und | D2: "0,3908" | E2: COP | F2: "com02---Antioquia-La Estrella"

Sheet CSV_concatenado (hidden)

Sheet Cuadros (hidden)
A1: ID Cuadro>>>>>>> | J1: 1 | AK1: 1c | AT1: 2 | BJ1: 3 | BW1: 4 | CJ1: 5 | DB1: 6 | DS1: 7 | EJ1: 7c | EY1: 8 | FS1: 9 | GU1: 10 | HY1: 11 | JB1: 12 | JV1: 13 | KD1: 14 | KM1: 21
A2: Descripción | J2: Categoría A y seg3 | AK2: Categoría C | AT2: Categoría D | BJ2: Completitud_resCot | BW2: Completitud_resCot | CJ2: Galones estimados | DB2: Completitud_Cot | DS2: Completitud_Cot | EJ2: Completitud_Cot | EY2: Proveedor Hoja Cotización | FS2: Encabezado Resumen cotización | GU2: Encabezado cotización | HY2: Encabezado resultados | JB2: Encabezado TABLAS resultados | JV2: Encabezado TABLAS resultados | KD2: Encabezado TABLAS resultados | KM2: Menu de navegación
A3: Observaciones | J3: para el segmento tres en la rescotizacion se le agregan unas columnas de más | AT3: Solo se pide el presupuesto | BJ3: Aplica para CatA | BW3: Aplica para seg3 | CJ3: Aplica para todas las categorias | DB3: Aplica para CatA | DS3: Aplica para seg3 | EJ3: Aplica para CatC | EY3: Aplica para todos las caracterizaciones | FS3: Aplica para todo | GU3: Aplica para todo | HY3: Aplica para todo | JB3: Aplica CatA | JV3: Aplica seg3 | KD3: Aplica CatC | KM3: General
A4: Frase y/o palabra clave | J4: paq | AK4: paq | AT4: C | BJ4: CatA | BW4: seg3 | CJ4: Todo | DB4: CatA | DS4: CatA | EJ4: paq | EY4: Todos | FS4: Todos | GU4: Todos | HY4: Todos | JB4: CatA | JV4: seg3 | KD4: CatC | KM4: Todos
A5: Filas | J5: 2 | AK5: 2 | AT5: 1 | BJ5: 2 | BW5: 2 | CJ5: 1 | DB5: 2 | DS5: 2 | EJ5: 2 | EY5: 1 | FS5: 4 | GU5: 4 | HY5: 4 | JB5: 3 | JV5: 3 | KD5: 3 | KM5: 23
A6: Columnas | J6: 0 | AK6: 0 | AT6: 0 | BJ6: 0
J8: x | K8: x | L8: x | M8: x | N8: x | O8: x | P8: x | Q8: x | R8: x | S8: x | T8: x | U8: x | V8: x | W8: x | X8: x | Y8: x | Z8: x | AA8: x | AB8: x | AC8: x | AD8: x | AE8: x | AF8: x | AK8: x | AL8: x | AM8: x | AN8: x | AO8: x | AT8: x | AU8: x | AV8: x | AW8: x | AX8: x | AY8: x | AZ8: x | BA8: x | BB8: x | BJ8: x | BK8: x | BL8: x | BM8: x | BN8: x | BO8: x | BW8: x | BX8: x | BY8: x | BZ8: x | CA8: x | CB8: x | CJ8: x | CK8: x | CL8: x | CM8: x | CN8: x | CO8: x | CP8: x | CQ8: x | CR8: x | CS8: x | CT8: x | CU8: x | DB8: x | DC8: x | DD8: x | DE8: x | DF8: x | DG8: x | DH8: x | DI8: x | DJ8: x | DK8: x | DL8: x | DM8: x | DS8: x | DT8: x | DU8: x | DV8: x | DW8: x | DX8: x | DY8: x | DZ8: x | EA8: x | EB8: x | EC8: x | ED8: x | EE8: x | EF8: x | EG8: x | EJ8: x | EK8: x | EL8: x | EM8: x | EN8: x | EO8: x | EP8: x | EQ8: x | EY8: x | EZ8: x | FA8: x | FB8: x | FC8: x | FD8: x | FE8: x | FF8: x | FG8: x | FH8: x | FI8: x | FJ8: x | FK8: x | FS8: x | FT8: x | FU8: x | FV8: x | FW8: x | FX8: x | FY8: x | FZ8: x | GA8: x | GB8: x | GC8: x | GD8: x | GE8: x | GF8: x | GG8: x | GH8: x | GI8: x | GJ8: x | GK8: x | GL8: x | GM8: x | GN8: x | GO8: x | GU8: x | GV8: x | GW8: x | GX8: x | GY8: x | GZ8: x | HA8: x | HB8: x | HC8: x | HD8: x | HE8: x | HF8: x | HG8: x | HH8: x | HI8: x | HJ8: x | HK8: x | HL8: x | HM8: x | HN8: x | HO8: x | HP8: x | HQ8: x | HY8: x | HZ8: x | IA8: x | IB8: x | IC8: x | ID8: x | IE8: x | IF8: x | IG8: x | IH8: x | II8: x | IJ8: x | IK8: x | IL8: x | IM8: x | IN8: x | IO8: x | IP8: x | IQ8: x | IR8: x | IS8: x | IT8: x | IU8: x | JB8: x | JC8: x | JD8: x | JE8: x | JF8: x | JG8: x | JH8: x | JI8: x | JJ8: x | JK8: x | JL8: x | JM8: x | JN8: x | JO8: x | JP8: x | JV8: x | JW8: x | JX8: x | JY8: x | KD8: x | KE8: x | KF8: x | KG8: x | KH8: x | KI8: x | KJ8: x | KM8: x
J9: Ítem | K9: Departamento | O9: Ciudad / Municipio | S9: Ciudad referencia | W9: Capital / Cobertura | AA9: Margen Mayorista | AD9: Margen Minorista | AK9: Ítem | AL9: Porcentaje de comisión más baja | AT9: Presupuesto | BJ9: Descuento integral más alto | BM9: Descuento extra más alto | BW9: Descuento integral más alto | BZ9: Flete más bajo | CJ9: Galones estimados | DB9: Descuento Integral Prov | DE9: Descuento Margen Mayorista | DH9: Descuento Margen Minorista | DK9: Descuento Extra | DS9: Descuento Integral Prov | DV9: Descuento Margen Mayorista | DY9: Descuento Margen Minorista | EB9: Valor Flete | EE9: Descuento Flete (%) | EJ9: Porcentaje máximo de comisión del proveedor | EY9: Proveedor | FS9: RESUMEN DE COTIZACIÓN | GU9: COTIZACIÓN | HY9: CONSOLIDACIÓN Y RESULTADOS | JB9: DESCUENTO INTEGRAL | JG9: DESCUENTO EXTRA | JL9: CANTIDAD DE ESTACIONES DE SERVICIOS | JV9: DESCUENTO INTEGRAL | JX9: VALOR FLETE | KE9: MENOR COMISIÓN | KH9: CANTIDAD DE ESTACIONES DE SERVICIOS | KM9: MENÚ DE NAVEGACIÓN
J10: =+IF(J9="Ítem",1,J9+1) -> 1 | S10: =+IF(Segmento!$O$2="CatA",IFERROR(VLOOKUP(O10,Cat_A_consolidado!$H:$J,2,FALSE),""),IFERROR(VLOOKUP(O10,'Seg3'!$H:$J,2,FALSE),"")) ->  | W10: =IF(Segmento!$O$2="CatA",IFERROR(VLOOKUP(O10,Cat_A_consolidado!$H:$J,3,FALSE),""),IFERROR(VLOOKUP(O10,'Seg3'!$H:$J,3,FALSE),"")) ->  | AA10: =IF(Segmento!$O$2="CatA",IFERROR(VLOOKUP(O10,Cat_A_consolidado!$H:$AD,6,FALSE),""),IFERROR(VLOOKUP(O10,'Seg3'!$H:$AF,6,FALSE),"")) ->  | AD10: =IF(Segmento!$O$2="CatA",IFERROR(VLOOKUP(O10,Cat_A_consolidado!$H:$AD,7,FALSE),""),IFERROR(VLOOKUP(O10,'Seg3'!$H:$AF,7,FALSE),"")) ->  | AK10: =+IF(AK9="Ítem",1,AK9+1) -> 1 | KD10: Ítem
FS11: Acuerdo Marco para el suministro de Combustible Nacional III | GU11: Acuerdo Marco para el suministro de Combustible Nacional III | HY11: Acuerdo Marco para el suministro de Combustible Nacional III | KD11: 1
KM12: ENTIDAD COMPRADORA
KM14: Elección Categoría/Segmento
KM16: Solicitud de Cotización
KM18: Resumen Cotización
KM20: Ver Hoja Cotización
KM22: Consolidar respuestas
KM24: PROVEEDOR
KM26: Cotización
KM28: ADMINISTRACIÓN SIMULADOR
KM30: Tabla Maestra de precios

Sheet Listas (hidden)
A1: Proveedor | E1: Departamento CatA | F1: Departamento seg3 | H1: Municipios CatA | Z1: Municipios seg3 | AF1: Contraseñas
A2: CatA | B2: CatC | C2: seg3 | E2: Cundinamarca | F2: Cundinamarca | H2: Cundinamarca | I2: Antioquia | J2: Santander | K2: Atlántico | L2: Bolívar | M2: Boyacá | N2: Caldas | O2: Córdoba | P2: Huila | Q2: Magdalena | R2: Meta | S2: Quindío | T2: Risaralda | U2: Sucre | V2: Tolima | W2: Valle del Cauca | Z2: Cundinamarca | AA2: Antioquia | AF2: Rol | AG2: Contraseña
A3: GRUPO EDS AUTOGAS SAS | B3: PLUXEE COLOMBIA S.A.S | C3: GRUPO EDS AUTOGAS SAS | E3: Antioquia | F3: Antioquia | H3: Bogotá D.C | I3: Medellín | J3: Bucaramanga | K3: Barranquilla | L3: Cartagena | M3: Tunja | N3: Manizales | O3: Montería | P3: Neiva | Q3: Santa Marta | R3: Villavicencio | S3: Armenia | T3: Pereira | U3: Sincelejo | V3: Ibagué | W3: Cali | Z3: Bogotá D.C | AA3: Medellín | AF3: Entidad_compradora | AG3: =IF(TM_Precio_Ciu_Principales!G38<>"",TM_Precio_Ciu_Principales!G38,"") -> 123
A4: GLOBOLLANTAS S.A.S. | B4: BIG PASS S.A.S. | C4: DISTRACOM S.A. | E4: Santander | H4: Chía | I4: Caldas | J4: Girón | K4: Soledad | T4: Dosquebradas | W4: Palmira | Z4: Cajicá | AA4: Caldas | AF4: Proveedor | AG4: =IF(TM_Precio_Ciu_Principales!G39<>"",TM_Precio_Ciu_Principales!G39,"") -> 
A5: ORGANIZACIÓN TERPEL S.A | B5: DISTRACOM S.A. | E5: Atlántico | H5: Cota | I5: La Estrella | K5: Malambo | W5: Jamundí | Z5: Chía | AA5: La Estrella | AF5: Administración | AG5: =IF(TM_Precio_Ciu_Principales!G40<>"",TM_Precio_Ciu_Principales!G40,"") -> 123CN
A6: DISTRACOM S.A. | E6: Bolívar | H6: Facatativá | I6: Sabaneta | K6: Galapa | W6: Yumbo | Z6: Cota | AA6: Sabaneta
A7: COESCO COLOMBIA S.A.S. | E7: Boyacá | H7: Madrid | I7: Itagüí | W7: x | Z7: Facatativá | AA7: Itagüí
E8: Caldas | H8: Mosquera | I8: Envigado | Z8: Funza | AA8: Envigado
E9: Córdoba | H9: Soacha | I9: Bello | Z9: La Calera | AA9: Bello
E10: Huila | H10: Sibaté | I10: Girardota | Z10: Madrid | AA10: Copacabana
E11: Magdalena | H11: Sopó | Z11: Mosquera | AA11: Girardota
E12: Meta | Z12: Soacha | AA12: Barbosa
E13: Quindío | Z13: Sibaté
E14: Risaralda | Z14: Sopó
E15: Sucre | Z15: Tocancipá
E16: Tolima | Z16: Zipaquirá
E17: Valle del Cauca

Sheet Validaciones (hidden)
A1: Celdas Obligatorias
A2: Etapa | B2: Proceso/hoja | C2: Celda Obligatoria | D2: Tipo | E2: Referencia celda /Columna Tabla | F2: Referencia Merge /referencia while Tabla | G2: Mensaje | H2: Observaciones | I2: Categoria
A3: 1 | B3: SolCotizacion | C3: SI | D3: Normal | E3: $K$12 | F3: $K$12:$S$12 | G3: Nombre de la Entidad | I3: CatA,seg3,CatC
A4: 1 | B4: SolCotizacion | C4: SI | D4: Normal | E4: $K$14 | F4: $K$14:$S$14 | G4: Dirección de la Entidad | I4: CatA,seg3,CatC
A5: 1 | B5: SolCotizacion | C5: SI | D5: Normal | E5: $K$16 | F5: $K$16:$S$16 | G5: Nombre del funcionario comprador | I5: CatA,seg3,CatC
A6: 1 | B6: SolCotizacion | C6: SI | D6: Normal | E6: $K$18 | F6: $K$18:$S$18 | G6: Correo de comprador | I6: CatA,seg3,CatC
A7: 1 | B7: SolCotizacion | C7: SI | D7: Normal | E7: $Y$12 | F7: $Y$12:$AB$12 | G7: Nit | I7: CatA,seg3,CatC
A8: 1 | B8: SolCotizacion | C8: SI | D8: Normal | E8: $Y$14 | F8: $Y$14:$AB$14 | G8: Municipio/Dirección | I8: CatA,seg3,CatC
A9: 1 | B9: SolCotizacion | C9: SI | D9: Normal | E9: $Y$16 | F9: $Y$16:$AB$16 | G9: Teléfono de contacto | I9: CatA,seg3,CatC
A10: 1 | B10: SolCotizacion | C10: SI | D10: Normal | E10: $J$22 | F10: $J$22:$M$22 | G10: Fecha creación solicitud cotización | I10: CatA,seg3,CatC
A11: 1 | B11: SolCotizacion | C11: SI | D11: Normal | E11: $R$22 | F11: $R$22:$T$22 | G11: Fecha generación OC (Orden de compra) | I11: CatA,seg3,CatC
A12: 1 | B12: SolCotizacion | C12: SI | D12: Normal | E12: $Y$22 | F12: $Y$22:$AB$22 | G12: Fecha vencimiento OC (Orden de compra) | I12: CatA,seg3,CatC
A13: 1 | B13: SolCotizacion | C13: SI | D13: Normal | E13: $I$29 | F13: $I$29:$N$29 | G13: Presupuesto | I13: CatA,seg3,CatC
A14: 1 | B14: SolCotizacion | C14: SI | D14: Tabla | E14: k | F14: f | G14: Ciudad / Municipio | H14: paq | I14: CatA,seg3
A15: 1 | B15: SolCotizacion | C15: SI | D15: Tabla | E15: g | F15: f | G15: Descripción gravamen | H15: grav | I15: CatA,seg3,CatC | J15: Tiene una excepción en el código al poderse dejar sin gravamenes
A16: 1 | B16: SolCotizacion | C16: SI | D16: Tabla | E16: z | F16: f | G16: Porcentaje gravamen | H16: grav | I16: CatA,seg3,CatC | J16: Tiene una excepción en el código al poderse dejar sin gravamenes
A22: 1 | B22: SolCotizacion | C22: SI | D22: Normal | E22: $R$24 | F22: $R$24:$T$24 | G22: Vigencia estimada OC (Orden de compra) | I22: CatA,seg3,CatC

Sheet TM_Precio_Ciu_Principales (hidden)
F1: TABLA PRECIOS PROMEDIOS
F3: Acuerdo Marco para el suministro de Combustible Nacional III
A4: =+Segmento!A4 -> Versión: 7 23/05/2024
A5: MENÚ DE NAVEGACIÓN
A8: ENTIDAD COMPRADORA | F8: Fecha de actualización: | G8: 2024-07-23
F9: Precio promedio por galón ciudades principales
A10: Elección Categoría/Segmento
F11: Ciudad de referencia | G11: Precio promedio
A12: Solicitud de Cotización | F12: Bogotá D.C | G12: 12783
F13: Medellín | G13: 12755
A14: Resumen Cotización | F14: Bucaramanga | G14: 12549
F15: Barranquilla | G15: 12458
A16: Ver Hoja Cotización | F16: Cartagena | G16: 12420
F17: Tunja | G17: 12872
A18: Consolidar respuestas | F18: Manizales | G18: 12803
F19: Montería | G19: 12670
A20: PROVEEDOR | F20: Neiva | G20: 12793
F21: Santa Marta | G21: 12513
A22: Cotización | F22: Villavicencio | G22: 12883
F23: Armenia | G23: 12764
A24: ADMINISTRACIÓN SIMULADOR | F24: Pereira | G24: 12797
F25: Sincelejo | G25: 12576
A26: Tabla Maestra de precios | F26: Ibagué | G26: 12694
F27: Cali | G27: 12855
F30: Nota: El precio promedio se calcula con base a la información de la CREG con la siguiente formula: ((Gasolina + ACPM)/2)
F32: Consulte aquí la URL CREG en la que se especifica los precios de los combustibles de las ciudades principales
F36: Parametrización de accesos
F37: Rol | G37: Contraseña
F38: Entidad_compradora | G38: 123
F39: Proveedor
F40: Administracion | G40: 123CN
F44: Parametrización de Márgenes
F45: Margen | G45: Valor
F46: Margen Mayorista | G46: 556.97
F47: Margen Minorista | G47: 1044.72

Sheet Cat_A_consolidado (hidden)
M10: Precio del Combustible (Gasolina Corriente y Diésel -ACPM-) | O10: GRUPO EDS AUTOGAS SAS | V10: GLOBOLLANTAS S.A.S. | AC10: ORGANIZACIÓN TERPEL S.A | AJ10: DISTRACOM S.A. | AQ10: COESCO COLOMBIA S.A.S.
M11: Margen Mayorista | N11: Margen Minorista
F12: Categoría | G12: Departamento | H12: Ciudad / Municipio | I12: Precio de Referencia MinEnergia ($/Gal) Gasolina Corriente - Diésel ACPM) | J12: Tipo | K12: latitud pendiente | L12: longitud pendiente | M12: Valor en pesos ($) del margen vigente MinEnergia | N12: Valor en pesos ($) del margen vigente MinEnergia | O12: Porcentaje (%) descuento inicial Ofrecido - Margen Mayorista | P12: Descuento inicial en pesos Ofrecido - Margen Mayorista | Q12: Porcentaje (%) descuento inicial Ofrecido - Margen Minorista | R12: Descuento inicial en pesos Ofrecido - Margen Minorista | S12: Porcentaje total del descuento (%) | T12: Valor total del descuento en pesos | U12: Porcentaje (%) descuento inicial Ofrecido sobre el precio de Tablero en la EDS | V12: Porcentaje (%) descuento inicial Ofrecido - Margen Mayorista | W12: Descuento inicial en pesos Ofrecido - Margen Mayorista | X12: Porcentaje (%) descuento inicial Ofrecido - Margen Minorista | Y12: Descuento inicial en pesos Ofrecido - Margen Minorista | Z12: Porcentaje total del descuento (%) | AA12: Valor total del descuento en pesos | AB12: Porcentaje (%) descuento inicial Ofrecido sobre el precio de Tablero en la EDS | AC12: Porcentaje (%) descuento inicial Ofrecido - Margen Mayorista | AD12: Descuento inicial en pesos Ofrecido - Margen Mayorista | AE12: Porcentaje (%) descuento inicial Ofrecido - Margen Minorista | AF12: Descuento inicial en pesos Ofrecido - Margen Minorista | AG12: Porcentaje total del descuento (%) | AH12: Valor total del descuento en pesos | AI12: Porcentaje (%) descuento inicial Ofrecido sobre el precio de Tablero en la EDS | AJ12: Porcentaje (%) descuento inicial Ofrecido - Margen Mayorista | AK12: Descuento inicial en pesos Ofrecido - Margen Mayorista | AL12: Porcentaje (%) descuento inicial Ofrecido - Margen Minorista | AM12: Descuento inicial en pesos Ofrecido - Margen Minorista | AN12: Porcentaje total del descuento (%) | AO12: Valor total del descuento en pesos | AP12: Porcentaje (%) descuento inicial Ofrecido sobre el precio de Tablero en la EDS | AQ12: Porcentaje (%) descuento inicial Ofrecido - Margen Mayorista | AR12: Descuento inicial en pesos Ofrecido - Margen Mayorista | AS12: Porcentaje (%) descuento inicial Ofrecido - Margen Minorista | AT12: Descuento inicial en pesos Ofrecido - Margen Minorista | AU12: Porcentaje total del descuento (%) | AV12: Valor total del descuento en pesos | AW12: Porcentaje (%) descuento inicial Ofrecido sobre el precio de Tablero en la EDS
K13: latitud pendiente | L13: longitud pendiente
F14: A | G14: Cundinamarca | H14: Bogotá D.C | I14: Bogotá D.C | J14: Capital | M14: =+TM_Precio_Ciu_Principales!$G$46 -> 556.97 | N14: =+TM_Precio_Ciu_Principales!$G$47 -> 1044.72 | O14: 0.165 | P14: =$M$14*O14 -> 91.90005 | Q14: 0.552 | R14: =Q14*$N$14 -> 576.68544 | S14: =T14/SUM($M$14:$N$14) -> 0.4174250261 | T14: =P14+R14 -> 668.58549 | U14: 0.0272 | W14: =$M$14*V14 -> 0 | Y14: =X14*$N$14 -> 0 | Z14: =AA14/SUM($M$14:$N$14) -> 0 | AA14: =W14+Y14 -> 0 | AC14: 0.01 | AD14: =$M$14*AC14 -> 5.5697 | AE14: 0.2 | AF14: =AE14*$N$14 -> 208.944 | AG14: =AH14/SUM($M$14:$N$14) -> 0.1339295994 | AH14: =AD14+AF14 -> 214.5137 | AI14: 0.01 | AJ14: 0.1205 | AK14: =$M$14*AJ14 -> 67.114885 | AL14: 0.5758 | AM14: =AL14*$N$14 -> 601.549776 | AN14: =AO14/SUM($M$14:$N$14) -> 0.4174744557 | AO14: =AK14+AM14 -> 668.664661 | AP14: 0.04 | AQ14: 0.02 | AR14: =$M$14*AQ14 -> 11.1394 | AS14: 0.03 | AT14: =AS14*$N$14 -> 31.3416 | AU14: =AV14/SUM($M$14:$N$14) -> 0.02652261049 | AV14: =AR14+AT14 -> 42.481 | AW14: 0.05
F15: A | G15: Antioquia | H15: Medellín | I15: Medellín | J15: Capital | M15: =+TM_Precio_Ciu_Principales!$G$46 -> 556.97 | N15: =+TM_Precio_Ciu_Principales!$G$47 -> 1044.72 | O15: 0.172 | P15: =$M$15*O15 -> 95.79884 | Q15: 0.5022 | R15: =Q15*$N$15 -> 524.658384 | S15: =T15/SUM($M$15:$N$15) -> 0.3873765985 | T15: =P15+R15 -> 620.457224 | U15: 0.0253 | W15: =$M$15*V15 -> 0 | Y15: =X15*$N$15 -> 0 | Z15: =AA15/SUM($M$15:$N$15) -> 0 | AA15: =W15+Y15 -> 0 | AC15: 0.01 | AD15: =$M$15*AC15 -> 5.5697 | AE15: 0.2 | AF15: =AE15*$N$15 -> 208.944 | AG15: =AH15/SUM($M$15:$N$15) -> 0.1339295994 | AH15: =AD15+AF15 -> 214.5137 | AI15: 0.01 | AJ15: 0.1048 | AK15: =$M$15*AJ15 -> 58.370456 | AL15: 0.539 | AM15: =AL15*$N$15 -> 563.10408 | AN15: =AO15/SUM($M$15:$N$15) -> 0.3880117476 | AO15: =AK15+AM15 -> 621.474536 | AP15: 0.04 | AQ15: 0.05 | AR15: =$M$15*AQ15 -> 27.8485 | AS15: 0.04 | AT15: =AS15*$N$15 -> 41.7888 | AU15: =AV15/SUM($M$15:$N$15) -> 0.04347738951 | AV15: =AR15+AT15 -> 69.6373 | AW15: 0.05
F16: A | G16: Santander | H16: Bucaramanga | I16: Bucaramanga | J16: Capital | M16: =+TM_Precio_Ciu_Principales!$G$46 -> 556.97 | N16: =+TM_Precio_Ciu_Principales!$G$47 -> 1044.72 | P16: =$M$16*O16 -> 0 | R16: =Q16*$N$16 -> 0 | S16: =T16/SUM($M$16:$N$16) -> 0 | T16: 0 | W16: =$M$16*V16 -> 0 | Y16: =X16*$N$16 -> 0 | Z16: =AA16/SUM($M$16:$N$16) -> 0 | AA16: 0 | AC16: 0.01 | AD16: =$M$16*AC16 -> 5.5697 | AE16: 0.2 | AF16: =AE16*$N$16 -> 208.944 | AG16: =AH16/SUM($M$16:$N$16) -> 0.1339295994 | AH16: 214.5137 | AI16: 0.01 | AJ16: 0.12 | AK16: =$M$16*AJ16 -> 66.8364 | AL16: 0.55 | AM16: =AL16*$N$16 -> 574.596 | AN16: =AO16/SUM($M$16:$N$16) -> 0.4004722512 | AO16: 641.4324 | AP16: 0.04 | AQ16: 0.04 | AR16: =$M$16*AQ16 -> 22.2788 | AS16: 0.04 | AT16: =AS16*$N$16 -> 41.7888 | AU16: =AV16/SUM($M$16:$N$16) -> 0.04 | AV16: 64.0676 | AW16: 0.05
F17: A | G17: Atlántico | H17: Barranquilla | I17: Barranquilla | J17: Capital | M17: =+TM_Precio_Ciu_Principales!$G$46 -> 556.97 | N17: =+TM_Precio_Ciu_Principales!$G$47 -> 1044.72 | P17: =$M$17*O17 -> 0 | R17: =Q17*$N$17 -> 0 | S17: =T17/SUM($M$17:$N$17) -> 0 | T17: 0 | W17: =$M$17*V17 -> 0 | Y17: =X17*$N$17 -> 0 | Z17: =AA17/SUM($M$17:$N$17) -> 0 | AA17: 0 | AC17: 0.01 | AD17: =$M$17*AC17 -> 5.5697 | AE17: 0.2 | AF17: =AE17*$N$17 -> 208.944 | AG17: =AH17/SUM($M$17:$N$17) -> 0.1339295994 | AH17: 214.5137 | AI17: 0.01 | AJ17: 0.11 | AK17: =$M$17*AJ17 -> 61.2667 | AL17: 0.367 | AM17: =AL17*$N$17 -> 383.41224 | AN17: =AO17/SUM($M$17:$N$17) -> 0.2776310897 | AO17: 444.67894 | AP17: 0.04 | AQ17: 0.05 | AR17: =$M$17*AQ17 -> 27.8485 | AS17: 0.05 | AT17: =AS17*$N$17 -> 52.236 | AU17: =AV17/SUM($M$17:$N$17) -> 0.05 | AV17: 80.0845 | AW17: 0.05
F18: A | G18: Bolívar | H18: Cartagena | I18: Cartagena | J18: Capital | M18: =+TM_Precio_Ciu_Principales!$G$46 -> 556.97 | N18: =+TM_Precio_Ciu_Principales!$G$47 -> 1044.72 | P18: =$M$18*O18 -> 0 | R18: =Q18*$N$18 -> 0 | S18: =T18/SUM($M$18:$N$18) -> 0 | T18: 0 | W18: =$M$18*V18 -> 0 | Y18: =X18*$N$18 -> 0 | Z18: =AA18/SUM($M$18:$N$18) -> 0 | AA18: 0 | AC18: 0.01 | AD18: =$M$18*AC18 -> 5.5697 | AE18: 0.2 | AF18: =AE18*$N$18 -> 208.944 | AG18: =AH18/SUM($M$18:$N$18) -> 0.1339295994 | AH18: 214.5137 | AI18: 0.01 | AJ18: 0.1 | AK18: =$M$18*AJ18 -> 55.697 | AL18: 0.4462 | AM18: =AL18*$N$18 -> 466.154064 | AN18: =AO18/SUM($M$18:$N$18) -> 0.3258127753 | AO18: 521.851064 | AP18: 0.04 | AQ18: 0.05 | AR18: =$M$18*AQ18 -> 27.8485 | AS18: 0.07 | AT18: =AS18*$N$18 -> 73.1304 | AU18: =AV18/SUM($M$18:$N$18) -> 0.06304522099 | AV18: 100.9789 | AW18: 0.05
F19: A | G19: Boyacá | H19: Tunja | I19: Tunja | J19: Capital | M19: =+TM_Precio_Ciu_Principales!$G$46 -> 556.97 | N19: =+TM_Precio_Ciu_Principales!$G$47 -> 1044.72 | P19: =$M$19*O19 -> 0 | R19: =Q19*$N$19 -> 0 | S19: =T19/SUM($M$19:$N$19) -> 0 | T19: 0 | W19: =$M$19*V19 -> 0 | Y19: =X19*$N$19 -> 0 | Z19: =AA19/SUM($M$19:$N$19) -> 0 | AA19: 0 | AC19: 0.01 | AD19: =$M$19*AC19 -> 5.5697 | AE19: 0.2 | AF19: =AE19*$N$19 -> 208.944 | AG19: =AH19/SUM($M$19:$N$19) -> 0.1339295994 | AH19: 214.5137 | AI19: 0.01 | AJ19: 0.1 | AK19: =$M$19*AJ19 -> 55.697 | AL19: 0.36 | AM19: =AL19*$N$19 -> 376.0992 | AN19: =AO19/SUM($M$19:$N$19) -> 0.2695878728 | AO19: 431.7962 | AP19: 0.04 | AR19: =$M$19*AQ19 -> 0 | AT19: =AS19*$N$19 -> 0 | AU19: =AV19/SUM($M$19:$N$19) -> 0 | AV19: 0
F20: A | G20: Caldas | H20: Manizales | I20: Manizales | J20: Capital | M20: =+TM_Precio_Ciu_Principales!$G$46 -> 556.97 | N20: =+TM_Precio_Ciu_Principales!$G$47 -> 1044.72 | P20: =$M$20*O20 -> 0 | R20: =Q20*$N$20 -> 0 | S20: =T20/SUM($M$20:$N$20) -> 0 | T20: 0 | W20: =$M$20*V20 -> 0 | Y20: =X20*$N$20 -> 0 | Z20: =AA20/SUM($M$20:$N$20) -> 0 | AA20: 0 | AC20: 0.01 | AD20: =$M$20*AC20 -> 5.5697 | AE20: 0.2 | AF20: =AE20*$N$20 -> 208.944 | AG20: =AH20/SUM($M$20:$N$20) -> 0.1339295994 | AH20: 214.5137 | AI20: 0.01 | AJ20: 0.1 | AK20: =$M$20*AJ20 -> 55.697 | AL20: 0.225 | AM20: =AL20*$N$20 -> 235.062 | AN20: =AO20/SUM($M$20:$N$20) -> 0.1815326312 | AO20: 290.759 | AP20: 0.04 | AR20: =$M$20*AQ20 -> 0 | AT20: =AS20*$N$20 -> 0 | AU20: =AV20/SUM($M$20:$N$20) -> 0 | AV20: 0
F21: A | G21: Córdoba | H21: Montería | I21: Montería | J21: Capital | M21: =+TM_Precio_Ciu_Principales!$G$46 -> 556.97 | N21: =+TM_Precio_Ciu_Principales!$G$47 -> 1044.72 | P21: =$M$21*O21 -> 0 | R21: =Q21*$N$21 -> 0 | S21: =T21/SUM($M$21:$N$21) -> 0 | T21: 0 | W21: =$M$21*V21 -> 0 | Y21: =X21*$N$21 -> 0 | Z21: =AA21/SUM($M$21:$N$21) -> 0 | AA21: 0 | AC21: 0.01 | AD21: =$M$21*AC21 -> 5.5697 | AE21: 0.2 | AF21: =AE21*$N$21 -> 208.944 | AG21: =AH21/SUM($M$21:$N$21) -> 0.1339295994 | AH21: 214.5137 | AI21: 0.01 | AJ21: 0.1 | AK21: =$M$21*AJ21 -> 55.697 | AL21: 0.422 | AM21: =AL21*$N$21 -> 440.87184 | AN21: =AO21/SUM($M$21:$N$21) -> 0.3100280579 | AO21: 496.56884 | AP21: 0.04 | AR21: =$M$21*AQ21 -> 0 | AT21: =AS21*$N$21 -> 0 | AU21: =AV21/SUM($M$21:$N$21) -> 0 | AV21: 0
F22: A | G22: Huila | H22: Neiva | I22: Neiva | J22: Capital | M22: =+TM_Precio_Ciu_Principales!$G$46 -> 556.97 | N22: =+TM_Precio_Ciu_Principales!$G$47 -> 1044.72 | P22: =$M$22*O22 -> 0 | R22: =Q22*$N$22 -> 0 | S22: =T22/SUM($M$22:$N$22) -> 0 | T22: 0 | W22: =$M$22*V22 -> 0 | Y22: =X22*$N$22 -> 0 | Z22: =AA22/SUM($M$22:$N$22) -> 0 | AA22: 0 | AC22: 0.01 | AD22: =$M$22*AC22 -> 5.5697 | AE22: 0.2 | AF22: =AE22*$N$22 -> 208.944 | AG22: =AH22/SUM($M$22:$N$22) -> 0.1339295994 | AH22: 214.5137 | AI22: 0.01 | AJ22: 0.12 | AK22: =$M$22*AJ22 -> 66.8364 | AL22: 0.2623 | AM22: =AL22*$N$22 -> 274.030056 | AN22: =AO22/SUM($M$22:$N$22) -> 0.2128167473 | AO22: 340.866456 | AP22: 0.04 | AQ22: 0.04 | AR22: =$M$22*AQ22 -> 22.2788 | AS22: 0.05 | AT22: =AS22*$N$22 -> 52.236 | AU22: =AV22/SUM($M$22:$N$22) -> 0.04652261049 | AV22: 74.5148 | AW22: 0.05
F23: A | G23: Magdalena | H23: Santa Marta | I23: Santa Marta | J23: Capital | M23: =+TM_Precio_Ciu_Principales!$G$46 -> 556.97 | N23: =+TM_Precio_Ciu_Principales!$G$47 -> 1044.72 | P23: =$M$23*O23 -> 0 | R23: =Q23*$N$23 -> 0 | S23: =T23/SUM($M$23:$N$23) -> 0 | T23: 0 | W23: =$M$23*V23 -> 0 | Y23: =X23*$N$23 -> 0 | Z23: =AA23/SUM($M$23:$N$23) -> 0 | AA23: 0 | AC23: 0.01 | AD23: =$M$23*AC23 -> 5.5697 | AE23: 0.2 | AF23: =AE23*$N$23 -> 208.944 | AG23: =AH23/SUM($M$23:$N$23) -> 0.1339295994 | AH23: 214.5137 | AI23: 0.01 | AJ23: 0.1 | AK23: =$M$23*AJ23 -> 55.697 | AL23: 0.425 | AM23: =AL23*$N$23 -> 444.006 | AN23: =AO23/SUM($M$23:$N$23) -> 0.311984841 | AO23: 499.703 | AP23: 0.04 | AQ23: 0.05 | AR23: =$M$23*AQ23 -> 27.8485 | AS23: 0.05 | AT23: =AS23*$N$23 -> 52.236 | AU23: =AV23/SUM($M$23:$N$23) -> 0.05 | AV23: 80.0845 | AW23: 0.05
F24: A | G24: Meta | H24: Villavicencio | I24: Villavicencio | J24: Capital | M24: =+TM_Precio_Ciu_Principales!$G$46 -> 556.97 | N24: =+TM_Precio_Ciu_Principales!$G$47 -> 1044.72 | P24: =$M$24*O24 -> 0 | R24: =Q24*$N$24 -> 0 | S24: =T24/SUM($M$24:$N$24) -> 0 | T24: 0 | W24: =$M$24*V24 -> 0 | Y24: =X24*$N$24 -> 0 | Z24: =AA24/SUM($M$24:$N$24) -> 0 | AA24: 0 | AC24: 0.01 | AD24: =$M$24*AC24 -> 5.5697 | AE24: 0.2 | AF24: =AE24*$N$24 -> 208.944 | AG24: =AH24/SUM($M$24:$N$24) -> 0.1339295994 | AH24: 214.5137 | AI24: 0.01 | AJ24: 0.11 | AK24: =$M$24*AJ24 -> 61.2667 | AL24: 0.225 | AM24: =AL24*$N$24 -> 235.062 | AN24: =AO24/SUM($M$24:$N$24) -> 0.1850100207 | AO24: 296.3287 | AP24: 0.04 | AR24: =$M$24*AQ24 -> 0 | AT24: =AS24*$N$24 -> 0 | AU24: =AV24/SUM($M$24:$N$24) -> 0 | AV24: 0
F25: A | G25: Quindío | H25: Armenia | I25: Armenia | J25: Capital | M25: =+TM_Precio_Ciu_Principales!$G$46 -> 556.97 | N25: =+TM_Precio_Ciu_Principales!$G$47 -> 1044.72 | P25: =$M$25*O25 -> 0 | R25: =Q25*$N$25 -> 0 | S25: =T25/SUM($M$25:$N$25) -> 0 | T25: 0 | W25: =$M$25*V25 -> 0 | Y25: =X25*$N$25 -> 0 | Z25: =AA25/SUM($M$25:$N$25) -> 0 | AA25: 0 | AC25: 0.01 | AD25: =$M$25*AC25 -> 5.5697 | AE25: 0.2 | AF25: =AE25*$N$25 -> 208.944 | AG25: =AH25/SUM($M$25:$N$25) -> 0.1339295994 | AH25: 214.5137 | AI25: 0.01 | AJ25: 0.1 | AK25: =$M$25*AJ25 -> 55.697 | AL25: 0.265 | AM25: =AL25*$N$25 -> 276.8508 | AN25: =AO25/SUM($M$25:$N$25) -> 0.2076230731 | AO25: 332.5478 | AP25: 0.04 | AQ25: 0.04 | AR25: =$M$25*AQ25 -> 22.2788 | AS25: 0.03 | AT25: =AS25*$N$25 -> 31.3416 | AU25: =AV25/SUM($M$25:$N$25) -> 0.03347738951 | AV25: 53.6204 | AW25: 0.05
F26: A | G26: Risaralda | H26: Pereira | I26: Pereira | J26: Capital | M26: =+TM_Precio_Ciu_Principales!$G$46 -> 556.97 | N26: =+TM_Precio_Ciu_Principales!$G$47 -> 1044.72 | P26: =$M$26*O26 -> 0 | R26: =Q26*$N$26 -> 0 | S26: =T26/SUM($M$26:$N$26) -> 0 | T26: 0 | W26: =$M$26*V26 -> 0 | Y26: =X26*$N$26 -> 0 | Z26: =AA26/SUM($M$26:$N$26) -> 0 | AA26: 0 | AC26: 0.01 | AD26: =$M$26*AC26 -> 5.5697 | AE26: 0.2 | AF26: =AE26*$N$26 -> 208.944 | AG26: =AH26/SUM($M$26:$N$26) -> 0.1339295994 | AH26: 214.5137 | AI26: 0.01 | AJ26: 0.1 | AK26: =$M$26*AJ26 -> 55.697 | AL26: 0.2721 | AM26: =AL26*$N$26 -> 284.268312 | AN26: =AO26/SUM($M$26:$N$26) -> 0.2122541266 | AO26: 339.965312 | AP26: 0.04 | AQ26: 0.05 | AR26: =$M$26*AQ26 -> 27.8485 | AS26: 0.04 | AT26: =AS26*$N$26 -> 41.7888 | AU26: =AV26/SUM($M$26:$N$26) -> 0.04347738951 | AV26: 69.6373 | AW26: 0.05
F27: A | G27: Sucre | H27: Sincelejo | I27: Sincelejo | J27: Capital | M27: =+TM_Precio_Ciu_Principales!$G$46 -> 556.97 | N27: =+TM_Precio_Ciu_Principales!$G$47 -> 1044.72 | P27: =$M$27*O27 -> 0 | R27: =Q27*$N$27 -> 0 | S27: =T27/SUM($M$27:$N$27) -> 0 | T27: 0 | W27: =$M$27*V27 -> 0 | Y27: =X27*$N$27 -> 0 | Z27: =AA27/SUM($M$27:$N$27) -> 0 | AA27: 0 | AC27: 0.01 | AD27: =$M$27*AC27 -> 5.5697 | AE27: 0.2 | AF27: =AE27*$N$27 -> 208.944 | AG27: =AH27/SUM($M$27:$N$27) -> 0.1339295994 | AH27: 214.5137 | AI27: 0.01 | AJ27: 0.1 | AK27: =$M$27*AJ27 -> 55.697 | AL27: 0.37 | AM27: =AL27*$N$27 -> 386.5464 | AN27: =AO27/SUM($M$27:$N$27) -> 0.2761104833 | AO27: 442.2434 | AP27: 0.04 | AR27: =$M$27*AQ27 -> 0 | AT27: =AS27*$N$27 -> 0 | AU27: =AV27/SUM($M$27:$N$27) -> 0 | AV27: 0
F28: A | G28: Tolima | H28: Ibagué | I28: Ibagué | J28: Capital | M28: =+TM_Precio_Ciu_Principales!$G$46 -> 556.97 | N28: =+TM_Precio_Ciu_Principales!$G$47 -> 1044.72 | P28: =$M$28*O28 -> 0 | R28: =Q28*$N$28 -> 0 | S28: =T28/SUM($M$28:$N$28) -> 0 | T28: 0 | W28: =$M$28*V28 -> 0 | Y28: =X28*$N$28 -> 0 | Z28: =AA28/SUM($M$28:$N$28) -> 0 | AA28: 0 | AC28: 0.01 | AD28: =$M$28*AC28 -> 5.5697 | AE28: 0.2 | AF28: =AE28*$N$28 -> 208.944 | AG28: =AH28/SUM($M$28:$N$28) -> 0.1339295994 | AH28: 214.5137 | AI28: 0.01 | AJ28: 0.1 | AK28: =$M$28*AJ28 -> 55.697 | AL28: 0.272 | AM28: =AL28*$N$28 -> 284.16384 | AN28: =AO28/SUM($M$28:$N$28) -> 0.2121889005 | AO28: 339.86084 | AP28: 0.04 | AQ28: 0.03 | AR28: =$M$28*AQ28 -> 16.7091 | AS28: 0.03 | AT28: =AS28*$N$28 -> 31.3416 | AU28: =AV28/SUM($M$28:$N$28) -> 0.03 | AV28: 48.0507 | AW28: 0.05
F29: A | G29: Valle Del Cauca | H29: Cali | I29: Cali | J29: Capital | M29: =+TM_Precio_Ciu_Principales!$G$46 -> 556.97 | N29: =+TM_Precio_Ciu_Principales!$G$47 -> 1044.72 | P29: =$M$29*O29 -> 0 | R29: =Q29*$N$29 -> 0 | S29: =T29/SUM($M$29:$N$29) -> 0 | T29: 0 | V29: 0.02 | W29: =$M$29*V29 -> 11.1394 | X29: 0.08 | Y29: =X29*$N$29 -> 83.5776 | Z29: =AA29/SUM($M$29:$N$29) -> 0.05913566296 | AA29: 94.717 | AB29: 0.001 | AC29: 0.01 | AD29: =$M$29*AC29 -> 5.5697 | AE29: 0.2 | AF29: =AE29*$N$29 -> 208.944 | AG29: =AH29/SUM($M$29:$N$29) -> 0.1339295994 | AH29: 214.5137 | AI29: 0.01 | AJ29: 0.1 | AK29: =$M$29*AJ29 -> 55.697 | AL29: 0.293 | AM29: =AL29*$N$29 -> 306.10296 | AN29: =AO29/SUM($M$29:$N$29) -> 0.2258863825 | AO29: 361.79996 | AP29: 0.04 | AQ29: 0.02 | AR29: =$M$29*AQ29 -> 11.1394 | AS29: 0.05 | AT29: =AS29*$N$29 -> 52.236 | AU29: =AV29/SUM($M$29:$N$29) -> 0.03956783148 | AV29: 63.3754 | AW29: 0.05
F30: A | G30: Cundinamarca | H30: Chía | I30: Bogotá D.C | J30: Cobertura | M30: =+TM_Precio_Ciu_Principales!$G$46 -> 556.97 | N30: =+TM_Precio_Ciu_Principales!$G$47 -> 1044.72 | P30: =$M$30*O30 -> 0 | R30: =Q30*$N$30 -> 0 | S30: =T30/SUM($M$30:$N$30) -> 0 | T30: 0 | U30: N/A | W30: =$M$30*V30 -> 0 | Y30: =X30*$N$30 -> 0 | Z30: =AA30/SUM($M$30:$N$30) -> 0 | AA30: 0 | AB30: N/A | AC30: 0.01 | AD30: =$M$30*AC30 -> 5.5697 | AE30: 0.2 | AF30: =AE30*$N$30 -> 208.944 | AG30: =AH30/SUM($M$30:$N$30) -> 0.1339295994 | AH30: 214.5137 | AI30: N/A | AJ30: 0.11 | AK30: =$M$30*AJ30 -> 61.2667 | AL30: 0.5543 | AM30: =AL30*$N$30 -> 579.088296 | AN30: =AO30/SUM($M$30:$N$30) -> 0.3997995842 | AO30: 640.354996 | AP30: N/A | AQ30: 0.05 | AR30: =$M$30*AQ30 -> 27.8485 | AS30: 0.05 | AT30: =AS30*$N$30 -> 52.236 | AU30: =AV30/SUM($M$30:$N$30) -> 0.05 | AV30: 80.0845 | AW30: N/A
F31: A | G31: Cundinamarca | H31: Cota | I31: Bogotá D.C | J31: Cobertura | M31: =+TM_Precio_Ciu_Principales!$G$46 -> 556.97 | N31: =+TM_Precio_Ciu_Principales!$G$47 -> 1044.72 | O31: 0.165 | P31: =$M$31*O31 -> 91.90005 | Q31: 0.5296 | R31: =Q31*$N$31 -> 553.283712 | S31: =T31/SUM($M$31:$N$31) -> 0.4028143786 | T31: 645.183762 | U31: N/A | W31: =$M$31*V31 -> 0 | Y31: =X31*$N$31 -> 0 | Z31: =AA31/SUM($M$31:$N$31) -> 0 | AA31: 0 | AB31: N/A | AC31: 0.01 | AD31: =$M$31*AC31 -> 5.5697 | AE31: 0.2 | AF31: =AE31*$N$31 -> 208.944 | AG31: =AH31/SUM($M$31:$N$31) -> 0.1339295994 | AH31: 214.5137 | AI31: N/A | AJ31: 0.1 | AK31: =$M$31*AJ31 -> 55.697 | AL31: 0.5662 | AM31: =AL31*$N$31 -> 591.520464 | AN31: =AO31/SUM($M$31:$N$31) -> 0.4040841012 | AO31: 647.217464 | AP31: N/A | AR31: =$M$31*AQ31 -> 0 | AT31: =AS31*$N$31 -> 0 | AU31: =AV31/SUM($M$31:$N$31) -> 0 | AV31: 0 | AW31: N/A
F32: A | G32: Cundinamarca | H32: Facatativá | I32: Bogotá D.C | J32: Cobertura | M32: =+TM_Precio_Ciu_Principales!$G$46 -> 556.97 | N32: =+TM_Precio_Ciu_Principales!$G$47 -> 1044.72 | P32: =$M$32*O32 -> 0 | R32: =Q32*$N$32 -> 0 | S32: =T32/SUM($M$32:$N$32) -> 0 | T32: 0 | U32: N/A | W32: =$M$32*V32 -> 0 | Y32: =X32*$N$32 -> 0 | Z32: =AA32/SUM($M$32:$N$32) -> 0 | AA32: 0 | AB32: N/A | AC32: 0.01 | AD32: =$M$32*AC32 -> 5.5697 | AE32: 0.2 | AF32: =AE32*$N$32 -> 208.944 | AG32: =AH32/SUM($M$32:$N$32) -> 0.1339295994 | AH32: 214.5137 | AI32: N/A | AJ32: 0.1 | AK32: =$M$32*AJ32 -> 55.697 | AL32: 0.4224 | AM32: =AL32*$N$32 -> 441.289728 | AN32: =AO32/SUM($M$32:$N$32) -> 0.3102889623 | AO32: 496.986728 | AP32: N/A | AR32: =$M$32*AQ32 -> 0 | AT32: =AS32*$N$32 -> 0 | AU32: =AV32/SUM($M$32:$N$32) -> 0 | AV32: 0 | AW32: N/A
F33: A | G33: Cundinamarca | H33: Madrid | I33: Bogotá D.C | J33: Cobertura | M33: =+TM_Precio_Ciu_Principales!$G$46 -> 556.97 | N33: =+TM_Precio_Ciu_Principales!$G$47 -> 1044.72 | P33: =$M$33*O33 -> 0 | R33: =Q33*$N$33 -> 0 | S33: =T33/SUM($M$33:$N$33) -> 0 | T33: 0 | U33: N/A | W33: =$M$33*V33 -> 0 | Y33: =X33*$N$33 -> 0 | Z33: =AA33/SUM($M$33:$N$33) -> 0 | AA33: 0 | AB33: N/A | AC33: 0.01 | AD33: =$M$33*AC33 -> 5.5697 | AE33: 0.2 | AF33: =AE33*$N$33 -> 208.944 | AG33: =AH33/SUM($M$33:$N$33) -> 0.1339295994 | AH33: 214.5137 | AI33: N/A | AJ33: 0.1 | AK33: =$M$33*AJ33 -> 55.697 | AL33: 0.4124 | AM33: =AL33*$N$33 -> 430.842528 | AN33: =AO33/SUM($M$33:$N$33) -> 0.3037663518 | AO33: 486.539528 | AP33: N/A | AR33: =$M$33*AQ33 -> 0 | AT33: =AS33*$N$33 -> 0 | AU33: =AV33/SUM($M$33:$N$33) -> 0 | AV33: 0 | AW33: N/A
F34: A | G34: Cundinamarca | H34: Mosquera | I34: Bogotá D.C | J34: Cobertura | M34: =+TM_Precio_Ciu_Principales!$G$46 -> 556.97 | N34: =+TM_Precio_Ciu_Principales!$G$47 -> 1044.72 | O34: 0.165 | P34: =$M$34*O34 -> 91.90005 | Q34: 0.5319 | R34: =Q34*$N$34 -> 555.686568 | S34: =T34/SUM($M$34:$N$34) -> 0.404314579 | T34: 647.586618 | U34: N/A | W34: =$M$34*V34 -> 0 | Y34: =X34*$N$34 -> 0 | Z34: =AA34/SUM($M$34:$N$34) -> 0 | AA34: 0 | AB34: N/A | AC34: 0.01 | AD34: =$M$34*AC34 -> 5.5697 | AE34: 0.2 | AF34: =AE34*$N$34 -> 208.944 | AG34: =AH34/SUM($M$34:$N$34) -> 0.1339295994 | AH34: 214.5137 | AI34: N/A | AJ34: 0.1 | AK34: =$M$34*AJ34 -> 55.697 | AL34: 0.5685 | AM34: =AL34*$N$34 -> 593.92332 | AN34: =AO34/SUM($M$34:$N$34) -> 0.4055843016 | AO34: 649.62032 | AP34: N/A | AR34: =$M$34*AQ34 -> 0 | AT34: =AS34*$N$34 -> 0 | AU34: =AV34/SUM($M$34:$N$34) -> 0 | AV34: 0 | AW34: N/A
F35: A | G35: Cundinamarca | H35: Soacha | I35: Bogotá D.C | J35: Cobertura | M35: =+TM_Precio_Ciu_Principales!$G$46 -> 556.97 | N35: =+TM_Precio_Ciu_Principales!$G$47 -> 1044.72 | P35: =$M$35*O35 -> 0 | R35: =Q35*$N$35 -> 0 | S35: =T35/SUM($M$35:$N$35) -> 0 | T35: 0 | U35: N/A | W35: =$M$35*V35 -> 0 | Y35: =X35*$N$35 -> 0 | Z35: =AA35/SUM($M$35:$N$35) -> 0 | AA35: 0 | AB35: N/A | AC35: 0.01 | AD35: =$M$35*AC35 -> 5.5697 | AE35: 0.2 | AF35: =AE35*$N$35 -> 208.944 | AG35: =AH35/SUM($M$35:$N$35) -> 0.1339295994 | AH35: 214.5137 | AI35: N/A | AJ35: 0.11 | AK35: =$M$35*AJ35 -> 61.2667 | AL35: 0.558 | AM35: =AL35*$N$35 -> 582.95376 | AN35: =AO35/SUM($M$35:$N$35) -> 0.4022129501 | AO35: 644.22046 | AP35: N/A | AR35: =$M$35*AQ35 -> 0 | AT35: =AS35*$N$35 -> 0 | AU35: =AV35/SUM($M$35:$N$35) -> 0 | AV35: 0 | AW35: N/A
F36: A | G36: Cundinamarca | H36: Sibaté | I36: Bogotá D.C | J36: Cobertura | M36: =+TM_Precio_Ciu_Principales!$G$46 -> 556.97 | N36: =+TM_Precio_Ciu_Principales!$G$47 -> 1044.72 | P36: =$M$36*O36 -> 0 | R36: =Q36*$N$36 -> 0 | S36: =T36/SUM($M$36:$N$36) -> 0 | T36: 0 | U36: N/A | W36: =$M$36*V36 -> 0 | Y36: =X36*$N$36 -> 0 | Z36: =AA36/SUM($M$36:$N$36) -> 0 | AA36: 0 | AB36: N/A | AC36: 0.01 | AD36: =$M$36*AC36 -> 5.5697 | AE36: 0.2 | AF36: =AE36*$N$36 -> 208.944 | AG36: =AH36/SUM($M$36:$N$36) -> 0.1339295994 | AH36: 214.5137 | AI36: N/A | AJ36: 0.1 | AK36: =$M$36*AJ36 -> 55.697 | AL36: 0.4183 | AM36: =AL36*$N$36 -> 437.006376 | AN36: =AO36/SUM($M$36:$N$36) -> 0.307614692 | AO36: 492.703376 | AP36: N/A | AR36: =$M$36*AQ36 -> 0 | AT36: =AS36*$N$36 -> 0 | AU36: =AV36/SUM($M$36:$N$36) -> 0 | AV36: 0 | AW36: N/A
F37: A | G37: Cundinamarca | H37: Sopó | I37: Bogotá D.C | J37: Cobertura | M37: =+TM_Precio_Ciu_Principales!$G$46 -> 556.97 | N37: =+TM_Precio_Ciu_Principales!$G$47 -> 1044.72 | P37: =$M$37*O37 -> 0 | R37: =Q37*$N$37 -> 0 | S37: =T37/SUM($M$37:$N$37) -> 0 | T37: 0 | U37: N/A | W37: =$M$37*V37 -> 0 | Y37: =X37*$N$37 -> 0 | Z37: =AA37/SUM($M$37:$N$37) -> 0 | AA37: 0 | AB37: N/A | AC37: 0.01 | AD37: =$M$37*AC37 -> 5.5697 | AE37: 0.2 | AF37: =AE37*$N$37 -> 208.944 | AG37: =AH37/SUM($M$37:$N$37) -> 0.1339295994 | AH37: 214.5137 | AI37: N/A | AK37: =$M$37*AJ37 -> 0 | AM37: =AL37*$N$37 -> 0 | AN37: =AO37/SUM($M$37:$N$37) -> 0 | AO37: 0 | AP37: N/A | AR37: =$M$37*AQ37 -> 0 | AT37: =AS37*$N$37 -> 0 | AU37: =AV37/SUM($M$37:$N$37) -> 0 | AV37: 0 | AW37: N/A
F38: A | G38: Antioquia | H38: Caldas | I38: Medellín | J38: Cobertura | M38: =+TM_Precio_Ciu_Principales!$G$46 -> 556.97 | N38: =+TM_Precio_Ciu_Principales!$G$47 -> 1044.72 | O38: 0.172 | P38: =$M$38*O38 -> 95.79884 | Q38: 0.409 | R38: =Q38*$N$38 -> 427.29048 | S38: =T38/SUM($M$38:$N$38) -> 0.3265858687 | T38: 523.08932 | U38: N/A | W38: =$M$38*V38 -> 0 | Y38: =X38*$N$38 -> 0 | Z38: =AA38/SUM($M$38:$N$38) -> 0 | AA38: 0 | AB38: N/A | AC38: 0.01 | AD38: =$M$38*AC38 -> 5.5697 | AE38: 0.2 | AF38: =AE38*$N$38 -> 208.944 | AG38: =AH38/SUM($M$38:$N$38) -> 0.1339295994 | AH38: 214.5137 | AI38: N/A | AJ38: 0.1 | AK38: =$M$38*AJ38 -> 55.697 | AL38: 0.4498 | AM38: =AL38*$N$38 -> 469.915056 | AN38: =AO38/SUM($M$38:$N$38) -> 0.328160915 | AO38: 525.612056 | AP38: N/A | AR38: =$M$38*AQ38 -> 0 | AT38: =AS38*$N$38 -> 0 | AU38: =AV38/SUM($M$38:$N$38) -> 0 | AV38: 0 | AW38: N/A
F39: A | G39: Antioquia | H39: La Estrella | I39: Medellín | J39: Cobertura | M39: =+TM_Precio_Ciu_Principales!$G$46 -> 556.97 | N39: =+TM_Precio_Ciu_Principales!$G$47 -> 1044.72 | P39: =$M$39*O39 -> 0 | R39: =Q39*$N$39 -> 0 | S39: =T39/SUM($M$39:$N$39) -> 0 | T39: 0 | U39: N/A | W39: =$M$39*V39 -> 0 | Y39: =X39*$N$39 -> 0 | Z39: =AA39/SUM($M$39:$N$39) -> 0 | AA39: 0 | AB39: N/A | AC39: 0.01 | AD39: =$M$39*AC39 -> 5.5697 | AE39: 0.2 | AF39: =AE39*$N$39 -> 208.944 | AG39: =AH39/SUM($M$39:$N$39) -> 0.1339295994 | AH39: 214.5137 | AI39: N/A | AJ39: 0.1 | AK39: =$M$39*AJ39 -> 55.697 | AL39: 0.4374 | AM39: =AL39*$N$39 -> 456.960528 | AN39: =AO39/SUM($M$39:$N$39) -> 0.320072878 | AO39: 512.657528 | AP39: N/A | AR39: =$M$39*AQ39 -> 0 | AT39: =AS39*$N$39 -> 0 | AU39: =AV39/SUM($M$39:$N$39) -> 0 | AV39: 0 | AW39: N/A
F40: A | G40: Antioquia | H40: Sabaneta | I40: Medellín | J40: Cobertura | M40: =+TM_Precio_Ciu_Principales!$G$46 -> 556.97 | N40: =+TM_Precio_Ciu_Principales!$G$47 -> 1044.72 | P40: =$M$40*O40 -> 0 | R40: =Q40*$N$40 -> 0 | S40: =T40/SUM($M$40:$N$40) -> 0 | T40: 0 | U40: N/A | W40: =$M$40*V40 -> 0 | Y40: =X40*$N$40 -> 0 | Z40: =AA40/SUM($M$40:$N$40) -> 0 | AA40: 0 | AB40: N/A | AC40: 0.01 | AD40: =$M$40*AC40 -> 5.5697 | AE40: 0.2 | AF40: =AE40*$N$40 -> 208.944 | AG40: =AH40/SUM($M$40:$N$40) -> 0.1339295994 | AH40: 214.5137 | AI40: N/A | AJ40: 0.1 | AK40: =$M$40*AJ40 -> 55.697 | AL40: 0.4374 | AM40: =AL40*$N$40 -> 456.960528 | AN40: =AO40/SUM($M$40:$N$40) -> 0.320072878 | AO40: 512.657528 | AP40: N/A | AR40: =$M$40*AQ40 -> 0 | AT40: =AS40*$N$40 -> 0 | AU40: =AV40/SUM($M$40:$N$40) -> 0 | AV40: 0 | AW40: N/A
F41: A | G41: Antioquia | H41: Itagüí | I41: Medellín | J41: Cobertura | M41: =+TM_Precio_Ciu_Principales!$G$46 -> 556.97 | N41: =+TM_Precio_Ciu_Principales!$G$47 -> 1044.72 | O41: 0.172 | P41: =$M$41*O41 -> 95.79884 | Q41: 0.4221 | R41: =Q41*$N$41 -> 440.976312 | S41: =T41/SUM($M$41:$N$41) -> 0.3351304884 | T41: 536.775152 | U41: N/A | W41: =$M$41*V41 -> 0 | Y41: =X41*$N$41 -> 0 | Z41: =AA41/SUM($M$41:$N$41) -> 0 | AA41: 0 | AB41: N/A | AC41: 0.01 | AD41: =$M$41*AC41 -> 5.5697 | AE41: 0.2 | AF41: =AE41*$N$41 -> 208.944 | AG41: =AH41/SUM($M$41:$N$41) -> 0.1339295994 | AH41: 214.5137 | AI41: N/A | AJ41: 0.107 | AK41: =$M$41*AJ41 -> 59.59579 | AL41: 0.4593 | AM41: =AL41*$N$41 -> 479.839896 | AN41: =AO41/SUM($M$41:$N$41) -> 0.3367915677 | AO41: 539.435686 | AP41: N/A | AR41: =$M$41*AQ41 -> 0 | AT41: =AS41*$N$41 -> 0 | AU41: =AV41/SUM($M$41:$N$41) -> 0 | AV41: 0 | AW41: N/A
F42: A | G42: Antioquia | H42: Envigado | I42: Medellín | J42: Cobertura | M42: =+TM_Precio_Ciu_Principales!$G$46 -> 556.97 | N42: =+TM_Precio_Ciu_Principales!$G$47 -> 1044.72 | O42: 0.172 | P42: =$M$42*O42 -> 95.79884 | Q42: 0.4056 | R42: =Q42*$N$42 -> 423.738432 | S42: =T42/SUM($M$42:$N$42) -> 0.3243681811 | T42: 519.537272 | U42: N/A | W42: =$M$42*V42 -> 0 | Y42: =X42*$N$42 -> 0 | Z42: =AA42/SUM($M$42:$N$42) -> 0 | AA42: 0 | AB42: N/A | AC42: 0.01 | AD42: =$M$42*AC42 -> 5.5697 | AE42: 0.2 | AF42: =AE42*$N$42 -> 208.944 | AG42: =AH42/SUM($M$42:$N$42) -> 0.1339295994 | AH42: 214.5137 | AI42: N/A | AK42: =$M$42*AJ42 -> 0 | AM42: =AL42*$N$42 -> 0 | AN42: =AO42/SUM($M$42:$N$42) -> 0 | AO42: 0 | AP42: N/A | AR42: =$M$42*AQ42 -> 0 | AT42: =AS42*$N$42 -> 0 | AU42: =AV42/SUM($M$42:$N$42) -> 0 | AV42: 0 | AW42: N/A
F43: A | G43: Antioquia | H43: Bello | I43: Medellín | J43: Cobertura | M43: =+TM_Precio_Ciu_Principales!$G$46 -> 556.97 | N43: =+TM_Precio_Ciu_Principales!$G$47 -> 1044.72 | O43: 0.172 | P43: =$M$43*O43 -> 95.79884 | Q43: 0.4211 | R43: =Q43*$N$43 -> 439.931592 | S43: =T43/SUM($M$43:$N$43) -> 0.3344782274 | T43: 535.730432 | U43: N/A | W43: =$M$43*V43 -> 0 | Y43: =X43*$N$43 -> 0 | Z43: =AA43/SUM($M$43:$N$43) -> 0 | AA43: 0 | AB43: N/A | AC43: 0.01 | AD43: =$M$43*AC43 -> 5.5697 | AE43: 0.2 | AF43: =AE43*$N$43 -> 208.944 | AG43: =AH43/SUM($M$43:$N$43) -> 0.1339295994 | AH43: 214.5137 | AI43: N/A | AJ43: 0.107 | AK43: =$M$43*AJ43 -> 59.59579 | AL43: 0.4592 | AM43: =AL43*$N$43 -> 479.735424 | AN43: =AO43/SUM($M$43:$N$43) -> 0.3367263416 | AO43: 539.331214 | AP43: N/A | AR43: =$M$43*AQ43 -> 0 | AT43: =AS43*$N$43 -> 0 | AU43: =AV43/SUM($M$43:$N$43) -> 0 | AV43: 0 | AW43: N/A
F44: A | G44: Antioquia | H44: Girardota | I44: Medellín | J44: Cobertura | M44: =+TM_Precio_Ciu_Principales!$G$46 -> 556.97 | N44: =+TM_Precio_Ciu_Principales!$G$47 -> 1044.72 | P44: =$M$44*O44 -> 0 | R44: =Q44*$N$44 -> 0 | S44: =T44/SUM($M$44:$N$44) -> 0 | T44: 0 | U44: N/A | W44: =$M$44*V44 -> 0 | Y44: =X44*$N$44 -> 0 | Z44: =AA44/SUM($M$44:$N$44) -> 0 | AA44: 0 | AB44: N/A | AC44: 0.01 | AD44: =$M$44*AC44 -> 5.5697 | AE44: 0.2 | AF44: =AE44*$N$44 -> 208.944 | AG44: =AH44/SUM($M$44:$N$44) -> 0.1339295994 | AH44: 214.5137 | AI44: N/A | AJ44: 0.107 | AK44: =$M$44*AJ44 -> 59.59579 | AL44: 0.4592 | AM44: =AL44*$N$44 -> 479.735424 | AN44: =AO44/SUM($M$44:$N$44) -> 0.3367263416 | AO44: 539.331214 | AP44: N/A | AR44: =$M$44*AQ44 -> 0 | AT44: =AS44*$N$44 -> 0 | AU44: =AV44/SUM($M$44:$N$44) -> 0 | AV44: 0 | AW44: N/A
F45: A | G45: Santander | H45: Girón | I45: Bucaramanga | J45: Cobertura | M45: =+TM_Precio_Ciu_Principales!$G$46 -> 556.97 | N45: =+TM_Precio_Ciu_Principales!$G$47 -> 1044.72 | P45: =$M$45*O45 -> 0 | R45: =Q45*$N$45 -> 0 | S45: =T45/SUM($M$45:$N$45) -> 0 | T45: 0 | U45: N/A | W45: =$M$45*V45 -> 0 | Y45: =X45*$N$45 -> 0 | Z45: =AA45/SUM($M$45:$N$45) -> 0 | AA45: 0 | AB45: N/A | AC45: 0.01 | AD45: =$M$45*AC45 -> 5.5697 | AE45: 0.2 | AF45: =AE45*$N$45 -> 208.944 | AG45: =AH45/SUM($M$45:$N$45) -> 0.1339295994 | AH45: 214.5137 | AI45: N/A | AJ45: 0.12 | AK45: =$M$45*AJ45 -> 66.8364 | AL45: 0.55 | AM45: =AL45*$N$45 -> 574.596 | AN45: =AO45/SUM($M$45:$N$45) -> 0.4004722512 | AO45: 641.4324 | AP45: N/A | AR45: =$M$45*AQ45 -> 0 | AT45: =AS45*$N$45 -> 0 | AU45: =AV45/SUM($M$45:$N$45) -> 0 | AV45: 0 | AW45: N/A
F46: A | G46: Atlántico | H46: Soledad | I46: Barranquilla | J46: Cobertura | M46: =+TM_Precio_Ciu_Principales!$G$46 -> 556.97 | N46: =+TM_Precio_Ciu_Principales!$G$47 -> 1044.72 | P46: =$M$46*O46 -> 0 | R46: =Q46*$N$46 -> 0 | S46: =T46/SUM($M$46:$N$46) -> 0 | T46: 0 | U46: N/A | W46: =$M$46*V46 -> 0 | Y46: =X46*$N$46 -> 0 | Z46: =AA46/SUM($M$46:$N$46) -> 0 | AA46: 0 | AB46: N/A | AC46: 0.01 | AD46: =$M$46*AC46 -> 5.5697 | AE46: 0.2 | AF46: =AE46*$N$46 -> 208.944 | AG46: =AH46/SUM($M$46:$N$46) -> 0.1339295994 | AH46: 214.5137 | AI46: N/A | AJ46: 0.1 | AK46: =$M$46*AJ46 -> 55.697 | AL46: 0.367 | AM46: =AL46*$N$46 -> 383.41224 | AN46: =AO46/SUM($M$46:$N$46) -> 0.2741537002 | AO46: 439.10924 | AP46: N/A | AR46: =$M$46*AQ46 -> 0 | AT46: =AS46*$N$46 -> 0 | AU46: =AV46/SUM($M$46:$N$46) -> 0 | AV46: 0 | AW46: N/A
F47: A | G47: Atlántico | H47: Malambo | I47: Barranquilla | J47: Cobertura | M47: =+TM_Precio_Ciu_Principales!$G$46 -> 556.97 | N47: =+TM_Precio_Ciu_Principales!$G$47 -> 1044.72 | P47: =$M$47*O47 -> 0 | R47: =Q47*$N$47 -> 0 | S47: =T47/SUM($M$47:$N$47) -> 0 | T47: 0 | U47: N/A | W47: =$M$47*V47 -> 0 | Y47: =X47*$N$47 -> 0 | Z47: =AA47/SUM($M$47:$N$47) -> 0 | AA47: 0 | AB47: N/A | AC47: 0.01 | AD47: =$M$47*AC47 -> 5.5697 | AE47: 0.2 | AF47: =AE47*$N$47 -> 208.944 | AG47: =AH47/SUM($M$47:$N$47) -> 0.1339295994 | AH47: 214.5137 | AI47: N/A | AJ47: 0.1 | AK47: =$M$47*AJ47 -> 55.697 | AL47: 0.367 | AM47: =AL47*$N$47 -> 383.41224 | AN47: =AO47/SUM($M$47:$N$47) -> 0.2741537002 | AO47: 439.10924 | AP47: N/A | AR47: =$M$47*AQ47 -> 0 | AT47: =AS47*$N$47 -> 0 | AU47: =AV47/SUM($M$47:$N$47) -> 0 | AV47: 0 | AW47: N/A
F48: A | G48: Atlántico | H48: Galapa | I48: Barranquilla | J48: Cobertura | M48: =+TM_Precio_Ciu_Principales!$G$46 -> 556.97 | N48: =+TM_Precio_Ciu_Principales!$G$47 -> 1044.72 | P48: =$M$48*O48 -> 0 | R48: =Q48*$N$48 -> 0 | S48: =T48/SUM($M$48:$N$48) -> 0 | T48: 0 | U48: N/A | W48: =$M$48*V48 -> 0 | Y48: =X48*$N$48 -> 0 | Z48: =AA48/SUM($M$48:$N$48) -> 0 | AA48: 0 | AB48: N/A | AC48: 0.01 | AD48: =$M$48*AC48 -> 5.5697 | AE48: 0.2 | AF48: =AE48*$N$48 -> 208.944 | AG48: =AH48/SUM($M$48:$N$48) -> 0.1339295994 | AH48: 214.5137 | AI48: N/A | AK48: =$M$48*AJ48 -> 0 | AM48: =AL48*$N$48 -> 0 | AN48: =AO48/SUM($M$48:$N$48) -> 0 | AO48: 0 | AP48: N/A | AR48: =$M$48*AQ48 -> 0 | AT48: =AS48*$N$48 -> 0 | AU48: =AV48/SUM($M$48:$N$48) -> 0 | AV48: 0 | AW48: N/A
F49: A | G49: Risaralda | H49: Dosquebradas | I49: Pereira | J49: Cobertura | M49: =+TM_Precio_Ciu_Principales!$G$46 -> 556.97 | N49: =+TM_Precio_Ciu_Principales!$G$47 -> 1044.72 | P49: =$M$49*O49 -> 0 | R49: =Q49*$N$49 -> 0 | S49: =T49/SUM($M$49:$N$49) -> 0 | T49: 0 | U49: N/A | W49: =$M$49*V49 -> 0 | Y49: =X49*$N$49 -> 0 | Z49: =AA49/SUM($M$49:$N$49) -> 0 | AA49: 0 | AB49: N/A | AD49: =$M$49*AC49 -> 0 | AF49: =AE49*$N$49 -> 0 | AG49: =AH49/SUM($M$49:$N$49) -> 0 | AH49: 0 | AI49: N/A | AJ49: 0.1 | AK49: =$M$49*AJ49 -> 55.697 | AL49: 0.27 | AM49: =AL49*$N$49 -> 282.0744 | AN49: =AO49/SUM($M$49:$N$49) -> 0.2108843784 | AO49: 337.7714 | AP49: N/A | AR49: =$M$49*AQ49 -> 0 | AT49: =AS49*$N$49 -> 0 | AU49: =AV49/SUM($M$49:$N$49) -> 0 | AV49: 0 | AW49: N/A
F50: A | G50: Valle Del Cauca | H50: Palmira | I50: Cali | J50: Cobertura | M50: =+TM_Precio_Ciu_Principales!$G$46 -> 556.97 | N50: =+TM_Precio_Ciu_Principales!$G$47 -> 1044.72 | P50: =$M$50*O50 -> 0 | R50: =Q50*$N$50 -> 0 | S50: =T50/SUM($M$50:$N$50) -> 0 | T50: 0 | U50: N/A | V50: 0.02 | W50: =$M$50*V50 -> 11.1394 | X50: 0.08 | Y50: =X50*$N$50 -> 83.5776 | Z50: =AA50/SUM($M$50:$N$50) -> 0.05913566296 | AA50: 94.717 | AB50: N/A | AC50: 0.01 | AD50: =$M$50*AC50 -> 5.5697 | AE50: 0.2 | AF50: =AE50*$N$50 -> 208.944 | AG50: =AH50/SUM($M$50:$N$50) -> 0.1339295994 | AH50: 214.5137 | AI50: N/A | AJ50: 0.11 | AK50: =$M$50*AJ50 -> 61.2667 | AL50: 0.2435 | AM50: =AL50*$N$50 -> 254.38932 | AN50: =AO50/SUM($M$50:$N$50) -> 0.1970768501 | AO50: 315.65602 | AP50: N/A | AR50: =$M$50*AQ50 -> 0 | AT50: =AS50*$N$50 -> 0 | AU50: =AV50/SUM($M$50:$N$50) -> 0 | AV50: 0 | AW50: N/A
F51: A | G51: Valle Del Cauca | H51: Jamundí | I51: Cali | J51: Cobertura | M51: =+TM_Precio_Ciu_Principales!$G$46 -> 556.97 | N51: =+TM_Precio_Ciu_Principales!$G$47 -> 1044.72 | P51: =$M$51*O51 -> 0 | R51: =Q51*$N$51 -> 0 | S51: =T51/SUM($M$51:$N$51) -> 0 | T51: 0 | U51: N/A | V51: 0.02 | W51: =$M$51*V51 -> 11.1394 | X51: 0.08 | Y51: =X51*$N$51 -> 83.5776 | Z51: =AA51/SUM($M$51:$N$51) -> 0.05913566296 | AA51: 94.717 | AB51: N/A | AC51: 0.01 | AD51: =$M$51*AC51 -> 5.5697 | AE51: 0.2 | AF51: =AE51*$N$51 -> 208.944 | AG51: =AH51/SUM($M$51:$N$51) -> 0.1339295994 | AH51: 214.5137 | AI51: N/A | AK51: =$M$51*AJ51 -> 0 | AM51: =AL51*$N$51 -> 0 | AN51: =AO51/SUM($M$51:$N$51) -> 0 | AO51: 0 | AP51: N/A | AQ51: 0.05 | AR51: =$M$51*AQ51 -> 27.8485 | AS51: 0.04 | AT51: =AS51*$N$51 -> 41.7888 | AU51: =AV51/SUM($M$51:$N$51) -> 0.04347738951 | AV51: 69.6373 | AW51: N/A
F52: A | G52: Valle Del Cauca | H52: Yumbo | I52: Cali | J52: Cobertura | M52: =+TM_Precio_Ciu_Principales!$G$46 -> 556.97 | N52: =+TM_Precio_Ciu_Principales!$G$47 -> 1044.72 | P52: =$M$52*O52 -> 0 | R52: =Q52*$N$52 -> 0 | S52: =T52/SUM($M$52:$N$52) -> 0 | T52: 0 | U52: N/A | V52: 0.02 | W52: =$M$52*V52 -> 11.1394 | X52: 0.08 | Y52: =X52*$N$52 -> 83.5776 | Z52: =AA52/SUM($M$52:$N$52) -> 0.05913566296 | AA52: 94.717 | AB52: N/A | AC52: 0.01 | AD52: =$M$52*AC52 -> 5.5697 | AE52: 0.2 | AF52: =AE52*$N$52 -> 208.944 | AG52: =AH52/SUM($M$52:$N$52) -> 0.1339295994 | AH52: 214.5137 | AI52: N/A | AJ52: 0.11 | AK52: =$M$52*AJ52 -> 61.2667 | AL52: 0.2435 | AM52: =AL52*$N$52 -> 254.38932 | AN52: =AO52/SUM($M$52:$N$52) -> 0.1970768501 | AO52: 315.65602 | AP52: N/A | AR52: =$M$52*AQ52 -> 0 | AT52: =AS52*$N$52 -> 0 | AU52: =AV52/SUM($M$52:$N$52) -> 0 | AV52: 0 | AW52: N/A

Sheet Seg3 (hidden)
M10: Precio del Combustible | O10: GRUPO EDS AUTOGAS SAS | V10: DISTRACOM S.A.
M11: Margen Mayorista | N11: Margen Minorista
F12: Segmento | G12: Departamento | H12: Municipio de Cobertura | I12: Precio de Referencia MinEnergia ($/Gal) Gasolina Corriente - Diésel ACPM) | J12: Tipo | K12: Latitud | L12: Longitud | M12: Valor en pesos ($) del margen vigente MinEnergia | N12: Valor en pesos ($) del margen vigente MinEnergia | O12: Porcentaje (%) descuento inicial Ofrecido - Margen Mayorista | P12: Descuento inicial en pesos Ofrecido - Margen Mayorista | Q12: Porcentaje (%) descuento inicial Ofrecido - Margen Minorista | R12: Descuento inicial en pesos Ofrecido - Margen Minorista | S12: Porcentaje total del descuento (%) | T12: Valor total del descuento en pesos | U12: Flete Tarifa máxima en pesos Colombianos Incluido IVA ($) | V12: Porcentaje (%) descuento inicial Ofrecido - Margen Mayorista | W12: Descuento inicial en pesos Ofrecido - Margen Mayorista | X12: Porcentaje (%) descuento inicial Ofrecido - Margen Minorista | Y12: Descuento inicial en pesos Ofrecido - Margen Minorista | Z12: Porcentaje total del descuento (%) | AA12: Valor total del descuento en pesos | AB12: Flete Tarifa máxima en pesos Colombianos Incluido IVA ($)
K13: Latitud | L13: Longitud
F14: 3 | G14: Cundinamarca | H14: Bogotá D.C | I14: Bogotá D.C | J14: Capital | M14: =+TM_Precio_Ciu_Principales!$G$46 -> 556.97 | N14: =+TM_Precio_Ciu_Principales!$G$47 -> 1044.72 | O14: 0.165 | P14: =O14*M14 -> 91.90005 | Q14: 0.552 | R14: =Q14*N14 -> 576.68544 | S14: =T14/SUM(M14:N14) -> 0.4174250261 | T14: =P14+R14 -> 668.58549 | U14: 142064 | V14: 0.1205 | W14: =V14*M14 -> 67.114885 | X14: 0.5758 | Y14: =X14*N14 -> 601.549776 | Z14: =AA14/SUM(M14:N14) -> 0.4174744557 | AA14: =W14+Y14 -> 668.664661 | AB14: 240416
F15: 3 | G15: Cundinamarca | H15: Cajicá | I15: Bogotá D.C | J15: Cobertura | M15: =+TM_Precio_Ciu_Principales!$G$46 -> 556.97 | N15: =+TM_Precio_Ciu_Principales!$G$47 -> 1044.72 | O15: 0.165 | P15: =O15*M15 -> 91.90005 | Q15: 0.5296 | R15: =Q15*N15 -> 553.283712 | S15: =T15/SUM(M15:N15) -> 0.4028143786 | T15: =P15+R15 -> 645.183762 | U15: 218560 | V15: 0.1205 | W15: =V15*T15 -> 77.74464332 | X15: 0.5758 | Y15: =X15*N15 -> 601.549776 | Z15: =AA15/SUM(M15:N15) -> 0.4241110448 | AA15: =W15+Y15 -> 679.2944193 | AB15: 273200
F16: 3 | G16: Cundinamarca | H16: Chía | I16: Bogotá D.C | J16: Cobertura | M16: =+TM_Precio_Ciu_Principales!$G$46 -> 556.97 | N16: =+TM_Precio_Ciu_Principales!$G$47 -> 1044.72 | O16: 0.165 | P16: 91.90005 | Q16: 0.5296 | R16: 553.283712 | S16: 0.4028143786 | T16: 645.183762 | U16: 218560 | V16: 0.1205 | W16: 77.74464332 | X16: 0.5758 | Y16: 601.549776 | Z16: 0.4241110448 | AA16: 679.2944193 | AB16: 273200
F17: 3 | G17: Cundinamarca | H17: Cota | I17: Bogotá D.C | J17: Cobertura | M17: =+TM_Precio_Ciu_Principales!$G$46 -> 556.97 | N17: =+TM_Precio_Ciu_Principales!$G$47 -> 1044.72 | O17: 0.165 | P17: 91.90005 | Q17: 0.5296 | R17: 553.283712 | S17: 0.4028143786 | T17: 645.183762 | U17: 177034 | V17: 0.1205 | W17: 77.74464332 | X17: 0.5758 | Y17: 601.549776 | Z17: 0.4241110448 | AA17: 679.2944193 | AB17: 273200
F18: 3 | G18: Cundinamarca | H18: Facatativá | I18: Bogotá D.C | J18: Cobertura | M18: =+TM_Precio_Ciu_Principales!$G$46 -> 556.97 | N18: =+TM_Precio_Ciu_Principales!$G$47 -> 1044.72 | O18: 0.165 | P18: 91.90005 | Q18: 0.5319 | R18: 555.686568 | S18: 0.404314579 | T18: 647.586618 | U18: 383573 | V18: 0.1205 | W18: 78.03418747 | X18: 0.5758 | Y18: 601.549776 | Z18: 0.4242918189 | AA18: 679.5839635 | AB18: 273200
F19: 3 | G19: Cundinamarca | H19: Funza | I19: Bogotá D.C | J19: Cobertura | M19: =+TM_Precio_Ciu_Principales!$G$46 -> 556.97 | N19: =+TM_Precio_Ciu_Principales!$G$47 -> 1044.72 | O19: 0.165 | P19: 91.90005 | Q19: 0.5319 | R19: 555.686568 | S19: 0.404314579 | T19: 647.586618 | U19: 163920 | V19: 0.1205 | W19: 78.03418747 | X19: 0.5758 | Y19: 601.549776 | Z19: 0.4242918189 | AA19: 679.5839635 | AB19: 273200
F20: 3 | G20: Cundinamarca | H20: La Calera | I20: Bogotá D.C | J20: Cobertura | M20: =+TM_Precio_Ciu_Principales!$G$46 -> 556.97 | N20: =+TM_Precio_Ciu_Principales!$G$47 -> 1044.72 | O20: 0.165 | P20: 91.90005 | Q20: 0.5319 | R20: 555.686568 | S20: 0.404314579 | T20: 647.586618 | U20: 174848 | V20: 0.1205 | W20: 78.03418747 | X20: 0.5758 | Y20: 601.549776 | Z20: 0.4242918189 | AA20: 679.5839635 | AB20: 327840
F21: 3 | G21: Cundinamarca | H21: Madrid | I21: Bogotá D.C | J21: Cobertura | M21: =+TM_Precio_Ciu_Principales!$G$46 -> 556.97 | N21: =+TM_Precio_Ciu_Principales!$G$47 -> 1044.72 | O21: 0.165 | P21: 91.90005 | Q21: 0.5319 | R21: 555.686568 | S21: 0.404314579 | T21: 647.586618 | U21: 207632 | V21: 0.1205 | W21: 78.03418747 | X21: 0.5758 | Y21: 601.549776 | Z21: 0.4242918189 | AA21: 679.5839635 | AB21: 273200
F22: 3 | G22: Cundinamarca | H22: Mosquera | I22: Bogotá D.C | J22: Cobertura | M22: =+TM_Precio_Ciu_Principales!$G$46 -> 556.97 | N22: =+TM_Precio_Ciu_Principales!$G$47 -> 1044.72 | O22: 0.165 | P22: 91.90005 | Q22: 0.5319 | R22: 555.686568 | S22: 0.404314579 | T22: 647.586618 | U22: 207632 | V22: 0.1205 | W22: 78.03418747 | X22: 0.5758 | Y22: 601.549776 | Z22: 0.4242918189 | AA22: 679.5839635 | AB22: 273200
F23: 3 | G23: Cundinamarca | H23: Soacha | I23: Bogotá D.C | J23: Cobertura | M23: =+TM_Precio_Ciu_Principales!$G$46 -> 556.97 | N23: =+TM_Precio_Ciu_Principales!$G$47 -> 1044.72 | O23: 0.165 | P23: 91.90005 | Q23: 0.5319 | R23: 555.686568 | S23: 0.404314579 | T23: 647.586618 | U23: 196704 | V23: 0.1205 | W23: 78.03418747 | X23: 0.5758 | Y23: 601.549776 | Z23: 0.4242918189 | AA23: 679.5839635 | AB23: 273200
F24: 3 | G24: Cundinamarca | H24: Sibaté | I24: Bogotá D.C | J24: Cobertura | M24: =+TM_Precio_Ciu_Principales!$G$46 -> 556.97 | N24: =+TM_Precio_Ciu_Principales!$G$47 -> 1044.72 | O24: 0.165 | P24: 91.90005 | Q24: 0.5319 | R24: 555.686568 | S24: 0.404314579 | T24: 647.586618 | U24: 218560 | V24: 0.1205 | W24: 78.03418747 | X24: 0.5758 | Y24: 601.549776 | Z24: 0.4242918189 | AA24: 679.5839635 | AB24: 273200
F25: 3 | G25: Cundinamarca | H25: Sopó | I25: Bogotá D.C | J25: Cobertura | M25: =+TM_Precio_Ciu_Principales!$G$46 -> 556.97 | N25: =+TM_Precio_Ciu_Principales!$G$47 -> 1044.72 | O25: 0.165 | P25: 91.90005 | Q25: 0.5261 | R25: 549.627192 | S25: 0.4005314649 | T25: 641.527242 | U25: 218560 | V25: 0.1205 | W25: 77.30403266 | X25: 0.5758 | Y25: 601.549776 | Z25: 0.4238359537 | AA25: 678.8538087 | AB25: 327840
F26: 3 | G26: Cundinamarca | H26: Tocancipá | I26: Bogotá D.C | J26: Cobertura | M26: =+TM_Precio_Ciu_Principales!$G$46 -> 556.97 | N26: =+TM_Precio_Ciu_Principales!$G$47 -> 1044.72 | O26: 0.165 | P26: 91.90005 | Q26: 0.5261 | R26: 549.627192 | S26: 0.4005314649 | T26: 641.527242 | U26: 305984 | V26: 0.1205 | W26: 77.30403266 | X26: 0.5758 | Y26: 601.549776 | Z26: 0.4238359537 | AA26: 678.8538087 | AB26: 327840
F27: 3 | G27: Cundinamarca | H27: Zipaquirá | I27: Bogotá D.C | J27: Cobertura | M27: =+TM_Precio_Ciu_Principales!$G$46 -> 556.97 | N27: =+TM_Precio_Ciu_Principales!$G$47 -> 1044.72 | O27: 0.165 | P27: 91.90005 | Q27: 0.5261 | R27: 549.627192 | S27: 0.4005314649 | T27: 641.527242 | U27: 305984 | V27: 0.1205 | W27: 77.30403266 | X27: 0.5758 | Y27: 601.549776 | Z27: 0.4238359537 | AA27: 678.8538087 | AB27: 327840
F28: 3 | G28: Antioquia | H28: Medellín | I28: Medellín | J28: Capital | M28: =+TM_Precio_Ciu_Principales!$G$46 -> 556.97 | N28: =+TM_Precio_Ciu_Principales!$G$47 -> 1044.72 | O28: 0.172 | P28: 95.79884 | Q28: 0.5022 | R28: 524.658384 | S28: 0.3873765985 | T28: 620.457224 | U28: 131136 | V28: 0.1048 | W28: 65.02391708 | X28: 0.539 | Y28: 563.10408 | Z28: 0.3921657731 | AA28: 628.1279971 | AB28: 240416
F29: 3 | G29: Antioquia | H29: Caldas | I29: Medellín | J29: Cobertura | M29: =+TM_Precio_Ciu_Principales!$G$46 -> 556.97 | N29: =+TM_Precio_Ciu_Principales!$G$47 -> 1044.72 | O29: 0.172 | P29: 95.79884 | Q29: 0.409 | R29: 427.29048 | S29: 0.3265858687 | T29: 523.08932 | U29: 166106 | V29: 0.1048 | W29: 54.81976074 | X29: 0.539 | Y29: 563.10408 | Z29: 0.3857949046 | AA29: 617.9238407 | AB29: 240416
F30: 3 | G30: Antioquia | H30: La Estrella | I30: Medellín | J30: Cobertura | M30: =+TM_Precio_Ciu_Principales!$G$46 -> 556.97 | N30: =+TM_Precio_Ciu_Principales!$G$47 -> 1044.72 | O30: 0.172 | P30: 95.79884 | Q30: 0.4056 | R30: 423.738432 | S30: 0.3243681811 | T30: 519.537272 | U30: 166106 | V30: 0.1048 | W30: 54.44750611 | X30: 0.539 | Y30: 563.10408 | Z30: 0.3855624909 | AA30: 617.5515861 | AB30: 240416
F31: 3 | G31: Antioquia | H31: Sabaneta | I31: Medellín | J31: Cobertura | M31: =+TM_Precio_Ciu_Principales!$G$46 -> 556.97 | N31: =+TM_Precio_Ciu_Principales!$G$47 -> 1044.72 | O31: 0.172 | P31: 95.79884 | Q31: 0.4056 | R31: 423.738432 | S31: 0.3243681811 | T31: 519.537272 | U31: 155178 | V31: 0.1048 | W31: 54.44750611 | X31: 0.539 | Y31: 563.10408 | Z31: 0.3855624909 | AA31: 617.5515861 | AB31: 240416
F32: 3 | G32: Antioquia | H32: Itagüí | I32: Medellín | J32: Cobertura | M32: =+TM_Precio_Ciu_Principales!$G$46 -> 556.97 | N32: =+TM_Precio_Ciu_Principales!$G$47 -> 1044.72 | O32: 0.172 | P32: 95.79884 | Q32: 0.4221 | R32: 440.976312 | S32: 0.3351304884 | T32: 536.775152 | U32: 142064 | V32: 0.1048 | W32: 56.25403593 | X32: 0.539 | Y32: 563.10408 | Z32: 0.3866903807 | AA32: 619.3581159 | AB32: 240416
F33: 3 | G33: Antioquia | H33: Envigado | I33: Medellín | J33: Cobertura | M33: =+TM_Precio_Ciu_Principales!$G$46 -> 556.97 | N33: =+TM_Precio_Ciu_Principales!$G$47 -> 1044.72 | O33: 0.172 | P33: 95.79884 | Q33: 0.4056 | R33: 423.738432 | S33: 0.3243681811 | T33: 519.537272 | U33: 142064 | V33: 0.1048 | W33: 54.44750611 | X33: 0.539 | Y33: 563.10408 | Z33: 0.3855624909 | AA33: 617.5515861 | AB33: 240416
F34: 3 | G34: Antioquia | H34: Bello | I34: Medellín | J34: Cobertura | M34: =+TM_Precio_Ciu_Principales!$G$46 -> 556.97 | N34: =+TM_Precio_Ciu_Principales!$G$47 -> 1044.72 | O34: 0.172 | P34: 95.79884 | Q34: 0.4211 | R34: 439.931592 | S34: 0.3344782274 | T34: 535.730432 | U34: 131136 | V34: 0.1048 | W34: 56.14454927 | X34: 0.539 | Y34: 563.10408 | Z34: 0.3866220238 | AA34: 619.2486293 | AB34: 240416
F35: 3 | G35: Antioquia | H35: Copacabana | I35: Medellín | J35: Cobertura | M35: =+TM_Precio_Ciu_Principales!$G$46 -> 556.97 | N35: =+TM_Precio_Ciu_Principales!$G$47 -> 1044.72 | O35: 0.172 | P35: 95.79884 | Q35: 0.4056 | R35: 423.738432 | S35: 0.3243681811 | T35: 519.537272 | U35: 174848 | V35: 0.1048 | W35: 54.44750611 | X35: 0.539 | Y35: 563.10408 | Z35: 0.3855624909 | AA35: 617.5515861 | AB35: 327840
F36: 3 | G36: Antioquia | H36: Girardota | I36: Medellín | J36: Cobertura | M36: =+TM_Precio_Ciu_Principales!$G$46 -> 556.97 | N36: =+TM_Precio_Ciu_Principales!$G$47 -> 1044.72 | O36: 0.172 | P36: 95.79884 | Q36: 0.4056 | R36: 423.738432 | S36: 0.3243681811 | T36: 519.537272 | U36: 229488 | V36: 0.1048 | W36: 54.44750611 | X36: 0.539 | Y36: 563.10408 | Z36: 0.3855624909 | AA36: 617.5515861 | AB36: 327840
F37: 3 | G37: Antioquia | H37: Barbosa | I37: Medellín | J37: Cobertura | M37: =+TM_Precio_Ciu_Principales!$G$46 -> 556.97 | N37: =+TM_Precio_Ciu_Principales!$G$47 -> 1044.72 | O37: 0.172 | P37: 95.79884 | Q37: 0.4056 | R37: 423.738432 | S37: 0.3243681811 | T37: 519.537272 | U37: 415264 | V37: 0.1048 | W37: 54.44750611 | X37: 0.539 | Y37: 563.10408 | Z37: 0.3855624909 | AA37: 617.5515861 | AB37: 327840

Sheet Cat_C (hidden)
F12: Nombre del Proponente | G12: Categoría | H12: Porcentaje (%) Máximo de Comisión por Galón de Combustible Suministrado (%)
F14: PLUXEE COLOMBIA S.A.S | G14: C | H14: 0.03
F15: BIG PASS S.A.S. | G15: C | H15: 0.03
F16: DISTRACOM S.A. | G16: C | H16: 0.012

Sheet EDS_A (hidden)
F11: Estaciones de Servicio (EDS)
F12: N° | G12: Nombre del Proponente | H12: Categoría | I12: Departamento | J12: Municipio | K12: Codigo SICOM | L12: Nombre de la EDS | M12: Bandera | N12: Tipo de EDS | O12: Dirección de la EDS | P12: Numero de Surtidores por EDS con Sistema de Control
P13: Diesel | Q13: Gasolina Corriente | R13: Gasolina Extra
F14: 1 | G14: COESCO COLOMBIA S.A.S. | H14: A | I14: Atlántico | J14: Barranquilla | K14: 630740 | L14: EDS COESCO ALTO PRADO | M14: Primax | N14: Automotriz | O14: CARRERA 51 B # 75-171 | P14: 0 | Q14: 4 | R14: 3
F15: 2 | G15: COESCO COLOMBIA S.A.S. | H15: A | I15: Quindío | J15: Armenia | K15: 632896 | L15: EDS COESCO AVENIDA BOLIVAR | M15: Primax | N15: Automotriz | O15: AVENIDA BOLIVAR CALLE 19 NORTE | P15: 1 | Q15: 4 | R15: 3
F16: 3 | G16: COESCO COLOMBIA S.A.S. | H16: A | I16: Antioquia | J16: Medellín | K16: 630467 | L16: EDS COESCO AVENIDA DEL RIO | M16: Primax | N16: Automotriz | O16: CARRERA 50 # 14 - 25 | P16: 3 | Q16: 5 | R16: 4
F17: 4 | G17: COESCO COLOMBIA S.A.S. | H17: A | I17: Atlántico | J17: Barranquilla | K17: 630800 | L17: EDS COESCO BOSTON | M17: Primax | N17: Automotriz | O17: CARRERA 43 # 66 - 35 | P17: 1 | Q17: 3 | R17: 2
F18: 5 | G18: COESCO COLOMBIA S.A.S. | H18: A | I18: Bolívar | J18: Cartagena | K18: 631114 | L18: EDS COESCO EL BOSQUE | M18: Primax | N18: Automotriz | O18: DIAGONAL 21 # 45A - 111 | P18: 2 | Q18: 3 | R18: 2
F19: 6 | G19: COESCO COLOMBIA S.A.S. | H19: A | I19: Cundinamarca | J19: Soacha | K19: 630871 | L19: EDS COESCO CHUSACA | M19: Primax | N19: Automotriz | O19: KILOMETRO 15 AUTOPISTA SUR VEREDA DE CHUSACA | P19: 5 | Q19: 10 | R19: 2
F20: 7 | G20: COESCO COLOMBIA S.A.S. | H20: A | I20: Antioquia | J20: Medellín | K20: 630496 | L20: EDS COESCO EL POBLADO | M20: Primax | N20: Automotriz | O20: CARRERA 43A # 11-19 | P20: 0 | Q20: 4 | R20: 3
F21: 8 | G21: COESCO COLOMBIA S.A.S. | H21: A | I21: Cundinamarca | J21: Bogotá D.C | K21: 636910 | L21: EDS COESCO EMANUEL | M21: Primax | N21: Automotriz | O21: AVENIDA CALLE 22 SUR # 24H-51 | P21: 2 | Q21: 2 | R21: 0
F22: 9 | G22: COESCO COLOMBIA S.A.S. | H22: A | I22: Cundinamarca | J22: Bogotá D.C | K22: 636071 | L22: EDS COESCO ESPIRITU SANTO | M22: Primax | N22: Automotriz | O22: CALLE 22 SUR # 12B - 94 | P22: 3 | Q22: 3 | R22: 0
F23: 10 | G23: COESCO COLOMBIA S.A.S. | H23: A | I23: Valle Del Cauca | J23: Cali | K23: 633500 | L23: EDS COESCO GRANADA | M23: Primax | N23: Automotriz | O23: AVENIDA 8 N No 15 AN - 06 | P23: 2 | Q23: 3 | R23: 2
F24: 11 | G24: COESCO COLOMBIA S.A.S. | H24: A | I24: Antioquia | J24: Medellín | K24: 630471 | L24: EDS COESCO GUAYABAL | M24: Primax | N24: Automotriz | O24: CARRERA 50 FF # 8 SUR - 93 | P24: 2 | Q24: 3 | R24: 1
F25: 12 | G25: COESCO COLOMBIA S.A.S. | H25: A | I25: Cundinamarca | J25: Bogotá D.C | K25: 636867 | L25: EDS COESCO SANTA ROSA | M25: Primax | N25: Automotriz | O25: AVENIDA CALLE 24 # 116 - 19 | P25: 3 | Q25: 3 | R25: 0
F26: 13 | G26: COESCO COLOMBIA S.A.S. | H26: A | I26: Cundinamarca | J26: Bogotá D.C | K26: 636912 | L26: EDS COESCO TERMINAL | M26: Primax | N26: Automotriz | O26: CALLE 65B SUR # 77G-28 | P26: 2 | Q26: 2 | R26: 2
F27: 14 | G27: COESCO COLOMBIA S.A.S. | H27: A | I27: Magdalena | J27: Santa Marta | K27: 632587 | L27: EDS COESCO LA ONCE | M27: Primax | N27: Automotriz | O27: CALLE 11 No. 12 - 60 SECTOR MERCADO | P27: 2 | Q27: 2 | R27: 1
F28: 15 | G28: COESCO COLOMBIA S.A.S. | H28: A | I28: Tolima | J28: Ibagué | K28: 633322 | L28: EDS COESCO MARTINICA | M28: Primax | N28: Automotriz | O28: KILOMETRO 1 VARIANTE IBAGUE ARMENIA BARRIO LA FLORIDA IBAGUE - TOLIMA | P28: 3 | Q28: 3
F29: 16 | G29: COESCO COLOMBIA S.A.S. | H29: A | I29: Antioquia | J29: Medellín | K29: 630529 | L29: EDS COESCO ROBLEDO | M29: Primax | N29: Automotriz | O29: CARRERA 70 # 53-21 | P29: 2 | Q29: 3 | R29: 1
F30: 17 | G30: COESCO COLOMBIA S.A.S. | H30: A | I30: Tolima | J30: Ibagué | K30: 637028 | L30: EDS COESCO JARDIN | M30: Primax | N30: Automotriz | O30: CARRERA 5 # 80 -130 BARRIO JARDIN | P30: 2 | Q30: 2 | R30: 2
F31: 18 | G31: COESCO COLOMBIA S.A.S. | H31: A | I31: Huila | J31: Neiva | K31: 632408 | L31: EDS COESCO MATAMUNDO | M31: Primax | N31: Automotriz | O31: CARRERA 5 # 5 - 17 SUR ZONA INDUSTRIAL | P31: 3 | Q31: 4 | R31: 2
F32: 19 | G32: COESCO COLOMBIA S.A.S. | H32: A | I32: Santander | J32: Bucaramanga | K32: 633083 | L32: EDS COESCO LA ISABELA | M32: Primax | N32: Automotriz | O32: Calle 105 # 16A - 24 - 32 - 38 | P32: 0 | Q32: 4 | R32: 4
F33: 20 | G33: COESCO COLOMBIA S.A.S. | H33: A | I33: Santander | J33: Bucaramanga | K33: 633062 | L33: EDS COESCO LA NORTE | M33: Primax | N33: Automotriz | O33: Kilómetro 1 Vía Pamplona # 2 - 00 | P33: 2 | Q33: 3 | R33: 1
F34: 21 | G34: COESCO COLOMBIA S.A.S. | H34: A | I34: Valle Del Cauca | J34: Jamundí | K34: 636006 | L34: EDS COESCO BRISAS DEL LAGO | M34: Primax | N34: Automotriz | O34: Calle 12 Sur # 10 A-77 | P34: 4 | Q34: 4
F35: 22 | G35: COESCO COLOMBIA S.A.S. | H35: A | I35: Cundinamarca | J35: Bogotá D.C | K35: 637181 | L35: EDS COESCO PARALELA 118 | M35: Primax | N35: Automotriz | O35: AK 45 (AUTOPISTA NORTE) # 118 - 54 | P35: 2 | Q35: 2 | R35: 2
F36: 23 | G36: COESCO COLOMBIA S.A.S. | H36: A | I36: Cundinamarca | J36: Chía | K36: 632091 | L36: EDS COESCO LOS ANGELES | M36: Primax | N36: Automotriz | O36: Calle 2 #7ª-35 | P36: 3 | Q36: 4 | R36: 2
F37: 24 | G37: COESCO COLOMBIA S.A.S. | H37: A | I37: Huila | J37: Neiva | K37: 632411 | L37: SERVICENTRO EL PASO DE LA BARCA | M37: Primax | N37: Automotriz | O37: Transversal 9aw # 9Aw-09 | P37: 2 | Q37: 2 | R37: 1
F38: 25 | G38: COESCO COLOMBIA S.A.S. | H38: A | I38: Huila | J38: Neiva | K38: 632410 | L38: SERVICENTRO LUALCOR | M38: Primax | N38: Automotriz | O38: Carrera 16 # 11 - 30 | P38: 1 | Q38: 3 | R38: 1
F39: 26 | G39: COESCO COLOMBIA S.A.S. | H39: A | I39: Atlántico | J39: Barranquilla | K39: 630739 | L39: EDS COESCO PUENTE PUMAREJO | M39: Primax | N39: Automotriz | O39: CRA 8 B #5 - 153 | P39: 2 | Q39: 2 | R39: 0
F40: 27 | G40: COESCO COLOMBIA S.A.S. | H40: A | I40: Bolívar | J40: Cartagena | K40: 631095 | L40: EDS COESCO EL AMPARO | M40: Primax | N40: Automotriz | O40: Cl. 31c #73-60, Cartagena de Indias, Provincia de Cartagena, Bolívar | P40: 4 | Q40: 6 | R40: 2
F41: 28 | G41: COESCO COLOMBIA S.A.S. | H41: A | I41: Tolima | J41: Ibagué | K41: 637175 | L41: EDS COESCO TABOR 1 | M41: Primax | N41: Automotriz | O41: Hacienda el tabor lote 1 vía Ibagué armenia Ibagué - Vereda aparco | P41: 2 | Q41: 2 | R41: 2
F42: 29 | G42: COESCO COLOMBIA S.A.S. | H42: A | I42: Tolima | J42: Ibagué | K42: 637176 | L42: EDS COESCO TABOR 2 | M42: Primax | N42: Automotriz | O42: Hacienda el tabor lote 2 vía Ibagué armenia Ibagué - Vereda aparco | P42: 2 | Q42: 2 | R42: 2
F43: 30 | G43: COESCO COLOMBIA S.A.S. | H43: A | I43: Risaralda | J43: Pereira | K43: 637113 | L43: EDS COESCO DIAMANTE | M43: Primax | N43: Automotriz | O43: Vereda Monte Largo, Lote El Diamante | P43: 2 | Q43: 3 | R43: 2
F44: 31 | G44: DISTRACOM S.A. | H44: A | I44: Córdoba | J44: Montería | K44: 637458 | L44: Distracom Nuestro Montería | M44: Discom | N44: Automotriz | O44: CALLE 41 Nro. 25 254 | P44: 6 | Q44: 8 | R44: 0
F45: 32 | G45: DISTRACOM S.A. | H45: A | I45: Valle del Cauca | J45: Cali | K45: 633503 | L45: Bueno Madrid | M45: Terpel | N45: Automotriz | O45: Calle 34 No. 3N – 158 | P45: 4 | Q45: 6 | R45: 2
F46: 33 | G46: DISTRACOM S.A. | H46: A | I46: Córdoba | J46: Montería | K46: 637500 | L46: EDS Distracom Tacasuan | M46: Discom | N46: Automotriz | O46: Calle 22 Nro 15A - 10 | P46: 4 | Q46: 4 | R46: 0
F47: 34 | G47: DISTRACOM S.A. | H47: A | I47: Córdoba | J47: Montería | K47: 631857 | L47: Estacion Rio Sinu | M47: Primax | N47: Automotriz | O47: Carrera 6 Nro 56 - 11 | P47: 4 | Q47: 8 | R47: 4
F48: 35 | G48: DISTRACOM S.A. | H48: A | I48: Cundinamarca | J48: Soacha | K48: 632258 | L48: EDS Distracom Maipore | M48: Petrobras | N48: Automotriz | O48: Auto Sur Cr 4 No 6 -80 | P48: 4 | Q48: 4 | R48: 0
F49: 36 | G49: DISTRACOM S.A. | H49: A | I49: Antioquia | J49: Medellín | K49: 630528 | L49: EDS Santa Elena | M49: Zeuss | N49: Automotriz | O49: Km 17 + 400 mts vía Santa Elena | P49: 2 | Q49: 2 | R49: 0
F50: 37 | G50: DISTRACOM S.A. | H50: A | I50: Antioquia | J50: Medellín | K50: 630558 | L50: EDS Altavista | M50: Terpel | N50: Automotriz | O50: Cll 18B # 89-11 Interior 110 Brr Belen Altavista | P50: 2 | Q50: 2 | R50: 0
F51: 38 | G51: DISTRACOM S.A. | H51: A | I51: Cundinamarca | J51: Bogotá D.C | K51: 630876 | L51: Distracom Avenida Tercera | M51: Texaco | N51: Automotriz | O51: Cr 30 Av NQS No. 4 - 51 | P51: 4 | Q51: 10 | R51: 6
F52: 39 | G52: DISTRACOM S.A. | H52: A | I52: Cundinamarca | J52: Bogotá D.C | K52: 634228 | L52: Distracom Javeriana | M52: Petrobras | N52: Automotriz | O52: Cr. 7 No. 46 - 21 | P52: 4 | Q52: 6 | R52: 4
F53: 40 | G53: DISTRACOM S.A. | H53: A | I53: Cundinamarca | J53: Bogotá D.C | K53: 630964 | L53: Distracom Primero De Mayo | M53: Petrobras | N53: Automotriz | O53: Ac 22 sur No 27 - 71 | P53: 6 | Q53: 6 | R53: 2
F54: 41 | G54: DISTRACOM S.A. | H54: A | I54: Cundinamarca | J54: Bogotá D.C | K54: 632001 | L54: Distracom Subalaurel | M54: Petrobras | N54: Automotriz | O54: Cl. 146A No. 95B - 67 | P54: 8 | Q54: 8 | R54: 0
F55: 42 | G55: DISTRACOM S.A. | H55: A | I55: Cundinamarca | J55: Chía | K55: 632090 | L55: Distracom El Rodeo | M55: Primax | N55: Automotriz | O55: Km. 20 Costado Occidente Auto Norte | P55: 4 | Q55: 12 | R55: 4
F56: 43 | G56: DISTRACOM S.A. | H56: A | I56: Cundinamarca | J56: Facatativá | K56: 632128 | L56: Distracom San Jorge | M56: Texaco | N56: Automotriz | O56: Autopista Medellin Km. 21 | P56: 2 | Q56: 8 | R56: 2
F57: 44 | G57: DISTRACOM S.A. | H57: A | I57: Cundinamarca | J57: Madrid | K57: 632188 | L57: Distracom Madrid | M57: Petrobras | N57: Automotriz | O57: Via Madrid - Facatativa 300 mts despues del peaje El Corzo | P57: 8 | Q57: 8 | R57: 0
F58: 45 | G58: DISTRACOM S.A. | H58: A | I58: Cundinamarca | J58: Mosquera | K58: 632195 | L58: Distracom Quito 2000 | M58: Petrobras | N58: Automotriz | O58: Km. 7 via Bogota-Mosquera | P58: 4 | Q58: 6 | R58: 6
F59: 46 | G59: DISTRACOM S.A. | H59: A | I59: Cundinamarca | J59: Soacha | K59: 632241 | L59: Distracom Ciudad De Quito | M59: Biomax | N59: Automotriz | O59: Cll 5 No 20 - 11 | P59: 8 | Q59: 4 | R59: 0
F60: 47 | G60: DISTRACOM S.A. | H60: A | I60: Cundinamarca | J60: Soacha | K60: 632250 | L60: Distracom Soacha | M60: Texaco | N60: Automotriz | O60: Transversal 7 No. 9 - 84 | P60: 8 | Q60: 8 | R60: 0
F61: 48 | G61: DISTRACOM S.A. | H61: A | I61: Cundinamarca | J61: Soacha | K61: 636339 | L61: Distracom Tequendama | M61: Petrobras | N61: Automotriz | O61: Carrera 16 Calle 2 lote 2 | P61: 6 | Q61: 4 | R61: 2
F62: 49 | G62: DISTRACOM S.A. | H62: A | I62: Cundinamarca | J62: Sibaté | K62: 632232 | L62: Distracom Autosur | M62: Petrobras | N62: Automotriz | O62: Aut. sur km. 17 Via bogota | P62: 14 | Q62: 8 | R62: 4
F63: 50 | G63: DISTRACOM S.A. | H63: A | I63: Cundinamarca | J63: Chía | K63: 636731 | L63: Estación De Servicio Distracom Icaro | M63: Petrobras | N63: Automotriz | O63: Av Pradilla Dg 13-4 Este 01 | P63: 8 | Q63: 8 | R63: 8
F64: 51 | G64: DISTRACOM S.A. | H64: A | I64: Cundinamarca | J64: Chía | K64: 632092 | L64: Estación De Servicio Y Supermercado Santa Ines | M64: Texaco | N64: Automotriz | O64: Carrera 1 No. 6 A -60 | P64: 6 | Q64: 12 | R64: 6
F65: 52 | G65: DISTRACOM S.A. | H65: A | I65: Cundinamarca | J65: Bogotá D.C | K65: 636515 | L65: Distracom Doña Juana | M65: Biomax | N65: Automotriz | O65: AC 71B Sur No 12 - 85 | P65: 8 | Q65: 6 | R65: 4
F66: 53 | G66: DISTRACOM S.A. | H66: A | I66: Cundinamarca | J66: Bogotá D.C | K66: 631921 | L66: Distracom Zona Industrial | M66: Texaco | N66: Automotriz | O66: Avenida Calle 13 No. 65 - 18 | P66: 8 | Q66: 16 | R66: 8
F67: 54 | G67: DISTRACOM S.A. | H67: A | I67: Cundinamarca | J67: Cota | K67: 636604 | L67: Estación de servicio Distracom Allegro | M67: Biomax | N67: Automotriz | O67: VEREDA ROZO KM 6 VÍA SIBERIA - COTA | P67: 6 | Q67: 6 | R67: 6
F68: 55 | G68: DISTRACOM S.A. | H68: A | I68: Valle Del Cauca | J68: Cali | K68: 633447 | L68: Distracom Camino Real | M68: Primax | N68: Automotriz | O68: Calle 9 No. 62- 98 | P68: 2 | Q68: 6 | R68: 4
F69: 56 | G69: DISTRACOM S.A. | H69: A | I69: Valle Del Cauca | J69: Cali | K69: 633477 | L69: Distracom Miraflores | M69: Primax | N69: Automotriz | O69: Cl. 5 No. 27 - 02 | P69: 2 | Q69: 4 | R69: 2
F70: 57 | G70: DISTRACOM S.A. | H70: A | I70: Valle Del Cauca | J70: Cali | K70: 633588 | L70: Distracom Nueva Terminal | M70: Primax | N70: Automotriz | O70: Cl. 30 No. 2B - 95 | P70: 8 | Q70: 4 | R70: 0
F71: 58 | G71: DISTRACOM S.A. | H71: A | I71: Valle Del Cauca | J71: Cali | K71: 633475 | L71: Distracom Salomia | M71: Primax | N71: Automotriz | O71: Calle 47 No 1 - 40 | P71: 4 | Q71: 8 | R71: 4
F72: 59 | G72: DISTRACOM S.A. | H72: A | I72: Valle Del Cauca | J72: Cali | K72: 633474 | L72: Distracom Terminal Cali | M72: Texaco | N72: Automotriz | O72: Calle 31 No. 2B - 135 | P72: 12 | Q72: 12 | R72: 0
F73: 60 | G73: DISTRACOM S.A. | H73: A | I73: Valle Del Cauca | J73: Cali | K73: 633524 | L73: Distracom Vasquez Cobo | M73: Texaco | N73: Automotriz | O73: Av 2BN No. 26N - 53 | P73: 4 | Q73: 8 | R73: 4
F74: 61 | G74: DISTRACOM S.A. | H74: A | I74: Valle Del Cauca | J74: Cali | K74: 630285 | L74: Distracom Villa Colombia | M74: Texaco | N74: Automotriz | O74: Cra. 15 No. 51 - 40 | P74: 4 | Q74: 12 | R74: 4
F75: 62 | G75: DISTRACOM S.A. | H75: A | I75: Valle Del Cauca | J75: Palmira | K75: 633681 | L75: Distracom Parque Del Azucar | M75: Primax | N75: Automotriz | O75: Cl 42 No. 34B - 141 | P75: 10 | Q75: 10 | R75: 0
F76: 63 | G76: DISTRACOM S.A. | H76: A | I76: Valle Del Cauca | J76: Yumbo | K76: 633730 | L76: Distracom Texaco 30 | M76: Texaco | N76: Automotriz | O76: Cl. 15 No. 11 F - 147 | P76: 12 | Q76: 12 | R76: 4
F77: 64 | G77: DISTRACOM S.A. | H77: A | I77: Valle Del Cauca | J77: Yumbo | K77: 635185 | L77: Distracom La 16 | M77: Primax | N77: Automotriz | O77: Carrera 6 No 15-30 | P77: 4 | Q77: 4 | R77: 0
F78: 65 | G78: DISTRACOM S.A. | H78: A | I78: Valle Del Cauca | J78: Cali | K78: 634977 | L78: Estación De Servicio Distracom Bosques De La Viga | M78: Biomax | N78: Automotriz | O78: Calle 36 No 146-120 La Viga | P78: 4 | Q78: 4 | R78: 4
F79: 66 | G79: DISTRACOM S.A. | H79: A | I79: Atlántico | J79: Barranquilla | K79: 630805 | L79: Distracom Don Bosco | M79: Texaco | N79: Automotriz | O79: Cr. 38 No. 17 - 19 | P79: 6 | Q79: 4 | R79: 0
F80: 67 | G80: DISTRACOM S.A. | H80: A | I80: Atlántico | J80: Barranquilla | K80: 630808 | L80: Distracom Murillo | M80: Primax | N80: Automotriz | O80: Cr. 35 No. 45 - 21 | P80: 4 | Q80: 8 | R80: 0
F81: 68 | G81: DISTRACOM S.A. | H81: A | I81: Atlántico | J81: Barranquilla | K81: 630809 | L81: Distracom Olaya Herrera | M81: Primax | N81: Automotriz | O81: Cr. 46 No. 56 - 36 Barrio Boston | P81: 4 | Q81: 4 | R81: 2
F82: 69 | G82: DISTRACOM S.A. | H82: A | I82: Atlántico | J82: Barranquilla | K82: 635370 | L82: Distracom San Roque | M82: Texaco | N82: Automotriz | O82: Cl. 30 No. 32 - 13 | P82: 4 | Q82: 4 | R82: 0
F83: 70 | G83: DISTRACOM S.A. | H83: A | I83: Atlántico | J83: Malambo | K83: 630823 | L83: Distracom Parque Industrial | M83: Texaco | N83: Automotriz | O83: La esperanza lote A Barrio Malambo | P83: 6 | Q83: 2 | R83: 0
F84: 71 | G84: DISTRACOM S.A. | H84: A | I84: Atlántico | J84: Barranquilla | K84: 630754 | L84: Distracom Maracana | M84: Terpel | N84: Automotriz | O84: Calle 84b No. 38 - 11 | P84: 4 | Q84: 8 | R84: 4
F85: 72 | G85: DISTRACOM S.A. | H85: A | I85: Antioquia | J85: Medellín | K85: 630480 | L85: Distracom Avenida Colombia | M85: Primax | N85: Automotriz | O85: Cl. 50 N°. 64B - 72 | P85: 12 | Q85: 16 | R85: 4
F86: 73 | G86: DISTRACOM S.A. | H86: A | I86: Antioquia | J86: Medellín | K86: 630519 | L86: Distracom Exposiciones | M86: Texaco | N86: Automotriz | O86: Cll 36 No. 51 - 18 | P86: 4 | Q86: 14 | R86: 2
F87: 74 | G87: DISTRACOM S.A. | H87: A | I87: Antioquia | J87: Medellín | K87: 633780 | L87: Distracom Guayabal | M87: Texaco | N87: Automotriz | O87: Cr. 52 No. 11A sur 21 Av. Guayabal | P87: 8 | Q87: 8 | R87: 8
F88: 75 | G88: DISTRACOM S.A. | H88: A | I88: Antioquia | J88: Medellín | K88: 630561 | L88: Distracom Pedregal | M88: Primax | N88: Automotriz | O88: Cr. 64 C No. 89A - 30 | P88: 6 | Q88: 6 | R88: 2
F89: 76 | G89: DISTRACOM S.A. | H89: A | I89: Antioquia | J89: Medellín | K89: 630527 | L89: Distracom San Cristobal | M89: Primax | N89: Automotriz | O89: Cl. 64 No. 127 - 75 | P89: 5 | Q89: 6 | R89: 1
F90: 77 | G90: DISTRACOM S.A. | H90: A | I90: Antioquia | J90: Caldas | K90: 630316 | L90: Distracom Codicaldas | M90: Primax | N90: Automotriz | O90: Cr. 50 No. 123 sur - 55 | P90: 6 | Q90: 6 | R90: 0
F91: 78 | G91: DISTRACOM S.A. | H91: A | I91: Antioquia | J91: Caldas | K91: 635589 | L91: Distracom El Llano | M91: Texaco | N91: Automotriz | O91: Cr. 45 No. 143 SUR - 273 | P91: 10 | Q91: 4 | R91: 2
F92: 79 | G92: DISTRACOM S.A. | H92: A | I92: Antioquia | J92: Caldas | K92: 630317 | L92: Distracom Las Vegas | M92: Primax | N92: Automotriz | O92: Cr 45 No. 134 sur - 605 | P92: 6 | Q92: 4 | R92: 0
F93: 80 | G93: DISTRACOM S.A. | H93: A | I93: Antioquia | J93: La Estrella | K93: 630443 | L93: Distracom La Florida | M93: Primax | N93: Automotriz | O93: Cr. 60 No. 76 sur 51 | P93: 4 | Q93: 4 | R93: 2
F94: 81 | G94: DISTRACOM S.A. | H94: A | I94: Antioquia | J94: Sabaneta | K94: 630609 | L94: Distracom Maria Auxiliadora | M94: Primax | N94: Automotriz | O94: Cr. 45 No. 61 sur 53 | P94: 6 | Q94: 8 | R94: 4
F95: 82 | G95: DISTRACOM S.A. | H95: A | I95: Antioquia | J95: Itagüí | K95: 630420 | L95: Distracom El Cerrito | M95: Primax | N95: Automotriz | O95: Cl. 50 No. 45 - 15 | P95: 2 | Q95: 16 | R95: 0
F96: 83 | G96: DISTRACOM S.A. | H96: A | I96: Antioquia | J96: Itagüí | K96: 635815 | L96: Distracom La Independencia | M96: Primax | N96: Automotriz | O96: Cl. 37B No. 43 - 31 | P96: 4 | Q96: 6 | R96: 4
F97: 84 | G97: DISTRACOM S.A. | H97: A | I97: Antioquia | J97: Itagüí | K97: 635147 | L97: Distracom Los Naranjos | M97: Texaco | N97: Automotriz | O97: Cr. 42 No. 54A - 35 | P97: 10 | Q97: 4 | R97: 4
F98: 85 | G98: DISTRACOM S.A. | H98: A | I98: Antioquia | J98: Bello | K98: 630286 | L98: Distracom Los Angeles | M98: Primax | N98: Automotriz | O98: Cl. 22D No. 45 - 39 entrada autopista Medellin-Bogota | P98: 14 | Q98: 12 | R98: 4
F99: 86 | G99: DISTRACOM S.A. | H99: A | I99: Antioquia | J99: Bello | K99: 630302 | L99: Distracom Portal Del Norte | M99: Primax | N99: Automotriz | O99: Diagonal 50A No. 42B - 255 | P99: 6 | Q99: 6 | R99: 6
F100: 87 | G100: DISTRACOM S.A. | H100: A | I100: Antioquia | J100: Bello | K100: 630295 | L100: Distracom Portal de Niquia | M100: Primax | N100: Automotriz | O100: Avenida 38 No 51 - 185 | P100: 8 | Q100: 12 | R100: 4
F101: 88 | G101: DISTRACOM S.A. | H101: A | I101: Córdoba | J101: Montería | K101: 631858 | L101: Distracom Costa De Oro | M101: Primax | N101: Automotriz | O101: Cl. 29 No. 15A 20 | P101: 8 | Q101: 6 | R101: 2
F102: 89 | G102: DISTRACOM S.A. | H102: A | I102: Córdoba | J102: Montería | K102: 631851 | L102: Distracom El Dorado | M102: Texaco | N102: Automotriz | O102: Cr. 9W No. 23A-34 | P102: 6 | Q102: 8 | R102: 4
F103: 90 | G103: DISTRACOM S.A. | H103: A | I103: Córdoba | J103: Montería | K103: 634133 | L103: Distracom La Circunvalar | M103: Primax | N103: Automotriz | O103: Diagonal 13 No 17 - 25 | P103: 4 | Q103: 4 | R103: 2
F104: 91 | G104: DISTRACOM S.A. | H104: A | I104: Córdoba | J104: Montería | K104: 634767 | L104: Distracom Los Corales | M104: Texaco | N104: Automotriz | O104: Cl. 29 No. 39 - 22 b/Caribe | P104: 6 | Q104: 6 | R104: 2
F105: 92 | G105: DISTRACOM S.A. | H105: A | I105: Bolívar | J105: Cartagena | K105: 631113 | L105: Distracom La Candelaria | M105: Primax | N105: Automotriz | O105: Cl. 32 No. 29 - 210 Av. pedro heredia | P105: 8 | Q105: 6 | R105: 2
F106: 93 | G106: DISTRACOM S.A. | H106: A | I106: Bolívar | J106: Cartagena | K106: 631115 | L106: Distracom Las Olas | M106: Texaco | N106: Automotriz | O106: Pasacaballo, Km 6 via Mamonal | P106: 12 | Q106: 6 | R106: 0
F107: 94 | G107: DISTRACOM S.A. | H107: A | I107: Bolívar | J107: Cartagena | K107: 631088 | L107: Estación de servicio Distracom Terminal Cartagena | M107: Texaco | N107: Automotriz | O107: Carretera La Cordialidad Sector Doña Manuela | P107: 4 | Q107: 4 | R107: 0
F108: 95 | G108: DISTRACOM S.A. | H108: A | I108: Risaralda | J108: Pereira | K108: 632985 | L108: Distracom Ciudad Victoria | M108: Biomax | N108: Automotriz | O108: Cra 11 No. 11 - 64 | P108: 12 | Q108: 12 | R108: 10
F109: 96 | G109: DISTRACOM S.A. | H109: A | I109: Risaralda | J109: Pereira | K109: 634593 | L109: Distracom Las Americas | M109: Texaco | N109: Automotriz | O109: Av. de Las Americas calle 46 | P109: 8 | Q109: 8 | R109: 8
F110: 97 | G110: DISTRACOM S.A. | H110: A | I110: Risaralda | J110: Pereira | K110: 632994 | L110: Distracom Los Pisamos | M110: Texaco | N110: Automotriz | O110: Km. 3 variante El Pollo - La Romelia | P110: 8 | Q110: 6 | R110: 2
F111: 98 | G111: DISTRACOM S.A. | H111: A | I111: Risaralda | J111: Pereira | K111: 632974 | L111: Distracom Matecaña | M111: Primax | N111: Automotriz | O111: Av. 30 de agosto No. 49 - 76 | P111: 4 | Q111: 8 | R111: 4
F112: 99 | G112: DISTRACOM S.A. | H112: A | I112: Risaralda | J112: Pereira | K112: 633001 | L112: Distracom Terminal Pereira | M112: Primax | N112: Automotriz | O112: Cl. 17 No. 23 - 157 salida Armenia | P112: 10 | Q112: 12 | R112: 0
F113: 100 | G113: DISTRACOM S.A. | H113: A | I113: Risaralda | J113: Dosquebradas | K113: 634848 | L113: Distracom La Badea | M113: Biomax | N113: Automotriz | O113: Cl. 9 No. 1 A - 73 | P113: 6 | Q113: 6 | R113: 6
F114: 101 | G114: DISTRACOM S.A. | H114: A | I114: Risaralda | J114: Dosquebradas | K114: 632955 | L114: Distracom La Romelia | M114: Primax | N114: Automotriz | O114: Cr. 16 cl. 80 | P114: 8 | Q114: 6 | R114: 4
F115: 102 | G115: DISTRACOM S.A. | H115: A | I115: Tolima | J115: Ibagué | K115: 633328 | L115: Distracom El Triunfo | M115: Texaco | N115: Automotriz | O115: Cr. 1 No. 18 A -01 | P115: 3 | Q115: 3 | R115: 2
F116: 103 | G116: DISTRACOM S.A. | H116: A | I116: Sucre | J116: Sincelejo | K116: 633225 | L116: Distracom Las Peñitas | M116: Primax | N116: Automotriz | O116: Calle 25 No. 25 b - 220 | P116: 3 | Q116: 3 | R116: 2
F117: 104 | G117: DISTRACOM S.A. | H117: A | I117: Sucre | J117: Sincelejo | K117: 633240 | L117: Distracom Sabanas | M117: Primax | N117: Automotriz | O117: Cr. 4 No. 39-347 b/El Brujo | P117: 4 | Q117: 4 | R117: 2
F118: 105 | G118: DISTRACOM S.A. | H118: A | I118: Sucre | J118: Sincelejo | K118: 636355 | L118: Distracom Sevilla | M118: Texaco | N118: Automotriz | O118: Cl. 38 No. 17 - 06 | P118: 6 | Q118: 6 | R118: 0
F119: 106 | G119: DISTRACOM S.A. | H119: A | I119: Sucre | J119: Sincelejo | K119: 636784 | L119: Distracom Sierraflor | M119: Texaco | N119: Automotriz | O119: CALLE 15 N° 4 - 13 | P119: 4 | Q119: 4 | R119: 0
F120: 107 | G120: DISTRACOM S.A. | H120: A | I120: Caldas | J120: Manizales | K120: 631375 | L120: Distracom Avenida El Rio | M120: Texaco | N120: Automotriz | O120: Av. Kevinangel 57 - 120 | P120: 4 | Q120: 4 | R120: 2
F121: 108 | G121: DISTRACOM S.A. | H121: A | I121: Meta | J121: Villavicencio | K121: 632719 | L121: Distracom Autocentro Palmira | M121: Primax | N121: Automotriz | O121: Transversal 29 N° 41-39 | P121: 8 | Q121: 8 | R121: 4
F122: 109 | G122: DISTRACOM S.A. | H122: A | I122: Meta | J122: Villavicencio | K122: 635789 | L122: Distracom Avenida Catama | M122: Primax | N122: Automotriz | O122: Cr. 9 Cl. 35 Parques de Sevilla | P122: 6 | Q122: 4 | R122: 4
F123: 110 | G123: DISTRACOM S.A. | H123: A | I123: Meta | J123: Villavicencio | K123: 632712 | L123: Distracom Ciudad Villavicencio | M123: Primax | N123: Automotriz | O123: Calle 23 N° 35 - 29 | P123: 4 | Q123: 8 | R123: 6
F124: 111 | G124: DISTRACOM S.A. | H124: A | I124: Meta | J124: Villavicencio | K124: 632714 | L124: Distracom Divino Niño Del Llano | M124: Biomax | N124: Automotriz | O124: Km 4 via Puerto Lopez | P124: 16 | Q124: 6 | R124: 0
F125: 112 | G125: DISTRACOM S.A. | H125: A | I125: Meta | J125: Villavicencio | K125: 636197 | L125: Distracom Montealegre | M125: Primax | N125: Automotriz | O125: Cr. 48 No. 21 - 01 | P125: 6 | Q125: 6 | R125: 4
F126: 113 | G126: DISTRACOM S.A. | H126: A | I126: Meta | J126: Villavicencio | K126: 632696 | L126: Distracom Servipopular | M126: Biomax | N126: Automotriz | O126: Calle 25 No 12A - 27 | P126: 4 | Q126: 8 | R126: 0
F127: 114 | G127: DISTRACOM S.A. | H127: A | I127: Meta | J127: Villavicencio | K127: 635597 | L127: Distracom Ciudad Porfia | M127: Petrobras | N127: Automotriz | O127: CRA 43 No. 79-01 B/ PORFIA | P127: 4 | Q127: 4 | R127: 0
F128: 115 | G128: DISTRACOM S.A. | H128: A | I128: Quindío | J128: Armenia | K128: 632919 | L128: Distracom Galan | M128: Biomax | N128: Automotriz | O128: Cr. 19 No. 03-81 | P128: 8 | Q128: 8 | R128: 4
F129: 116 | G129: DISTRACOM S.A. | H129: A | I129: Huila | J129: Neiva | K129: 635846 | L129: Distracom Palermo | M129: Primax | N129: Automotriz | O129: Km. 2 Via Neiva- Palermo | P129: 8 | Q129: 4 | R129: 2
F130: 117 | G130: DISTRACOM S.A. | H130: A | I130: Magdalena | J130: Santa Marta | K130: 632599 | L130: Distracom La Milagrosa | M130: Texaco | N130: Automotriz | O130: Cl. 30 No. 17A - 78 | P130: 4 | Q130: 4 | R130: 0
F131: 118 | G131: DISTRACOM S.A. | H131: A | I131: Magdalena | J131: Santa Marta | K131: 635453 | L131: Distracom La Quinta | M131: Texaco | N131: Automotriz | O131: Cl. 30 No. 31 - 242 | P131: 8 | Q131: 8 | R131: 6
F132: 119 | G132: DISTRACOM S.A. | H132: A | I132: Antioquia | J132: Girardota | K132: 632162 | L132: Distracom El Trapiche | M132: Primax | N132: Automotriz | O132: Km 23 vía Medellín - Costa Atlántica 500 metros antes del peaje de San Andrés | P132: 10 | Q132: 4 | R132: 0
F133: 120 | G133: DISTRACOM S.A. | H133: A | I133: Antioquia | J133: Girardota | K133: 634195 | L133: Distracom El Molino | M133: Texaco | N133: Automotriz | O133: Autopista Norte, Vereda San Andrés Km 24 | P133: 5 | Q133: 6 | R133: 6
F134: 121 | G134: DISTRACOM S.A. | H134: A | I134: Antioquia | J134: Medellín | K134: 630470 | L134: Distracom Los delfines | M134: Texaco | N134: Automotriz | O134: Cl. 6 Sur No. 52 - 65 | P134: 8 | Q134: 14 | R134: 4
F135: 122 | G135: DISTRACOM S.A. | H135: A | I135: Antioquia | J135: Itagüí | K135: 634062 | L135: Distracom Suramerica | M135: Texaco | N135: Automotriz | O135: Cr. 42 No. 24 - 345 | P135: 8 | Q135: 8 | R135: 4
F136: 123 | G136: DISTRACOM S.A. | H136: A | I136: Atlántico | J136: Soledad | K136: 636781 | L136: Distracom Carnaval | M136: Texaco | N136: Automotriz | O136: Cl. 30 No. 12 - 270 | P136: 4 | Q136: 4 | R136: 0
F137: 124 | G137: DISTRACOM S.A. | H137: A | I137: Boyacá | J137: Tunja | K137: 634071 | L137: Distracom El Virrey | M137: Petrobras | N137: Automotriz | O137: Cr 14 No. 4 - 41 Sur | P137: 4 | Q137: 4 | R137: 0
F138: 125 | G138: DISTRACOM S.A. | H138: A | I138: Santander | J138: Bucaramanga | K138: 636497 | L138: Distracom Chicamocha | M138: Petrobras | N138: Automotriz | O138: Cl. 45 No. 20 - 13 | P138: 6 | Q138: 6 | R138: 6
F139: 126 | G139: DISTRACOM S.A. | H139: A | I139: Santander | J139: Girón | K139: 637123 | L139: Distracom Plaza San Juan | M139: Primax | N139: Automotriz | O139: Anillo vial km 6 vía Floridablanca - Girón | P139: 6 | Q139: 4 | R139: 2
F140: 127 | G140: DISTRACOM S.A. | H140: A | I140: Valle del Cauca | J140: Cali | K140: 633500 | L140: Distracom Granada | M140: Primax | N140: Automotriz | O140: Av. 8N No. 15A Norte - 06 | P140: 0 | Q140: 6 | R140: 4
F141: 128 | G141: DISTRACOM S.A. | H141: A | I141: Atlántico | J141: Barranquilla | K141: 634407 | L141: Distracom Puente Bolivar | M141: Texaco | N141: Automotriz | O141: Carrera 22 No. 45 - 15 | P141: 4 | Q141: 4 | R141: 0
F142: 129 | G142: DISTRACOM S.A. | H142: A | I142: Risaralda | J142: Pereira | K142: 637407 | L142: DISTRACOM ECONOGAS | M142: Primax | N142: Automotriz | O142: Calle 17 No 23 - 157 Terminal de transporte | P142: 4 | Q142: 4 | R142: 0
F143: 130 | G143: DISTRACOM S.A. | H143: A | I143: Antioquia | J143: Medellín | K143: 630510 | L143: Distracom San Miguel | M143: Primax | N143: Automotriz | O143: Cr. 55 No 53 sur 50 | P143: 6 | Q143: 8 | R143: 2
F144: 131 | G144: GLOBOLLANTAS S.A.S. | H144: A | I144: Valle Del Cauca | J144: Cali | K144: 633556 | L144: Estación de Servicio Globollantas Ltda | M144: Primax | N144: Automotriz | O144: Calle 10 No. 40-52 | P144: 2 | Q144: 6 | R144: 4
F145: 132 | G145: GLOBOLLANTAS S.A.S. | H145: A | I145: Valle Del Cauca | J145: Cali | K145: 633483 | L145: Estación de Servicio Mobil Capri | M145: Primax | N145: Automotriz | O145: Cl 5 No. 77-59 | P145: 1 | Q145: 4 | R145: 4
F146: 133 | G146: GLOBOLLANTAS S.A.S. | H146: A | I146: Valle Del Cauca | J146: Palmira | K146: 633674 | L146: Cerón Zapata y Cia Ltda | M146: Primax | N146: Automotriz | O146: Calle 42 No. 31-71 | P146: 2 | Q146: 2 | R146: 0
F147: 134 | G147: GLOBOLLANTAS S.A.S. | H147: A | I147: Valle Del Cauca | J147: Cali | K147: 634626 | L147: Estación de Servicios Los Cerros | M147: Primax | N147: Automotriz | O147: Calle 1 No. 69-43 | P147: 3 | Q147: 3 | R147: 2
F148: 135 | G148: GLOBOLLANTAS S.A.S. | H148: A | I148: Valle Del Cauca | J148: Cali | K148: 633445 | L148: Estación de Servicio Terpel La Casona | M148: Terpel | N148: Automotriz | O148: Carrera 27 No. T103-38 | P148: 2 | Q148: 3 | R148: 0
F149: 136 | G149: GLOBOLLANTAS S.A.S. | H149: A | I149: Valle Del Cauca | J149: Cali | K149: 633504 | L149: Estación de Servicio Opes El Triángulo | M149: Primax | N149: Automotriz | O149: Calle 9 No. 17-65 | P149: 2 | Q149: 2 | R149: 2
F150: 137 | G150: GLOBOLLANTAS S.A.S. | H150: A | I150: Valle Del Cauca | J150: Cali | K150: 633539 | L150: Estación de Servicio Opes Américas | M150: Primax | N150: Automotriz | O150: Calle 21 Norte Av 3-31 | P150: 4 | Q150: 3 | R150: 3
F151: 138 | G151: GLOBOLLANTAS S.A.S. | H151: A | I151: Valle Del Cauca | J151: Cali | K151: 633546 | L151: Estación de Servicio Opes Belalcazar | M151: Primax | N151: Automotriz | O151: Carrera 1 No. 43-20 | P151: 2 | Q151: 2 | R151: 2
F152: 139 | G152: GLOBOLLANTAS S.A.S. | H152: A | I152: Valle Del Cauca | J152: Yumbo | K152: 634804 | L152: Estación de Servicio Opes Acopi | M152: Primax | N152: Automotriz | O152: Calle 10 No. 33-98 | P152: 4 | Q152: 5 | R152: 2
F153: 140 | G153: GLOBOLLANTAS S.A.S. | H153: A | I153: Valle Del Cauca | J153: Yumbo | K153: 635472 | L153: Estación de Servicio Opes Terminal Logístico | M153: Primax | N153: Automotriz | O153: Lote 1 kilómetro 6 vía Cali - Yumbo | P153: 4 | Q153: 3 | R153: 0
F154: 141 | G154: GLOBOLLANTAS S.A.S. | H154: A | I154: Valle Del Cauca | J154: Cali | K154: 633560 | L154: Estación de Servicio Opes Pasoancho | M154: Primax | N154: Automotriz | O154: Calle 13 No. 52-92 | P154: 3 | Q154: 1 | R154: 2
F155: 142 | G155: GLOBOLLANTAS S.A.S. | H155: A | I155: Valle Del Cauca | J155: Cali | K155: 636438 | L155: Estación de Servicio Opes Palermo | M155: Petrobras | N155: Automotriz | O155: Carrera 8 NO. 20-91 | P155: 2 | Q155: 2 | R155: 0
F156: 143 | G156: GLOBOLLANTAS S.A.S. | H156: A | I156: Valle Del Cauca | J156: Cali | K156: 633450 | L156: Servicentro Esso Panamericana | M156: Esso | N156: Automotriz | O156: Calle 34 No. 3-33 | P156: 2 | Q156: 3 | R156: 1
F157: 144 | G157: GLOBOLLANTAS S.A.S. | H157: A | I157: Valle Del Cauca | J157: Cali | K157: 633545 | L157: Estación de Servicio Autopro San Marino | M157: Esso | N157: Automotriz | O157: Calle 70 No. 7D Bis70 | P157: 2 | Q157: 3 | R157: 1
F158: 145 | G158: GLOBOLLANTAS S.A.S. | H158: A | I158: Valle Del Cauca | J158: Jamundí | K158: 633644 | L158: Estación de Servicio Autopro Carrera 10 | M158: Primax | N158: Automotriz | O158: Carrera 10 No. 14-16 | P158: 3 | Q158: 5 | R158: 2
F159: 146 | G159: GLOBOLLANTAS S.A.S. | H159: A | I159: Valle Del Cauca | J159: Jamundí | K159: 633645 | L159: Estación de Servicio Autopro Dorado | M159: Primax | N159: Automotriz | O159: Carrera 10 No. 16-36 | P159: 2 | Q159: 3 | R159: 1
F160: 147 | G160: GLOBOLLANTAS S.A.S. | H160: A | I160: Valle Del Cauca | J160: Cali | K160: 633442 | L160: Servicentro Esso Santa Mónica | M160: Esso | N160: Automotriz | O160: Avenida 6N No. 22-61 | P160: 1 | Q160: 4 | R160: 3
F161: 148 | G161: GRUPO EDS AUTOGAS SAS | H161: A | I161: Antioquia | J161: Bello | K161: 630290 | L161: EDS ESSO BELLO MADERA | M161: SHELL | N161: Automotriz | O161: CARRERA 50 # 25B - 15 | P161: 3 | Q161: 6 | R161: 4
F162: 149 | G162: GRUPO EDS AUTOGAS SAS | H162: A | I162: Antioquia | J162: Envigado | K162: 630391 | L162: ESTACION DE SERVICIOS TEXACO AUTOGAS LAS VEGAS | M162: TEXACO | N162: Automotriz | O162: CARRERA 48 # 30 sur 48 SUR | P162: 4 | Q162: 4 | R162: 4
F163: 150 | G163: GRUPO EDS AUTOGAS SAS | H163: A | I163: Antioquia | J163: Itagüí | K163: 630422 | L163: AUTOGAS DE COLOMBIA BREASCOL S.A. EDS TERPEL CENTRAL MAYORISTA | M163: TERPEL | N163: Automotriz | O163: CL 84A 46A -30 | P163: 4 | Q163: 6 | R163: 0
F164: 151 | G164: GRUPO EDS AUTOGAS SAS | H164: A | I164: Antioquia | J164: Itagüí | K164: 635123 | L164: ESTACION DE SERVICIOS TEXACO FLA | M164: TEXACO | N164: Automotriz | O164: CARRERA 50G # 12 SUR 04 | P164: 3 | Q164: 3 | R164: 3
F165: 152 | G165: GRUPO EDS AUTOGAS SAS | H165: A | I165: Antioquia | J165: Itagüí | K165: 635124 | L165: ESTACION DE SERVICIO TEXACO COLTEJER | M165: TEXACO | N165: Automotriz | O165: CARRERA 52 # 60 - 110 | P165: 6 | Q165: 6 | R165: 6
F166: 153 | G166: GRUPO EDS AUTOGAS SAS | H166: A | I166: Antioquia | J166: Caldas | K166: 630440 | L166: ESTACION DE SERVICIO ESSO LA VARIANTE | M166: PRIMAX | N166: Automotriz | O166: CARRERA 48 #100C SUR 131 | P166: 3 | Q166: 3 | R166: 1
F167: 154 | G167: GRUPO EDS AUTOGAS SAS | H167: A | I167: Antioquia | J167: Medellín | K167: 630501 | L167: BREASCOL EDS TERPEL TERMINAL | M167: TERPEL | N167: Automotriz | O167: Cra 64a # 78-55 | P167: 6 | Q167: 5 | R167: 1
F168: 155 | G168: GRUPO EDS AUTOGAS SAS | H168: A | I168: Antioquia | J168: Medellín | K168: 630503 | L168: ESTACION DE SERVICIO TEXACO LA AGUACATALA | M168: TEXACO | N168: Automotriz | O168: CARRERA 50E # 10 SUR - 130 | P168: 5 | Q168: 5 | R168: 5
F169: 156 | G169: GRUPO EDS AUTOGAS SAS | H169: A | I169: Antioquia | J169: Medellín | K169: 630475 | L169: EDS ESSO AVENIDA ORIENTAL | M169: PRIMAX | N169: Automotriz | O169: CALLE 41 # 46 -11 | P169: 2 | Q169: 4 | R169: 2
F170: 157 | G170: GRUPO EDS AUTOGAS SAS | H170: A | I170: Antioquia | J170: Medellín | K170: 630522 | L170: EDS MOBIL SUR | M170: PRIMAX | N170: Automotriz | O170: CARRERA 51 # 32 - 40 | P170: 2 | Q170: 3 | R170: 2
F171: 158 | G171: GRUPO EDS AUTOGAS SAS | H171: A | I171: Antioquia | J171: Medellín | K171: 630476 | L171: EDS ESSO CASTILLA | M171: PRIMAX | N171: Automotriz | O171: TRANSVERSAL 78 # 65 - 71 | P171: 3 | Q171: 6 | R171: 3
F172: 159 | G172: GRUPO EDS AUTOGAS SAS | H172: A | I172: Antioquia | J172: Medellín | K172: 630460 | L172: EDS ESSO SANTA MARTA | M172: PRIMAX | N172: Automotriz | O172: CALLE 45A # 60 - 13 | P172: 3 | Q172: 3 | R172: 1
F173: 160 | G173: GRUPO EDS AUTOGAS SAS | H173: A | I173: Antioquia | J173: Medellín | K173: 635462 | L173: EDS TEXACO PUNTO CERO | M173: TEXACO | N173: Automotriz | O173: DIAGONAL 64E # 67- 405 | P173: 4 | Q173: 4 | R173: 4
F174: 161 | G174: GRUPO EDS AUTOGAS SAS | H174: A | I174: Antioquia | J174: Medellín | K174: 630477 | L174: EDS ESSO BOLIVARIANA | M174: PRIMAX | N174: Automotriz | O174: AV 33 # 66A - 21 | P174: 0 | Q174: 3 | R174: 2
F175: 162 | G175: GRUPO EDS AUTOGAS SAS | H175: A | I175: Antioquia | J175: Medellín | K175: 630528 | L175: ESTACION DE SERVICIO SANTA ELENA | M175: ZEUS | N175: Automotriz | O175: KM 17. + 400MTS. VIA SANTA ELENA | P175: 2 | Q175: 2 | R175: 0
F176: 163 | G176: GRUPO EDS AUTOGAS SAS | H176: A | I176: Cundinamarca | J176: Bogotá D.C | K176: 630877 | L176: EDS ESSO MUZU | M176: PRIMAX | N176: Automotriz | O176: CALLE 45 # 50B - 60 SUR | P176: 3 | Q176: 5 | R176: 2
F177: 164 | G177: GRUPO EDS AUTOGAS SAS | H177: A | I177: Cundinamarca | J177: Bogotá D.C | K177: 631002 | L177: EDS MOBIL LA ESPAÑOLA | M177: SHELL | N177: Automotriz | O177: AV CLL 80 No 86 - 94 | P177: 2 | Q177: 4 | R177: 2
F178: 165 | G178: GRUPO EDS AUTOGAS SAS | H178: A | I178: Cundinamarca | J178: Bogotá D.C | K178: 630896 | L178: EDS ESSO BRASIL | M178: PRIMAX | N178: Automotriz | O178: AV. CLL. 6 N 34-90 | P178: 2 | Q178: 2 | R178: 2
F179: 166 | G179: GRUPO EDS AUTOGAS SAS | H179: A | I179: Cundinamarca | J179: Bogotá D.C | K179: 630932 | L179: EDS ESSO EL TRIANGULO | M179: PRIMAX | N179: Automotriz | O179: CARRERA 7 # 59 - 47 | P179: 0 | Q179: 4 | R179: 2
F180: 167 | G180: GRUPO EDS AUTOGAS SAS | H180: A | I180: Cundinamarca | J180: Bogotá D.C | K180: 631038 | L180: EDS ESSO ERMITA CAPILLA | M180: PRIMAX | N180: Automotriz | O180: AV. 14 No. 45A 25 sur | P180: 3 | Q180: 3 | R180: 0
F181: 168 | G181: GRUPO EDS AUTOGAS SAS | H181: A | I181: Cundinamarca | J181: Bogotá D.C | K181: 631039 | L181: EDS ESSO CIUDAD SALITRE | M181: PRIMAX | N181: Automotriz | O181: CALLE 22 C No 68 D-20 | P181: 4 | Q181: 7 | R181: 2
F182: 169 | G182: GRUPO EDS AUTOGAS SAS | H182: A | I182: Cundinamarca | J182: Bogotá D.C | K182: 631043 | L182: ESTACION DE SERVICIO AUTOMOTRIZ EDS ESSO LAS MARGARITAS | M182: PRIMAX | N182: Automotriz | O182: CALLE 145 # 21 - 93 | P182: 0 | Q182: 6 | R182: 4
F183: 170 | G183: GRUPO EDS AUTOGAS SAS | H183: A | I183: Cundinamarca | J183: Bogotá D.C | K183: 631047 | L183: EDS ESSO PTE ARANDA | M183: PRIMAX | N183: Automotriz | O183: CARRERA 50 No.19 - 15 | P183: 3 | Q183: 3 | R183: 3
F184: 171 | G184: GRUPO EDS AUTOGAS SAS | H184: A | I184: Cundinamarca | J184: Bogotá D.C | K184: 632057 | L184: EDS ESSO QUIROGA | M184: PRIMAX | N184: Automotriz | O184: AVENIDA CARACAS CARRERA 14 # 27 - 05 SUR | P184: 2 | Q184: 3 | R184: 2
F185: 172 | G185: GRUPO EDS AUTOGAS SAS | H185: A | I185: Cundinamarca | J185: Bogotá D.C | K185: 632058 | L185: EDS ESSO INDUSTRIAL BOYACA | M185: PRIMAX | N185: Automotriz | O185: AVENIDA BOYACA CARRERA 71 No 19 - 53 | P185: 5 | Q185: 6 | R185: 2
F186: 173 | G186: GRUPO EDS AUTOGAS SAS | H186: A | I186: Cundinamarca | J186: Bogotá D.C | K186: 634498 | L186: ESTACION DE SERVICIOS SANTANDER 19 | M186: SHELL | N186: Automotriz | O186: CALLE 20 SUR # 29 C- 83 | P186: 3 | Q186: 3 | R186: 1
F187: 174 | G187: GRUPO EDS AUTOGAS SAS | H187: A | I187: Cundinamarca | J187: Bogotá D.C | K187: 632029 | L187: EDS TEXACO No 28 | M187: TEXACO | N187: Automotriz | O187: AVENIDA CARACAS CARRERA .14 N 26 - 05 | P187: 1 | Q187: 4 | R187: 1
F188: 175 | G188: GRUPO EDS AUTOGAS SAS | H188: A | I188: Cundinamarca | J188: Bogotá D.C | K188: 631049 | L188: EDS ESSO AMERICANA | M188: PRIMAX | N188: Automotriz | O188: CALLE 13 No 57 - 24 | P188: 3 | Q188: 4 | R188: 1
F189: 176 | G189: GRUPO EDS AUTOGAS SAS | H189: A | I189: Cundinamarca | J189: Bogotá D.C | K189: 630981 | L189: EDS ESSO SAN DIEGO | M189: PRIMAX | N189: Automotriz | O189: CARRERA 19 No. 29-41 | P189: 2 | Q189: 4 | R189: 2
F190: 177 | G190: GRUPO EDS AUTOGAS SAS | H190: A | I190: Cundinamarca | J190: Bogotá D.C | K190: 631040 | L190: ESTACION DE SERVICIO AUTOMOTRIZ EDS ESSO COMUNEROS | M190: PRIMAX | N190: Automotriz | O190: Av Cll 6ª No 19 -11 | P190: 3 | Q190: 4 | R190: 1
F191: 178 | G191: GRUPO EDS AUTOGAS SAS | H191: A | I191: Cundinamarca | J191: Bogotá D.C | K191: 630898 | L191: EDS ESSO KENNEDY | M191: PRIMAX | N191: Automotriz | O191: CARRERA 79 # 41f - 24 SUR | P191: 3 | Q191: 6 | R191: 0
F192: 179 | G192: GRUPO EDS AUTOGAS SAS | H192: A | I192: Cundinamarca | J192: Bogotá D.C | K192: 632062 | L192: EDS ESSO INCOCENTRO CALLE 49 | M192: PRIMAX | N192: Automotriz | O192: AV CARACAS CARRERA 14 No 48 -74 | P192: 0 | Q192: 4 | R192: 2
F193: 180 | G193: GRUPO EDS AUTOGAS SAS | H193: A | I193: Cundinamarca | J193: Bogotá D.C | K193: 631048 | L193: EDS ESSO AVENIDA 68 | M193: PRIMAX | N193: Automotriz | O193: AV. 68 No 20 - 55 SUR | P193: 3 | Q193: 4 | R193: 1
F194: 181 | G194: GRUPO EDS AUTOGAS SAS | H194: A | I194: Cundinamarca | J194: Bogotá D.C | K194: 630897 | L194: EDS MOBIL LOS ANDES | M194: PRIMAX | N194: Automotriz | O194: CARRERA 80 No 58 L - 15 SUR | P194: 3 | Q194: 3 | R194: 0
F195: 182 | G195: GRUPO EDS AUTOGAS SAS | H195: A | I195: Cundinamarca | J195: Bogotá D.C | K195: 635443 | L195: ESTACION DE SERVICIO AUTOMOTRIZ TEXACO 68 | M195: PRIMAX | N195: Automotriz | O195: Av.68 No. 1A-84 | P195: 6 | Q195: 6 | R195: 6
F196: 183 | G196: GRUPO EDS AUTOGAS SAS | H196: A | I196: Bolívar | J196: Cartagena | K196: 636423 | L196: PUERTA DE HIERRO | M196: TEXACO | N196: Automotriz | O196: KM 5 vía mamonal, sector puerta de hierro, parqueadero donde rafa. CARRERA 56 # 60D -177 | P196: 3 | Q196: 3 | R196: 0
F197: 184 | G197: GRUPO EDS AUTOGAS SAS | H197: A | I197: Cundinamarca | J197: Cota | K197: 632110 | L197: ESTACION DE SERVICIO AUTOMOTRIZ EDS ESSO SIBERIA | M197: PRIMAX | N197: Automotriz | O197: AUTOPISTA MEDELLÍN Km. 4.5 SIBERIA | P197: 2 | Q197: 2 | R197: 2
F198: 185 | G198: GRUPO EDS AUTOGAS SAS | H198: A | I198: Cundinamarca | J198: Cota | K198: 632107 | L198: EDS ESSO AUTOPISTA MEDELLIN | M198: PRIMAX | N198: Automotriz | O198: KM 0,5 AUTOPISTA MEDELLÍN, VIA SIBERIA | P198: 5 | Q198: 3 | R198: 3
F199: 186 | G199: GRUPO EDS AUTOGAS SAS | H199: A | I199: Cundinamarca | J199: Mosquera | K199: 632196 | L199: EDS AUTOGAS CRUCE MOSQUERA | M199: PRIMAX | N199: Automotriz | O199: CALLE 3 No 3 - 59 este | P199: 6 | Q199: 4 | R199: 2
F200: 187 | G200: GRUPO EDS AUTOGAS SAS | H200: A | I200: Cundinamarca | J200: Bogotá D.C | K200: 631045 | L200: TEXANA | M200: PRIMAX | N200: Automotriz | O200: AUTOPISTA NORTE #192-18 /30 | P200: 5 | Q200: 4 | R200: 2
F201: 188 | G201: GRUPO EDS AUTOGAS SAS | H201: A | I201: Cundinamarca | J201: Bogotá D.C | K201: 631957115 | L201: EDS ROCAMAR | M201: BIOMAX | N201: MIXTA | O201: CRA 7 No 169-65 | P201: 2 | Q201: 2 | R201: 0
F202: 189 | G202: GRUPO EDS AUTOGAS SAS | H202: A | I202: Cundinamarca | J202: Bogotá D.C | K202: 631055115 | L202: Eds Tintal | M202: Shell | N202: Dual | O202: Avenida Calle 54 Sur Nro. 89 a 55 | P202: 3 | Q202: 3 | R202: 0
F203: 190 | G203: GRUPO EDS AUTOGAS SAS | H203: A | I203: Cundinamarca | J203: Bogotá D.C | K203: 630924115 | L203: EDS VIA AL LLANO | M203: BIOMAX | N203: MIXTA | O203: CL 84 SUR 3 A 41 ESTE | P203: 5 | Q203: 2 | R203: 0
F204: 191 | G204: GRUPO EDS AUTOGAS SAS | H204: A | I204: Cundinamarca | J204: Bogotá D.C | K204: 634057115 | L204: Eds Bima | M204: Shell | N204: Mixta | O204: Avenida carrera 45 # 232 -35 | P204: 2 | Q204: 2 | R204: 2
F205: 192 | G205: GRUPO EDS AUTOGAS SAS | H205: A | I205: Cundinamarca | J205: Bogotá D.C | K205: 635603001 | L205: EDS COLINA | M205: Shell | O205: AV. CARRERA 72 (AV. BOYACÁ) NO. 132-A-27 | P205: 3 | Q205: 3 | R205: 3
F206: 193 | G206: GRUPO EDS AUTOGAS SAS | H206: A | I206: Antioquia | J206: Envigado | K206: 635572056 | L206: EDS LA 43 | M206: SHELL | N206: COMBUSTIBLE | O206: CARRERA 43A # 46 SUR 20 | P206: 3 | Q206: 3 | R206: 3
F207: 194 | G207: GRUPO EDS AUTOGAS SAS | H207: A | I207: Antioquia | J207: Medellín | K207: 634728055 | L207: ESTACIÓN DE SERVICIO ESTRELLADE OCCIDENTE | M207: TEXACO | N207: AUTOMOTRIZ | O207: CALLE 60 N 131 A - 268 | P207: 3 | Q207: 4 | R207: 3
F208: 195 | G208: ORGANIZACIÓN TERPEL S.A | H208: A | I208: Cundinamarca | J208: Bogotá D.C | K208: 631962 | L208: EDS ENGATIVA | M208: Terpel | N208: Automotriz | O208: Calle 62 No. 97 - 10 Al Lado De La Expoferia Automotriz | P208: 4 | Q208: 4 | R208: 4
F209: 196 | G209: ORGANIZACIÓN TERPEL S.A | H209: A | I209: Cundinamarca | J209: Bogotá D.C | K209: 632050 | L209: EDS LA 68 | M209: Terpel | N209: Automotriz | O209: Av. 68 No. 33-25 Sur | P209: 4 | Q209: 4 | R209: 2
F210: 197 | G210: ORGANIZACIÓN TERPEL S.A | H210: A | I210: Cundinamarca | J210: Bogotá D.C | K210: 635926 | L210: EDS EL DORADO OPAIN | M210: Terpel | N210: Automotriz | O210: Calle 26 No. 113 - 90 | P210: 8 | Q210: 8 | R210: 8
... 374 more rows

Sheet EDS_C (hidden)
F11: Estaciones de Servicio (EDS)
F12: N° | G12: Nombre del Proponente | H12: Categoría | I12: Departamento | J12: Municipio | K12: Nombre de la EDS | L12: Tipo de EDS | M12: Bandera | N12: Dirección de la EDS
F14: 1 | G14: PLUXEE COLOMBIA S.A.S | H14: C | I14: AMAZONAS | J14: LETICIA | K14: EDS AVENIDA SEXTA | L14: Automotriz | M14: TERPEL | N14: CARRERA 6 No. 5-48
F15: 2 | G15: PLUXEE COLOMBIA S.A.S | H15: C | I15: AMAZONAS | J15: LETICIA | K15: DISTRIBUIDORA LOS COMUNEROS | L15: Automotriz | M15: TERPEL | N15: PUERTO CIVIL ISLA DE LA FANTASIA
F16: 3 | G16: PLUXEE COLOMBIA S.A.S | H16: C | I16: AMAZONAS | J16: LETICIA | K16: EDS BALSA EL CONDOR | L16: Automotriz | M16: TERPEL | N16: PUERTO CIVIL ISLA DE LA FANTASIA
F17: 4 | G17: PLUXEE COLOMBIA S.A.S | H17: C | I17: ANTIOQUIA | J17: RIONEGRO | K17: COMBUSTIBLES GALAXIA S.A. | L17: Automotriz | M17: PRIMAX | N17: Cra. 48 No. 52-02
F18: 5 | G18: PLUXEE COLOMBIA S.A.S | H18: C | I18: ANTIOQUIA | J18: RIONEGRO | K18: ESSO LLANOGRANDE | L18: Automotriz | M18: PRIMAX | N18: Km 8 vía Llano grande - Rionegro
F19: 6 | G19: PLUXEE COLOMBIA S.A.S | H19: C | I19: ANTIOQUIA | J19: PUERTO TRIUNFO | K19: ESTACIÓN DORADAL | L19: Automotriz | M19: PRIMAX | N19: Calle 20 No 17 102
F20: 7 | G20: PLUXEE COLOMBIA S.A.S | H20: C | I20: ANTIOQUIA | J20: RETIRO | K20: DISTRACOM PINARES EL RETIRO | L20: Automotriz | M20: PRIMAX | N20: Km. 2,5 Vía La Fe
F21: 8 | G21: PLUXEE COLOMBIA S.A.S | H21: C | I21: ANTIOQUIA | J21: CAREPA | K21: DISTRACOM CASA VERDE | L21: Automotriz | M21: PRIMAX | N21: Entrada carretera Zungo-Carepa
F22: 9 | G22: PLUXEE COLOMBIA S.A.S | H22: C | I22: ANTIOQUIA | J22: EL CARMEN DE VIBORAL | K22: DISTRACOM EL PORTICO | L22: Automotriz | M22: PRIMAX | N22: Cr. 31 No. 44 - 130
F23: 10 | G23: PLUXEE COLOMBIA S.A.S | H23: C | I23: ANTIOQUIA | J23: SAN PEDRO | K23: DISTRACOM LA PERLA | L23: Automotriz | M23: PRIMAX | N23: Cr. 50 No. 40 - 240
F24: 11 | G24: PLUXEE COLOMBIA S.A.S | H24: C | I24: ANTIOQUIA | J24: REMEDIOS | K24: ANGOLA | L24: Automotriz | M24: PRIMAX | N24: CARRERA 15 # 3 A 259
F25: 12 | G25: PLUXEE COLOMBIA S.A.S | H25: C | I25: ANTIOQUIA | J25: RIONEGRO | K25: EL CARRETERO | L25: Automotriz | M25: PRIMAX | N25: Calle 47 No. 65-10
F26: 13 | G26: PLUXEE COLOMBIA S.A.S | H26: C | I26: ANTIOQUIA | J26: EL CARMEN DE VIBORAL | K26: ÉXITO EL CARMEN | L26: Automotriz | M26: PRIMAX | N26: VÍA LA CEJA - RIONEGRO KM 7 + 100
F27: 14 | G27: PLUXEE COLOMBIA S.A.S | H27: C | I27: ANTIOQUIA | J27: ESPINAL | K27: ÉXITO EL RETIRO | L27: Automotriz | M27: PRIMAX | N27: CR 20 CL 25 Y 26 VRD EL RETIRO
F28: 15 | G28: PLUXEE COLOMBIA S.A.S | H28: C | I28: ANTIOQUIA | J28: CAUCASIA | K28: EL DORADO | L28: Automotriz | M28: PRIMAX | N28: Cra. 20 No. 20 - 47
F29: 16 | G29: PLUXEE COLOMBIA S.A.S | H29: C | I29: ANTIOQUIA | J29: RIONEGRO | K29: DEALER 1 | L29: Automotriz | M29: PRIMAX | N29: Variante Belén
F30: 17 | G30: PLUXEE COLOMBIA S.A.S | H30: C | I30: ANTIOQUIA | J30: RIONEGRO | K30: AUTOCENTRO JBAM | L30: Automotriz | M30: PRIMAX | N30: Carrera 47 No. 64 A 125
F31: 18 | G31: PLUXEE COLOMBIA S.A.S | H31: C | I31: ANTIOQUIA | J31: RIONEGRO | K31: MOBIL CRUCERO DEL OESTE | L31: Automotriz | M31: PRIMAX | N31: Km, 5 vía Mall Llanogrande – La Ceja, Vereda Pontezuela, sector el Crucero -Rionegro
F32: 19 | G32: PLUXEE COLOMBIA S.A.S | H32: C | I32: ANTIOQUIA | J32: GUARNE | K32: DISTRACOM AUTOPISTA | L32: Automotriz | M32: TEXACO | N32: Autopista Medellín Bogotá, retorno #6
F33: 20 | G33: PLUXEE COLOMBIA S.A.S | H33: C | I33: ANTIOQUIA | J33: YARUMAL | K33: EDS ANA MARIA | L33: Automotriz | M33: TEXACO | N33: Km 2 via la costa
F34: 21 | G34: PLUXEE COLOMBIA S.A.S | H34: C | I34: ANTIOQUIA | J34: FRONTINO | K34: EDS SERVICENTRO NUTIBARA | L34: Automotriz | M34: ZEUSS | N34: CRA 30 Nª 29-50
F35: 22 | G35: PLUXEE COLOMBIA S.A.S | H35: C | I35: ANTIOQUIA | J35: URRAO | K35: DISTRACOM VILLA NUEVA | L35: Automotriz | M35: TEXACO | N35: Av. 31 No. 29 - 125
F36: 23 | G36: PLUXEE COLOMBIA S.A.S | H36: C | I36: ANTIOQUIA | J36: PUERTO BERRIO | K36: DISTRACOM LA MAGDALENA | L36: Automotriz | M36: BIOMAX | N36: CRA 7 # 43 -29
F37: 24 | G37: PLUXEE COLOMBIA S.A.S | H37: C | I37: ANTIOQUIA | J37: ENTRERRIOS | K37: DISTRACOM LOS SAUCES | L37: Automotriz | M37: TEXACO | N37: Cra. 13 No. 1MZ - 041
F38: 25 | G38: PLUXEE COLOMBIA S.A.S | H38: C | I38: ANTIOQUIA | J38: SAN PEDRO DE URABA | K38: ESTACION DE SERVICIO DE SAN PEDRO DE URABA | L38: Automotriz | M38: TEXACO | N38: CARRERA 50 No. 49-47
F39: 26 | G39: PLUXEE COLOMBIA S.A.S | H39: C | I39: ANTIOQUIA | J39: CAUCASIA | K39: DISTRACOM PUERTO ESPAÑA | L39: Automotriz | M39: PRIMAX | N39: B/Las Malvinas, carretera El Bagre a Caucasia
F40: 27 | G40: PLUXEE COLOMBIA S.A.S | H40: C | I40: ANTIOQUIA | J40: CAUCASIA | K40: DISTRACOM BAJO CAUCA | L40: Automotriz | M40: PRIMAX | N40: Cra 20 1-241
F41: 28 | G41: PLUXEE COLOMBIA S.A.S | H41: C | I41: ANTIOQUIA | J41: SANTA ROSA DE OSOS | K41: DISTRACOM SANTA MARIA DEL CAMINO | L41: Automotriz | M41: PRIMAX | N41: VDA SAN JUAN KM 6 VIA MED SANTA ROSA
F42: 29 | G42: PLUXEE COLOMBIA S.A.S | H42: C | I42: ANTIOQUIA | J42: SONSON | K42: DISTRACOM BUENOS AIRES | L42: Automotriz | M42: TEXACO | N42: Diagonal 9 con Cl. 17 Esquina
F43: 30 | G43: PLUXEE COLOMBIA S.A.S | H43: C | I43: ANTIOQUIA | J43: LA UNION | K43: DISTRACOM DON QUIJOTE | L43: Automotriz | M43: TEXACO | N43: Vía La Ceja - La Unión, Vereda Concha
F44: 31 | G44: PLUXEE COLOMBIA S.A.S | H44: C | I44: ANTIOQUIA | J44: CACERES | K44: DISTRACOM PUERTO BELGICA | L44: Automotriz | M44: TEXACO | N44: Carretera Troncal La Costa
F45: 32 | G45: PLUXEE COLOMBIA S.A.S | H45: C | I45: ANTIOQUIA | J45: SAN JUAN DE URABA | K45: DISTRACOM ORIENTE | L45: Automotriz | M45: TEXACO | N45: Entrada principal
F46: 33 | G46: PLUXEE COLOMBIA S.A.S | H46: C | I46: ANTIOQUIA | J46: ARBOLETES | K46: DISTRACOM ARBOLETES | L46: Automotriz | M46: TEXACO | N46: Entrada pincipal
F47: 34 | G47: PLUXEE COLOMBIA S.A.S | H47: C | I47: ANTIOQUIA | J47: RIONEGRO | K47: SERVICENTRO ESSO LLANOGRANDE | L47: Automotriz | M47: PRIMAX | N47: Km 8 vía Llano grande - Rionegro
F48: 35 | G48: PLUXEE COLOMBIA S.A.S | H48: C | I48: ANTIOQUIA | J48: SAN CARLOS | K48: EDS DISTRIBUCIONES ZEUSS | L48: Automotriz | M48: ZEUSS | N48: CALLE 19 No 17-87
F49: 36 | G49: PLUXEE COLOMBIA S.A.S | H49: C | I49: ANTIOQUIA | J49: SANTA ROSA DE OSOS | K49: EDS BRISAS DEL NORTE | L49: Automotriz | M49: TERPEL | N49: KM 72 VIA YARUMAL VDA LA CIRCASIA
F50: 37 | G50: PLUXEE COLOMBIA S.A.S | H50: C | I50: ANTIOQUIA | J50: CAREPA | K50: EDS LA PONDEROSA | L50: Automotriz | M50: PETROMIL | N50: CRA 80 82 29
F51: 38 | G51: PLUXEE COLOMBIA S.A.S | H51: C | I51: ANTIOQUIA | J51: CAREPA | K51: SERVICENTRO LA PLAZA | L51: Automotriz | M51: PETROMIL | N51: CLL 72 N 78 93
F52: 39 | G52: PLUXEE COLOMBIA S.A.S | H52: C | I52: ANTIOQUIA | J52: DON MATIAS | K52: DISTRACOM VILLA MARIA | L52: Automotriz | M52: TEXACO | N52: Troncal del Norte, Don Matias
F53: 40 | G53: PLUXEE COLOMBIA S.A.S | H53: C | I53: ANTIOQUIA | J53: MACEO | K53: DISTRACOM MACEO | L53: Automotriz | M53: ZEUSS | N53: Cl. 27 No. 31 - 37
F54: 41 | G54: PLUXEE COLOMBIA S.A.S | H54: C | I54: ANTIOQUIA | J54: TARAZA | K54: DISTRACOM EL VIAJERO | L54: Automotriz | M54: TEXACO | N54: Cr. troncal vía la costa
F55: 42 | G55: PLUXEE COLOMBIA S.A.S | H55: C | I55: ANTIOQUIA | J55: AMAGA | K55: DISTRACOM LA CARBONERA | L55: Automotriz | M55: TEXACO | N55: Cr. 51 con cl. 45
F56: 43 | G56: PLUXEE COLOMBIA S.A.S | H56: C | I56: ANTIOQUIA | J56: CAUCASIA | K56: EDS EL DORADO | L56: Automotriz | M56: PRIMAX | N56: Cra. 20 No. 20 - 47
F57: 44 | G57: PLUXEE COLOMBIA S.A.S | H57: C | I57: ANTIOQUIA | J57: MARINILLA | K57: EDS CIUDADELA | L57: Automotriz | M57: TERPEL | N57: CALLE 22 N 51 53 KM 39
F58: 45 | G58: PLUXEE COLOMBIA S.A.S | H58: C | I58: ANTIOQUIA | J58: VALDIVIA | K58: EDS MONTERREY DE VALDIVIA | L58: Automotriz | M58: TERPEL | N58: CRA 11 TRONCAL VÍA A LA COSTA
F59: 46 | G59: PLUXEE COLOMBIA S.A.S | H59: C | I59: ANTIOQUIA | J59: RIONEGRO | K59: EDS TERPEL RIONEGRO | L59: Automotriz | M59: TERPEL | N59: CRA 50 N°44B-15
F60: 47 | G60: PLUXEE COLOMBIA S.A.S | H60: C | I60: ANTIOQUIA | J60: GUARNE | K60: EDS TEXACO VIRGEN DE LA SIERRA | L60: Automotriz | M60: TEXACO | N60: AUTOPISTA MEDELLIN BOGOTA KILOMETRO 16 MAS 800
F61: 48 | G61: PLUXEE COLOMBIA S.A.S | H61: C | I61: ANTIOQUIA | J61: PUERTO BERRIO | K61: EDS SERVISHELL | L61: Automotriz | M61: TERPEL | N61: CALLE 42 No 6 28
F62: 49 | G62: PLUXEE COLOMBIA S.A.S | H62: C | I62: ANTIOQUIA | J62: EL BAGRE | K62: DISTRACOM PLAYA RICA | L62: Automotriz | M62: TEXACO | N62: Cr 49 No 57A 65
F63: 50 | G63: PLUXEE COLOMBIA S.A.S | H63: C | I63: ANTIOQUIA | J63: TURBO | K63: EDS LA MANUELA | L63: Automotriz | M63: TERPEL | N63: VIA AL MAR CURRULAO
F64: 51 | G64: PLUXEE COLOMBIA S.A.S | H64: C | I64: ANTIOQUIA | J64: APARTADO | K64: EDS TERDEX EL REPOSO | L64: Automotriz | M64: TERPEL | N64: ZUNGO CARRETERA KM 8
F65: 52 | G65: PLUXEE COLOMBIA S.A.S | H65: C | I65: ANTIOQUIA | J65: APARTADO | K65: EDS GALERIA | L65: Automotriz | M65: TERPEL | N65: CALLE 92 No 102 30
F66: 53 | G66: PLUXEE COLOMBIA S.A.S | H66: C | I66: ANTIOQUIA | J66: SEGOVIA | K66: EDS EL OASIS | L66: Automotriz | M66: TERPEL | N66: CALLE 47 No 54C 51
F67: 54 | G67: PLUXEE COLOMBIA S.A.S | H67: C | I67: ANTIOQUIA | J67: REMEDIOS | K67: EDS LA CRUZADA | L67: Automotriz | M67: TERPEL | N67: CRA 10 No 8 35 LA CRUZADA
F68: 55 | G68: PLUXEE COLOMBIA S.A.S | H68: C | I68: ANTIOQUIA | J68: CHIGORODO | K68: EDS LA CURVA | L68: Automotriz | M68: ZEUSS | N68: CALLE 95 No 84 25
F69: 56 | G69: PLUXEE COLOMBIA S.A.S | H69: C | I69: ANTIOQUIA | J69: ANDES | K69: EDS ANDES | L69: Automotriz | M69: TERPEL | N69: CARRERA 50 No. 53 - 45
F70: 57 | G70: PLUXEE COLOMBIA S.A.S | H70: C | I70: ANTIOQUIA | J70: SAN PEDRO DE URABA | K70: EDS CALEIRA | L70: Automotriz | M70: ZEUSS | N70: CARRERA 50 No. 52-83
F71: 58 | G71: PLUXEE COLOMBIA S.A.S | H71: C | I71: ANTIOQUIA | J71: CIUDAD BOLIVAR | K71: EDS MULTISER LIBARDO RINCON BOLIVAR | L71: Automotriz | M71: PRIMAX | N71: CALLE 49 No 41 35
F72: 59 | G72: PLUXEE COLOMBIA S.A.S | H72: C | I72: ANTIOQUIA | J72: SAN LUIS | K72: EDS ESTRELLA DE BELEN | L72: Automotriz | M72: TEXACO | N72: VEREDA CUBA PARAJE BELEN
F73: 60 | G73: PLUXEE COLOMBIA S.A.S | H73: C | I73: ANTIOQUIA | J73: ABRIAQUI | K73: EDS ESTRELLA DE ABRIAQUI | L73: Automotriz | M73: TEXACO | N73: VEREDA LA ASOMADERA FINCA ASOMADERA
F74: 61 | G74: PLUXEE COLOMBIA S.A.S | H74: C | I74: ANTIOQUIA | J74: SANTO DOMINGO | K74: EDS COMDECOM PESCAITO | L74: Automotriz | M74: TEXACO | N74: KM 17 VIA BARBOSA CISNEROS
F75: 62 | G75: PLUXEE COLOMBIA S.A.S | H75: C | I75: ANTIOQUIA | J75: EL PEÑOL | K75: EDS LA ENTRADA | L75: Automotriz | M75: TERPEL | N75: VEREDA HORIZONTES VIA EL PENOL MARINILLA KILOMETRO 0 300
F76: 63 | G76: PLUXEE COLOMBIA S.A.S | H76: C | I76: ANTIOQUIA | J76: HISPANIA | K76: SERVICENTRO EL CAMINO DEL CAFE | L76: Automotriz | M76: TERPEL | N76: SALIDA HISPANIA
F77: 64 | G77: PLUXEE COLOMBIA S.A.S | H77: C | I77: ANTIOQUIA | J77: SANTAFE DE ANTIOQUIA | K77: EDS LA VARIANTE SFE AN | L77: Automotriz | M77: ZEUSS | N77: CALLE 13 LA VARIANTE No 7 18
F78: 65 | G78: PLUXEE COLOMBIA S.A.S | H78: C | I78: ANTIOQUIA | J78: SANTA BARBARA | K78: ESTABLECIMIENTO DE SERVICIOS VERSALLES | L78: Automotriz | M78: TERPEL | N78: Cra 10 No 12 125 Versalles
F79: 66 | G79: PLUXEE COLOMBIA S.A.S | H79: C | I79: ANTIOQUIA | J79: CACERES | K79: EDS EL LAGO | L79: Automotriz | M79: TERPEL | N79: Kr 20 No 33 153 LA TRONCAL
F80: 67 | G80: PLUXEE COLOMBIA S.A.S | H80: C | I80: ANTIOQUIA | J80: JERICO | K80: DISTRACOM EL PRADO JERICO | L80: Automotriz | M80: TEXACO | N80: CALLE 1 No 12 02 SECTOR INDUSTRIAL LA BOMBA
F81: 68 | G81: PLUXEE COLOMBIA S.A.S | H81: C | I81: ANTIOQUIA | J81: ANDES | K81: EDS LA POSESION | L81: Automotriz | M81: ZEUSS | N81: TRONCAL DEL CAFE VEREDA 17 LAS COLONIAS PREDIO 6
F82: 69 | G82: PLUXEE COLOMBIA S.A.S | H82: C | I82: ANTIOQUIA | J82: SAN CARLOS | K82: ESTACION DE GASOLINA SAN CARLOS | L82: Automotriz | M82: ZEUSS | N82: SALIDA A GRANADA CALLE 19 SECTOR EL PUENTE
F83: 70 | G83: PLUXEE COLOMBIA S.A.S | H83: C | I83: ANTIOQUIA | J83: TURBO | K83: EDS AVANADE LAS GARZAS | L83: Automotriz | M83: PETROMIL | N83: KM 1 VIA HACIA APARTADO
F84: 71 | G84: PLUXEE COLOMBIA S.A.S | H84: C | I84: ANTIOQUIA | J84: NECOCLI | K84: EDS AVANADE NECOCLI | L84: Automotriz | M84: PETROMIL | N84: CLL 50 No 43 12
F85: 72 | G85: PLUXEE COLOMBIA S.A.S | H85: C | I85: ANTIOQUIA | J85: LA CEJA | K85: EDS SERVITECA LA CEJA | L85: Automotriz | M85: ZEUSS | N85: CARRERA 20 CALLE 26 45
F86: 73 | G86: PLUXEE COLOMBIA S.A.S | H86: C | I86: ANTIOQUIA | J86: CAÑASGORDAS | K86: EDS LAS HELICONIAS | L86: Automotriz | M86: ZEUSS | N86: PARAJE IMANTAGO
F87: 74 | G87: PLUXEE COLOMBIA S.A.S | H87: C | I87: ANTIOQUIA | J87: LA UNION | K87: EDS LOS GERANIOS | L87: Automotriz | M87: TERPEL | N87: kR 11A No 15 35
F88: 75 | G88: PLUXEE COLOMBIA S.A.S | H88: C | I88: ANTIOQUIA | J88: DABEIBA | K88: EDS LAS GUADUAS DA | L88: Automotriz | M88: TERPEL | N88: CARRERA 10 No 13 526
F89: 76 | G89: PLUXEE COLOMBIA S.A.S | H89: C | I89: ANTIOQUIA | J89: APARTADO | K89: EDS PROXXON APARTADO | L89: Automotriz | M89: PROXXON | N89: CR 100 No 90 40
F90: 77 | G90: PLUXEE COLOMBIA S.A.S | H90: C | I90: ANTIOQUIA | J90: CHIGORODO | K90: EDS PROXXON CHIGORODO | L90: Automotriz | M90: PROXXON | N90: CR 100 No 99 10
F91: 78 | G91: PLUXEE COLOMBIA S.A.S | H91: C | I91: ANTIOQUIA | J91: PUERTO BERRIO | K91: ESTACION DE SERVICIOS LAS FLORES | L91: Automotriz | M91: TERPEL | N91: KILOMETRO 6 VIA A MEDELLIN
F92: 79 | G92: PLUXEE COLOMBIA S.A.S | H92: C | I92: ANTIOQUIA | J92: APARTADO | K92: EDS DISTRILUBRICANTES URABA | L92: Automotriz | M92: ZAPATA | N92: KR 100 SALIDA CHIGORODO
F93: 80 | G93: PLUXEE COLOMBIA S.A.S | H93: C | I93: ANTIOQUIA | J93: RIONEGRO | K93: EDS COESCO GALAXIA | L93: Automotriz | M93: PRIMAX | N93: CARRERA 48 CALLE 52 02
F94: 81 | G94: PLUXEE COLOMBIA S.A.S | H94: C | I94: ANTIOQUIA | J94: SAN PEDRO | K94: EDS FUENTES DE SAN JOSE | L94: Automotriz | M94: ZEUSS | N94: CR 52 No 44 A 01
F95: 82 | G95: PLUXEE COLOMBIA S.A.S | H95: C | I95: ANTIOQUIA | J95: RIONEGRO | K95: EDS CUATRO ESQUINAS | L95: Automotriz | M95: PRIMAX | N95: DIAGONAL 43 No 45 275
F96: 83 | G96: PLUXEE COLOMBIA S.A.S | H96: C | I96: ANTIOQUIA | J96: SANTA ROSA DE OSOS | K96: EDS DEL RIO STA | L96: Automotriz | M96: TERPEL | N96: AVENIDA 38 No 27 449
F97: 84 | G97: PLUXEE COLOMBIA S.A.S | H97: C | I97: ANTIOQUIA | J97: SAN CARLOS | K97: EDS SERVICENTRO LA VARIANTE | L97: Automotriz | M97: ZEUSS | N97: CR 17 CL 19 16 92
F98: 85 | G98: PLUXEE COLOMBIA S.A.S | H98: C | I98: ANTIOQUIA | J98: HELICONIA | K98: EDS TEXACO SU JARDIN HELICONIA | L98: Automotriz | M98: TEXACO | N98: CALLE 20 No 20 09
F99: 86 | G99: PLUXEE COLOMBIA S.A.S | H99: C | I99: ANTIOQUIA | J99: APARTADO | K99: EDS GRUPO LA NAVARRA | L99: Automotriz | M99: TEXACO | N99: CRA 100 N 73A 12 LA NAVARRA
F100: 87 | G100: PLUXEE COLOMBIA S.A.S | H100: C | I100: ANTIOQUIA | J100: ITUANGO | K100: EDS SERVITECA CHAPINEROS | L100: Automotriz | M100: ZEUSS | N100: CALLE 18 No 16 132 SECTOR CHAPINEROS
F101: 88 | G101: PLUXEE COLOMBIA S.A.S | H101: C | I101: ANTIOQUIA | J101: TURBO | K101: EDS LA CAMILA | L101: Automotriz | M101: PETROMIL | N101: CLL 54 No 49 90
F102: 89 | G102: PLUXEE COLOMBIA S.A.S | H102: C | I102: ANTIOQUIA | J102: LA CEJA | K102: EDS LOS CRISTALES | L102: Automotriz | M102: TERPEL | N102: CL 19 No 13B 251
F103: 90 | G103: PLUXEE COLOMBIA S.A.S | H103: C | I103: ANTIOQUIA | J103: EL CARMEN DE VIBORAL | K103: EDS QUIRAMA | L103: Automotriz | M103: TERPEL | N103: VIA LA CEJA - RIONEGRO KILOMETRO 11
F104: 91 | G104: PLUXEE COLOMBIA S.A.S | H104: C | I104: ANTIOQUIA | J104: SAN JERONIMO | K104: EDS PREMIUM LA PLAYA | L104: Automotriz | M104: PRIMAX | N104: ENTRADA PRINCIPAL A SAN JERONIMO
F105: 92 | G105: PLUXEE COLOMBIA S.A.S | H105: C | I105: ANTIOQUIA | J105: EL SANTUARIO | K105: EDS PREMIUM LA MARIA | L105: Automotriz | M105: PRIMAX | N105: CL 45 No 51 31
F106: 93 | G106: PLUXEE COLOMBIA S.A.S | H106: C | I106: ANTIOQUIA | J106: NECOCLI | K106: EDS MARIANZA | L106: Automotriz | M106: PETROMIL | N106: PARCELA 26 CORREGIMIENTO EL TOTUMO
F107: 94 | G107: PLUXEE COLOMBIA S.A.S | H107: C | I107: ARAUCA | J107: TAME | K107: EDS LA FRONTERA | L107: Automotriz | M107: TERPEL | N107: CALLE 15 N 73-110
F108: 95 | G108: PLUXEE COLOMBIA S.A.S | H108: C | I108: ARAUCA | J108: ARAUCA | K108: EDS LAS MALVINAS | L108: Automotriz | M108: TERPEL | N108: CARRERA 19 No. 10-126
F109: 96 | G109: PLUXEE COLOMBIA S.A.S | H109: C | I109: ARAUCA | J109: SARAVENA | K109: EDS LOS CONQUISTADORES | L109: Automotriz | M109: TERPEL | N109: DIAGONAL 30 No. 11 - 57
F110: 97 | G110: PLUXEE COLOMBIA S.A.S | H110: C | I110: ARAUCA | J110: ARAUCA | K110: EDS SABANALARGA | L110: Automotriz | M110: TERPEL | N110: CARRERA 19 No. 12 -04
F111: 98 | G111: PLUXEE COLOMBIA S.A.S | H111: C | I111: ARAUCA | J111: ARAUQUITA | K111: EDS EL NAVEGANTE | L111: Automotriz | M111: TERPEL | N111: CALLE 4 No 0 80
F112: 99 | G112: PLUXEE COLOMBIA S.A.S | H112: C | I112: ARAUCA | J112: ARAUCA | K112: EDS TRANSPORTE EL PROGRESO | L112: Automotriz | M112: TERPEL | N112: CARRERA 19 No 7 317
F113: 100 | G113: PLUXEE COLOMBIA S.A.S | H113: C | I113: ARAUCA | J113: FORTUL | K113: EDS JULI JULI | L113: Automotriz | M113: TERPEL | N113: CALLE PRINCIPAL NUEVO CARANAL
F114: 101 | G114: PLUXEE COLOMBIA S.A.S | H114: C | I114: ARAUCA | J114: SARAVENA | K114: EDS EL PIEDEMONTE | L114: Automotriz | M114: TERPEL | N114: CR 13 14 07 15 BRR GAITAN
F115: 102 | G115: PLUXEE COLOMBIA S.A.S | H115: C | I115: ARAUCA | J115: CRAVO NORTE | K115: EDS EL ACEITE | L115: Automotriz | M115: TERPEL | N115: CR 6 CL 7 BARRIO VILLA LLANO
F116: 103 | G116: PLUXEE COLOMBIA S.A.S | H116: C | I116: ARAUCA | J116: PUERTO RONDON | K116: EDS EXPENDIO LA RESERVA | L116: Automotriz | M116: TERPEL | N116: CALLE 2 No. 8 - 39
F117: 104 | G117: PLUXEE COLOMBIA S.A.S | H117: C | I117: ARAUCA | J117: PUERTO RONDON | K117: EDS LA RESERVA | L117: Automotriz | M117: TERPEL | N117: CALLE 2 No 8 39
F118: 105 | G118: PLUXEE COLOMBIA S.A.S | H118: C | I118: ARAUCA | J118: SARAVENA | K118: EDS EL ARAUCO | L118: Automotriz | M118: TERPEL | N118: CRA 13 No 12 30
F119: 106 | G119: PLUXEE COLOMBIA S.A.S | H119: C | I119: ARAUCA | J119: SARAVENA | K119: EDS ROA | L119: Automotriz | M119: TERPEL | N119: DG 33 No 23 49
F120: 107 | G120: PLUXEE COLOMBIA S.A.S | H120: C | I120: ATLÁNTICO | J120: SABANALARGA | K120: DISTRACOM LOS ÁNGELES | L120: Automotriz | M120: PRIMAX | N120: Cr. 23 No. 28 - 25
F121: 108 | G121: PLUXEE COLOMBIA S.A.S | H121: C | I121: ATLÁNTICO | J121: SABANALARGA | K121: SABANALARGA | L121: Automotriz | M121: PRIMAX | N121: Clle 27 N° 23-75
F122: 109 | G122: PLUXEE COLOMBIA S.A.S | H122: C | I122: ATLÁNTICO | J122: SANTO TOMAS | K122: EDS SAN BENITO | L122: Automotriz | M122: PRIMAX | N122: Clle 13 N° 11 - 47
F123: 110 | G123: PLUXEE COLOMBIA S.A.S | H123: C | I123: ATLÁNTICO | J123: BARANOA | K123: EDS BARANOA | L123: Automotriz | M123: TERPEL | N123: CRA 19 N 14 26
F124: 111 | G124: PLUXEE COLOMBIA S.A.S | H124: C | I124: ATLÁNTICO | J124: BARANOA | K124: EDS SANTA ANA | L124: Automotriz | M124: TERPEL | N124: CALLE 10 N 20-34
F125: 112 | G125: PLUXEE COLOMBIA S.A.S | H125: C | I125: ATLÁNTICO | J125: BARANOA | K125: EDS LA DIOSA | L125: Automotriz | M125: TERPEL | N125: VIA CORDIALIDAD INTERSECCION ENTRADA PITAL DE MEGUA BARANOA
F126: 113 | G126: PLUXEE COLOMBIA S.A.S | H126: C | I126: ATLÁNTICO | J126: TUBARA | K126: EDS PUERTO VELERO | L126: Automotriz | M126: TERPEL | N126: VIA AL MAR KILOMETRO 92 EN TUBARA
F127: 114 | G127: PLUXEE COLOMBIA S.A.S | H127: C | I127: ATLÁNTICO | J127: PIOJO | K127: EDS AVANADE BRISAS DEL MAR | L127: Automotriz | M127: PETROMIL | N127: KM 54 AUTOPISTA VIA AL MAR
F128: 115 | G128: PLUXEE COLOMBIA S.A.S | H128: C | I128: ATLÁNTICO | J128: SANTO TOMAS | K128: EDS COESCO SAN BENITO | L128: Automotriz | M128: PRIMAX | N128: CALLE 13 No 11 47
F129: 116 | G129: PLUXEE COLOMBIA S.A.S | H129: C | I129: ATLÁNTICO | J129: BARANOA | K129: EDS EL RANCHO | L129: Automotriz | M129: PUMA | N129: CARRETERA CORDIALIDAD No 24 15
F130: 117 | G130: PLUXEE COLOMBIA S.A.S | H130: C | I130: BOLÍVAR | J130: MAGANGUE | K130: ÉXITO MAGANGUE | L130: Automotriz | M130: PRIMAX | N130: CALLE 16 CON CARRERA 10-201
F131: 118 | G131: PLUXEE COLOMBIA S.A.S | H131: C | I131: BOLÍVAR | J131: EL CARMEN DE BOLIVAR | K131: DISTRACOM CARMEN DE BOLIVAR | L131: Automotriz | M131: TERPEL | N131: Cra. 63 N° 22-103
F132: 119 | G132: PLUXEE COLOMBIA S.A.S | H132: C | I132: BOLÍVAR | J132: MARIA LA BAJA | K132: DISTRACOM MARIA LA BAJA | L132: Automotriz | M132: TEXACO | N132: Calle 15 No. 1 - 2, Sector Marquez
F133: 120 | G133: PLUXEE COLOMBIA S.A.S | H133: C | I133: BOLÍVAR | J133: SAN JUAN NEPOMUCENO | K133: EDS ANA TERESA 3 | L133: Automotriz | M133: PRIMAX | N133: CARRETERA TRONCAL DE OCCIDENTE KM 1
F134: 121 | G134: PLUXEE COLOMBIA S.A.S | H134: C | I134: BOLÍVAR | J134: MOMPOS | K134: EDS GILMAR | L134: Automotriz | M134: TERPEL | N134: CARRERA 2 No 25 30
F135: 122 | G135: PLUXEE COLOMBIA S.A.S | H135: C | I135: BOLÍVAR | J135: SANTA ROSA DEL SUR | K135: EDS LOS PINOS | L135: Automotriz | M135: TERPEL | N135: CALLE 14 No. 5-18
F136: 123 | G136: PLUXEE COLOMBIA S.A.S | H136: C | I136: BOLÍVAR | J136: SAN JUAN NEPOMUCENO | K136: EDS ANA TERESA | L136: Automotriz | M136: ZEUSS | N136: BARRIO LA FLORESTA CALLE 19 2H 93
F137: 124 | G137: PLUXEE COLOMBIA S.A.S | H137: C | I137: BOLÍVAR | J137: TURBACO | K137: EDS AVANADE RODEO | L137: Automotriz | M137: PETROMIL | N137: CARRETERA TRONCAL DE OCCIDENTE KILOMETRO 1
F138: 125 | G138: PLUXEE COLOMBIA S.A.S | H138: C | I138: BOLÍVAR | J138: ARJONA | K138: EDS AVANADE BASCULA | L138: Automotriz | M138: PETROMIL | N138: KM60 TRONCAL DE OCCIDENTE CORREGIMIENTO DE SINCERO ARJONA
F139: 126 | G139: PLUXEE COLOMBIA S.A.S | H139: C | I139: BOLÍVAR | J139: TURBACO | K139: EDS TERPEL EL MANANTIAL | L139: Automotriz | M139: TERPEL | N139: LLAVE DE ORO LOTE A11 VIA CARTAGENA TURBACO KM6
F140: 127 | G140: PLUXEE COLOMBIA S.A.S | H140: C | I140: BOYACÁ | J140: SAN JOSE DE PARE | K140: EDS SAN JOSE DE PARE | L140: Automotriz | M140: PRIMAX | N140: VEREDA SAN ISIDRO BAJO
F141: 128 | G141: PLUXEE COLOMBIA S.A.S | H141: C | I141: BOYACÁ | J141: CHIQUINQUIRA | K141: EDS LA REINA | L141: Automotriz | M141: PRIMAX | N141: CARRERA 9 No. 1A - 50
F142: 129 | G142: PLUXEE COLOMBIA S.A.S | H142: C | I142: BOYACÁ | J142: CHIQUINQUIRA | K142: ESTACION SAN ANTONIO | L142: Automotriz | M142: PRIMAX | N142: CARRERA 9 N° 7-95
F143: 130 | G143: PLUXEE COLOMBIA S.A.S | H143: C | I143: BOYACÁ | J143: DUITAMA | K143: EDS LA AVENIDA | L143: Automotriz | M143: PRIMAX | N143: AV. De las Americas No. 28 - 70
F144: 131 | G144: PLUXEE COLOMBIA S.A.S | H144: C | I144: BOYACÁ | J144: SOGAMOSO | K144: EDS SANTA INES | L144: Automotriz | M144: PRIMAX | N144: CL 11 No 15-42
F145: 132 | G145: PLUXEE COLOMBIA S.A.S | H145: C | I145: BOYACÁ | J145: SOGAMOSO | K145: EDS EL TERMINAL | L145: Automotriz | M145: PRIMAX | N145: Avda San Martin # 11A-42
F146: 133 | G146: PLUXEE COLOMBIA S.A.S | H146: C | I146: BOYACÁ | J146: SOTAQUIRA | K146: EDS EL PEGASO | L146: Automotriz | M146: PRIMAX | N146: Km 27 vía Tunja - Paipa
F147: 134 | G147: PLUXEE COLOMBIA S.A.S | H147: C | I147: BOYACÁ | J147: DUITAMA | K147: INPRO - LAS AMERICAS | L147: Automotriz | M147: PRIMAX | N147: KRA 18 N 10-21
F148: 135 | G148: PLUXEE COLOMBIA S.A.S | H148: C | I148: BOYACÁ | J148: BELEN | K148: BELEN 2 | L148: Automotriz | M148: PRIMAX | N148: CARRERA 5 1 04
F149: 136 | G149: PLUXEE COLOMBIA S.A.S | H149: C | I149: BOYACÁ | J149: PUERTO BOYACA | K149: ESTACION DE SERVICIO JAV | L149: Automotriz | M149: TERPEL | N149: CARRERA 5 No. 11-16
F150: 137 | G150: PLUXEE COLOMBIA S.A.S | H150: C | I150: BOYACÁ | J150: DUITAMA | K150: EDS LA ISLA | L150: Automotriz | M150: PETROBRAS | N150: Carrera 42 No 18-41 OESTE
F151: 138 | G151: PLUXEE COLOMBIA S.A.S | H151: C | I151: BOYACÁ | J151: DUITAMA | K151: EDS LA ISLA 2 | L151: Automotriz | M151: PETROBRAS | N151: Entrada Ciudadela Industrial
F152: 139 | G152: PLUXEE COLOMBIA S.A.S | H152: C | I152: BOYACÁ | J152: SOGAMOSO | K152: EDS VENCEDORES | L152: Automotriz | M152: BRIO | N152: CALLE 11 N o. 14-74
F153: 140 | G153: PLUXEE COLOMBIA S.A.S | H153: C | I153: BOYACÁ | J153: NOBSA | K153: EDS VALLE DE IRAKA | L153: Automotriz | M153: BRIO | N153: kilometro 13 via Duitama- Belencito
F154: 141 | G154: PLUXEE COLOMBIA S.A.S | H154: C | I154: BOYACÁ | J154: NOBSA | K154: TERPEL LA ESMERALDA | L154: Automotriz | M154: TERPEL | N154: KILOMETRO 14 AUTOPISTA DUITAMA - BELENCITO
F155: 142 | G155: PLUXEE COLOMBIA S.A.S | H155: C | I155: BOYACÁ | J155: SOGAMOSO | K155: BRIO LA ESPERANZA | L155: Automotriz | M155: BRIO | N155: CARRERA 11 No 8A BIS-04
F156: 143 | G156: PLUXEE COLOMBIA S.A.S | H156: C | I156: BOYACÁ | J156: PAJARITO | K156: EDS LOS MAGNIFICOS | L156: Automotriz | M156: BIOMAX | N156: CARRERA 3 CALLE 6 CENTRO
F157: 144 | G157: PLUXEE COLOMBIA S.A.S | H157: C | I157: BOYACÁ | J157: PAIPA | K157: EDS LA GRAN VIA | L157: Automotriz | M157: BRIO | N157: AV LIBERTADORES No 23 49
F158: 145 | G158: PLUXEE COLOMBIA S.A.S | H158: C | I158: BOYACÁ | J158: PUERTO BOYACA | K158: DISTRACOM PORTAL DEL SOL | L158: Automotriz | M158: BIOMAX | N158: CARRERA 5 No 32 50
F159: 146 | G159: PLUXEE COLOMBIA S.A.S | H159: C | I159: BOYACÁ | J159: PUERTO BOYACA | K159: EDS PUERTO BOYACA | L159: Automotriz | M159: BIOMAX | N159: VEREDA MARAÑAL KM 19 AUTOPISTA MEDELLIN BOGOTA
F160: 147 | G160: PLUXEE COLOMBIA S.A.S | H160: C | I160: BOYACÁ | J160: VILLA DE LEYVA | K160: EDS SURTIDOR VILLA DE LEYVA | L160: Automotriz | M160: TERPEL | N160: Tv 10 No 8 88
F161: 148 | G161: PLUXEE COLOMBIA S.A.S | H161: C | I161: BOYACÁ | J161: GARAGOA | K161: LA SULTANA GARAGOA | L161: Automotriz | M161: BIOMAX | N161: CARRERA 15 No 5 23
F162: 149 | G162: PLUXEE COLOMBIA S.A.S | H162: C | I162: BOYACÁ | J162: SAMACA | K162: EDS EL PROGRESO | L162: Automotriz | M162: BIOMAX | N162: CARRERA 2 No. 3-74
F163: 150 | G163: PLUXEE COLOMBIA S.A.S | H163: C | I163: BOYACÁ | J163: MONIQUIRA | K163: EDS GUADALAJARA | L163: Automotriz | M163: TERPEL | N163: carretera central no 30-102 moniqu
F164: 151 | G164: PLUXEE COLOMBIA S.A.S | H164: C | I164: BOYACÁ | J164: RAMIRIQUI | K164: EDS GRAN VIA DE RAMIRIQUI | L164: Automotriz | M164: TERPEL | N164: tv 7 n° 9 - 150
F165: 152 | G165: PLUXEE COLOMBIA S.A.S | H165: C | I165: BOYACÁ | J165: MIRAFLORES | K165: EDS BRIO EL PROVEEDOR | L165: Automotriz | M165: BIOMAX | N165: CALLE 6 No. 11B-16
F166: 153 | G166: PLUXEE COLOMBIA S.A.S | H166: C | I166: BOYACÁ | J166: GARAGOA | K166: EDS AVENIDA LA 15 GARAGOA | L166: Automotriz | M166: BIOMAX | N166: CALLE 14 14 51
F167: 154 | G167: PLUXEE COLOMBIA S.A.S | H167: C | I167: BOYACÁ | J167: VILLA DE LEYVA | K167: EDS JC VILLA LUZ | L167: Automotriz | M167: BIOMAX | N167: A 800 MTS DEL CEMENTERIO VIA ARCABUCO
F168: 155 | G168: PLUXEE COLOMBIA S.A.S | H168: C | I168: BOYACÁ | J168: MIRAFLORES | K168: AUTOCENTRO DIAZ MIRAFLOREZ | L168: Automotriz | M168: OCTANO | N168: CLLE 6 No 11 B 06
F169: 156 | G169: PLUXEE COLOMBIA S.A.S | H169: C | I169: BOYACÁ | J169: RAMIRIQUI | K169: EDS ERTRAC | L169: Automotriz | M169: BIOMAX | N169: CARRERA 6 No 13A 38
F170: 157 | G170: PLUXEE COLOMBIA S.A.S | H170: C | I170: BOYACÁ | J170: MONIQUIRA | K170: EDS LA MONIQUIREÑA | L170: Automotriz | M170: PETROMIL | N170: VIA A TUNJA No 3 61
F171: 158 | G171: PLUXEE COLOMBIA S.A.S | H171: C | I171: BOYACÁ | J171: LABRANZAGRANDE | K171: EDS EL STOP | L171: Automotriz | M171: TERPEL | N171: KRA 8 No 11 65 BARRIO ASODELA
F172: 159 | G172: PLUXEE COLOMBIA S.A.S | H172: C | I172: BOYACÁ | J172: GUATEQUE | K172: EDS TERPEL VALLE DE TENZA | L172: Automotriz | M172: TERPEL | N172: CL 12 No 4 00
F173: 160 | G173: PLUXEE COLOMBIA S.A.S | H173: C | I173: BOYACÁ | J173: SOCHA | K173: EDS SAN SALVADOR | L173: Automotriz | M173: BRIO | N173: CLL 7 No 4 12
F174: 161 | G174: PLUXEE COLOMBIA S.A.S | H174: C | I174: BOYACÁ | J174: EL COCUY | K174: EDS LA INTERNACIONAL | L174: Automotriz | M174: TERPEL | N174: CALLE 11 No 5 28
F175: 162 | G175: PLUXEE COLOMBIA S.A.S | H175: C | I175: BOYACÁ | J175: VENTAQUEMADA | K175: EDS SAN ANTONIO VENT | L175: Automotriz | M175: BIOMAX | N175: KILOMETRO 100 VIA BOGOTA VENTAQUEMADA
F176: 163 | G176: PLUXEE COLOMBIA S.A.S | H176: C | I176: BOYACÁ | J176: PAZ DE RIO | K176: EDS EL SALITRE DE PAZ DE RIO | L176: Automotriz | M176: BIOMAX | N176: KILOMETRO 23 VIA BELEN PAZ DE RIO
F177: 164 | G177: PLUXEE COLOMBIA S.A.S | H177: C | I177: BOYACÁ | J177: PUERTO BOYACA | K177: EDS AVANADE SERVIEZ | L177: Automotriz | M177: PETROMIL | N177: KM 3 VIA LA COSTA ENTRADA A PUERTO SERVIEZ
F178: 165 | G178: PLUXEE COLOMBIA S.A.S | H178: C | I178: BOYACÁ | J178: CUBARA | K178: EDS EL RUISENOR | L178: Automotriz | M178: TERPEL | N178: CALLE PRINCIPAL KM 122 VIA SARAVENA
F179: 166 | G179: PLUXEE COLOMBIA S.A.S | H179: C | I179: BOYACÁ | J179: SABOYA | K179: EDS SAN VICENTE FERRER | L179: Automotriz | M179: BIOMAX | N179: RURAL VEREDA PUENTE DE TIERRA
F180: 167 | G180: PLUXEE COLOMBIA S.A.S | H180: C | I180: BOYACÁ | J180: BUENAVISTA | K180: EDS BUENAVISTA BOY | L180: Automotriz | M180: TEXACO | N180: VDA SAN PEDRO LOTE 2 BUENAVISTA
F181: 168 | G181: PLUXEE COLOMBIA S.A.S | H181: C | I181: BOYACÁ | J181: PAIPA | K181: EDS LOS ANGELES | L181: Automotriz | M181: PETROBRAS | N181: KM 3 VIA TUNJA PAIPA
F182: 169 | G182: PLUXEE COLOMBIA S.A.S | H182: C | I182: BOYACÁ | J182: SANTA ROSA DE VITERBO | K182: EDS EL ANDINO | L182: Automotriz | M182: TERPEL | N182: CARRERA 5 No 16 111
F183: 170 | G183: PLUXEE COLOMBIA S.A.S | H183: C | I183: BOYACÁ | J183: LA UVITA | K183: EDS LOS ANDES DEL NORTE | L183: Automotriz | M183: TERPEL | N183: CALLE 5 No 7 85
F184: 171 | G184: PLUXEE COLOMBIA S.A.S | H184: C | I184: CALDAS | J184: LA DORADA | K184: ESTACION LA MELISSA | L184: Automotriz | M184: PRIMAX | N184: CRA 15 CALLE 11 VARIANTE
F185: 172 | G185: PLUXEE COLOMBIA S.A.S | H185: C | I185: CALDAS | J185: ANSERMA | K185: SUPER ESTACION SAN MATEO | L185: Automotriz | M185: PRIMAX | N185: CARRERA 3E NO. 14A - 21
F186: 173 | G186: PLUXEE COLOMBIA S.A.S | H186: C | I186: CALDAS | J186: SUPIA | K186: SERVICENTRO ESSO SAN LORENZO | L186: Automotriz | M186: PRIMAX | N186: CALLE 28 NO. 9-35
F187: 174 | G187: PLUXEE COLOMBIA S.A.S | H187: C | I187: CALDAS | J187: PALESTINA | K187: EDS LA ROCHELA | L187: Automotriz | M187: BIOMAX | N187: VEREDA SANTAGUEDA ARAUCA
F188: 175 | G188: PLUXEE COLOMBIA S.A.S | H188: C | I188: CALDAS | J188: VILLAMARIA | K188: EDS LA PRADERA VILLA MARIA | L188: Automotriz | M188: TERPEL | N188: CALLE 6 No 10 50
F189: 176 | G189: PLUXEE COLOMBIA S.A.S | H189: C | I189: CALDAS | J189: CHINCHINA | K189: ESTACION LA PAZ | L189: Automotriz | M189: TERPEL | N189: AUTOPISTA DEL CAFE VIA CHINCHINA EL JAZMIN
F190: 177 | G190: PLUXEE COLOMBIA S.A.S | H190: C | I190: CALDAS | J190: LA DORADA | K190: ESTACION DE SERVICIO EL TRIANGULO | L190: Automotriz | M190: PLUS+ | N190: CARRERA 2 CALLE 39
F191: 178 | G191: PLUXEE COLOMBIA S.A.S | H191: C | I191: CALDAS | J191: CHINCHINA | K191: EDS AVENIDA CHINCHINA | L191: Automotriz | M191: TERPEL | N191: CRA 4 CL 13 ESQUINA
F192: 179 | G192: PLUXEE COLOMBIA S.A.S | H192: C | I192: CAQUETÁ | J192: FLORENCIA | K192: ESTACION CUNDUY LTDA | L192: Automotriz | M192: PRIMAX | N192: CRA 1 # 34-70
F193: 180 | G193: PLUXEE COLOMBIA S.A.S | H193: C | I193: CAQUETÁ | J193: FLORENCIA | K193: ESTACIÓN DE SERVICIO EL CHAMON | L193: Automotriz | M193: PRIMAX | N193: Cra. 11 No. 4 A Sur - 30
F194: 181 | G194: PLUXEE COLOMBIA S.A.S | H194: C | I194: CAQUETÁ | J194: FLORENCIA | K194: EDS LA VICTORIA DE FLORENCIA | L194: Automotriz | M194: PRIMAX | N194: CARRERA 10 No. 19 -78
F195: 182 | G195: PLUXEE COLOMBIA S.A.S | H195: C | I195: CAQUETÁ | J195: FLORENCIA | K195: EL CHORRO | L195: Automotriz | M195: PRIMAX | N195: Clle 21 N° 14-17
F196: 183 | G196: PLUXEE COLOMBIA S.A.S | H196: C | I196: CAQUETÁ | J196: PUERTO RICO | K196: EDS AUTOCARS | L196: Automotriz | M196: TERPEL | N196: Cll 4 Cr 13 - 20 Esquina
F197: 184 | G197: PLUXEE COLOMBIA S.A.S | H197: C | I197: CAQUETÁ | J197: SAN VICENTE DEL CAGUAN | K197: EDS MUNOZ | L197: Automotriz | M197: TERPEL | N197: KILOMETRO 2 MAS 400 METROS VIA SAN VICENTE
F198: 185 | G198: PLUXEE COLOMBIA S.A.S | H198: C | I198: CAQUETÁ | J198: EL PAUJIL | K198: EDS COLISEO PAUJIL | L198: Automotriz | M198: TERPEL | N198: CRA 5A NO 8-60
F199: 186 | G199: PLUXEE COLOMBIA S.A.S | H199: C | I199: CAQUETÁ | J199: FLORENCIA | K199: EDS COFEMA | L199: Automotriz | M199: TERPEL | N199: KILOMETRO 4 VIA MORELIA
F200: 187 | G200: PLUXEE COLOMBIA S.A.S | H200: C | I200: CAQUETÁ | J200: SAN JOSE DEL FRAGUA | K200: EDS SAN JOSE | L200: Automotriz | M200: TERPEL | N200: KILOMETRO 1 VIA ALBANIA
F201: 188 | G201: PLUXEE COLOMBIA S.A.S | H201: C | I201: CAQUETÁ | J201: EL DONCELLO | K201: EDS EL DONCELLO | L201: Automotriz | M201: TERPEL | N201: AVENIDA COLOMBIA No 7 33
F202: 189 | G202: PLUXEE COLOMBIA S.A.S | H202: C | I202: CAQUETÁ | J202: MILAN | K202: EDS Y DEPOSITO BRISAS DEL ORTEGUAZA | L202: Automotriz | M202: TERPEL | N202: CALLE PRINCIPAL SAN ANTONIO DE GETUCHA
F203: 190 | G203: PLUXEE COLOMBIA S.A.S | H203: C | I203: CAQUETÁ | J203: SOLANO | K203: EDS WILLIAN ANTONIO | L203: Automotriz | M203: TERPEL | N203: CR 2 No 2 07
F204: 191 | G204: PLUXEE COLOMBIA S.A.S | H204: C | I204: CASANARE | J204: PAZ DE ARIPORO | K204: EDS PAZ DE ARIPORO | L204: Automotriz | M204: PRIMAX | N204: KM 89.2 en el costado derecho vía Yopal Paz de Ariporo
F205: 192 | G205: PLUXEE COLOMBIA S.A.S | H205: C | I205: CASANARE | J205: MONTERREY | K205: DISTRACOM MONSERRATE | L205: Automotriz | M205: TEXACO | N205: TK4 Cr1 interior 1 leche miel
F206: 193 | G206: PLUXEE COLOMBIA S.A.S | H206: C | I206: CASANARE | J206: PAZ DE ARIPORO | K206: DISTRACOM LA PAZ | L206: Automotriz | M206: TEXACO | N206: Km. 0+500 Vía Paz de Ariporo (57) A YOPAL
F207: 194 | G207: PLUXEE COLOMBIA S.A.S | H207: C | I207: CASANARE | J207: AGUAZUL | K207: DISTRACOM LOS CANAGUAROS | L207: Automotriz | M207: TERPEL | N207: Km. 1 Vía Marginal de la Selva – Salida a Yopa
F208: 195 | G208: PLUXEE COLOMBIA S.A.S | H208: C | I208: CASANARE | J208: TAURAMENA | K208: EDS ISMAT CASANARE | L208: Automotriz | M208: TERPEL | N208: CALLE 2 # 8-53
F209: 196 | G209: PLUXEE COLOMBIA S.A.S | H209: C | I209: CASANARE | J209: TAURAMENA | K209: EDS LA HIGUERA | L209: Automotriz | M209: TERPEL | N209: KM 1 VIA SAN JOSE VDA. CABAÑAS
F210: 197 | G210: PLUXEE COLOMBIA S.A.S | H210: C | I210: CASANARE | J210: VILLANUEVA | K210: DISTRACOM VILLAGRANDE | L210: Automotriz | M210: BRIO | N210: Km. 1 vía Villanueva
F211: 198 | G211: PLUXEE COLOMBIA S.A.S | H211: C | I211: CASANARE | J211: MANI | K211: DISTRACOM CANOFISTOL | L211: Automotriz | M211: TEXACO | N211: Cr. 4 No. 28 - 80
... 1398 more rows
